Workbook

Sheet Hinweise zum Programm
A1: Hinweise zur Bedienung
A3: Allgemeine Hinweise:
A4: Das Auslegungstool KSW dient als Hilfsmittel zur Technischen Planung des emcoair KSW.
A6: Auslegung:
A7: Im Tabellenblatt "Auslegung" erfolgt die Festlegung des gewünschten Auslasstyps. Bei Eingabe der Vorgabedaten, wie z.B. dem benötigten Luftvolumenstrom werden die technischen Daten des gewählten Luftdurchlasses berechnet.
A9: Bauakustik:
A10: Im Tabellenblatt können die Auswirkungen des in eine Trennwand eingebauten Luftdurchlasses auf das Schalldämm-Maß des Gesamtsystems berechnet werden. Hierzu wird das resultierende Schalldämm-Maß nach DIN 4109 unter Berücksichtigung der Einzahlangaben (nach DIN EN ISO 717-1) und Flächenanteile bestimmt.
A12: Funktion:
A13: Im Tabellenblatt "Funktion" finden Sie eine kurze Funktionsbeschreibung zum emcoair KSW.
A15: Maße:
A16: Das Tabellenblatt "Maße" gibt einen Überblick über die wählbare Größen und Varianten des emcoair KSW mit detaillierten Bemaßungen.
A18: Hinweise zur Funktion:
A19: Für eine ordnungsgemäße Funktion des Auslegungstools muss die Ausführung von Makros und MS Excel aktiviert sein. Die Aktivierung von Makros erfolgt im Menü Makrosicherheit.
A20: Einstellung unter MS Excel 97-2003: Extras → Makro → Sicherheit
A21: Einstellung unter MS Excel 2007: Entwicklertools* → Makrosicherheit
A22: *Das Menü Entwicklertools muss unter Umständen eingefügt werden unter Excel-Optionen

Sheet Auslegung
A1: Auslegung Kombi-Schlitzdurchlass - emcoair KSW
A3: Eingabefelder sind gelb gekennzeichnet
A4: Ergebnisfelder sind blau gekennzeichnet
A6: Vorgaben
A7: Position | B7: Symbol | C7: Einheit | D7: Wert
A8: Bezeichung | B8: Symbol | C8: Einheit | D8: KSW
B9: L | C9: mm | D9: KSW
B10: L | C10: mm
B11: L | C11: mm
A12: aktive Länge | B12: L | C12: mm | D12: 1000
D13: 500
D14: 800
D15: 1000
D16: 1200
A18: Schlitzanzahl | B18: n | C18: [-] | D18: 1
D19: 1
D20: 2
A22: Funktion | D22: Zuluft/Abluft-Kombination
B23: Zuluft
B24: Abluft
B25: =IF(D12>500,"Zuluft/Abluft-Kombination","") -> Zuluft/Abluft-Kombination
A27: Luftvolumenstrom Zuluft | B27: V·SUP | C27: m³/h | D27: 80
A28: Luftvolumenstrom Abluft | B28: V·ETA | C28: m³/h | D28: 80
A29: Temperatur Zuluft | B29: tSUP | C29: °C | D29: 22
A30: Temperatur Raum | B30: tRaum | C30: °C | D30: 26
A31: Raumdaten
A32: Raumhöhe | B32: H1 | C32: m | D32: 3
A33: Obergrenze Aufenthaltsbereich | B33: H2 | C33: m | D33: 1.8
A34: Raumlänge | B34: LR | C34: m | D34: 6
A35: Raumbreite | B35: BR | C35: m | D35: 3
A36: Raumart nach VDI 2081 | D36: Einzelbüro
C37: Einzelbüro
C38: Großraumbüro
C39: Werkstätten
C40: Ruheraum, Pausenraum
C41: Untersuchungsraum Krankenhaus
C42: Rundfunk-, Fernsehstudio
C43: Chemielabor
C44: Wasch- und WC-Raum, Umkleide
C45: Schwimmbad
C46: EDV-Raum
C47: Konzertsaal
C48: Lesesaal
C49: Museum
C50: Küche
C51: Theater, Kino
C52: Klassen- Seminarraum
C53: Gaststätte
C54: kein Typ
C55: Konferenzraum
C56: Hotelzimmer
C57: Hörsaal
C58: Bettenzimmer Krankenhaus
C59: Verkaufsraum
C60: Sporthalle
A61: Abstand zur Schallquelle | B61: r | C61: m | D61: 3
A62: Zusatzdaten | I62: 1 | J62: Breite Anschlusskasten | K62: =Grunddaten!M49 -> 1018 | L62: mm
A63: Farbe Abdeckprofil und Endwinkel | B63: 9010 | F63: =VLOOKUP(B63,Eingabe!A45:B48,2,FALSE) ->  | G63: =$B$63 -> 9010 | I63: 2 | J63: sichtbare Breite Schlitzdurchlass | K63: =Grunddaten!N49 -> 1030 | L63: mm
A64: Farbe Luftlenkelement | B64: schwarz | G64: =VLOOKUP(B64,B65:G67,6,FALSE) -> S | I64: 3 | J64: Höhe Anschlusskasten | K64: =Grunddaten!L49 -> 280 | L64: mm
B65: schwarz | G65: S
B66: weiß | G66: W
B67: grau | G67: G
A68: Einstellung Luftlenkelement | B68: Deckenstrahl D / E | G68: =VLOOKUP(B68,B69:G72,6,FALSE) -> D | I68: 4 | J68: Durchmesser Anschlussstutzen | K68: =Grunddaten!P49 -> 98 | L68: mm
B69: Deckenstrahl D / E | G69: D
B70: Sondereinstellung | G70: S
A72: Werkstoff Anschlusskasten | B72: Stahl verzinkt | G72: V | I72: 5 | J72: Abstand Anschlussstutzen | K72: =Grunddaten!O49 -> 508 | L72: mm
B73: Stahl verzinkt
A74: frontseitig bedienbare Drossel | B74: ohne | F74: =VLOOKUP(B74,Eingabe!$A$45:$B$51,2,FALSE) ->  | G74: =VLOOKUP(B74,B75:G77,6,FALSE) -> 0 | I74: * detaillierte Maße unter Tabellenblatt "Maße"
B75: mit | G75: 1
B76: ohne | G76: 0
A77: Innenauskleidung | B77: Baustoffklasse B1 (Standard) | G77: =VLOOKUP(B77,B78:G81,6,FALSE) -> B1
B78: Baustoffklasse B1 (Standard) | G78: B1
B79: Baustoffklasse A2 (optional) | G79: A2
A81: Merkmalschlüssel | B81: =CONCATENATE(1,"KSW","0",D18,G81,#REF!,"A",G63,G64,G68,G72,G74,G77,1,G82) ->  | G81: =IF(D12<1000,CONCATENATE(0,D12),D12) -> 1000
G82: =IF(K68=78,"080",100) -> 100
A83: Berechnung | D83: Zuluft | E83: Abluft
A84: Druckverlust | B84: Dpt | C84: Pa | D84: =IF(OR(D22="Zuluft",D22="Zuluft/Abluft-Kombination"),Grunddaten!$K$49,"") -> 31.78100043 | E84: =IF(OR(D22="Abluft",D22="Zuluft/Abluft-Kombination"),Grunddaten!$K$50,"") -> 33.17641421
A85: kritischer Strahlweg | B85: xkr. | C85: m | D85: =IF(OR(D22="Zuluft",D22="Zuluft/Abluft-Kombination"),IF($D$18=2,xkr._vx!$F$11,xkr._vx!$F$10),"") -> >Raumlänge
A86: Lauflänge bis Aufenthaltsbereich* | B86: x+y | C86: m | D86: =IF(OR(D22="Zuluft",D22="Zuluft/Abluft-Kombination"),IF($D$18=2,xkr._vx!$J$11,xkr._vx!$J$10),"") -> 7.2
A87: Geschwindigkeit im Aufenthaltsbereich* | B87: vx+y | C87: m/s | D87: =IF(OR(D22="Zuluft",D22="Zuluft/Abluft-Kombination"),IF(xkr._vx!$K$13<0.1,"<0,1",xkr._vx!$K$13),"") -> 0.1550453042
A88: Zugluftrisiko gemäß DIN EN ISO 7730 | B88: DR | C88: % | D88: =IF(OR(D22="Zuluft",D22="Zuluft/Abluft-Kombination"),IF(D18=1,xkr._vx!M10,xkr._vx!M11),"") -> 12.022074
A89: Schallleistungspegel Zuluft/Abluft | B89: LWA_SUP/ETA | C89: dB(A) | D89: =IF(OR(D22="Zuluft",D22="Zuluft/Abluft-Kombination"),Lw!I102,"") -> 34.03934778 | E89: =IF(OR(D22="Abluft",D22="Zuluft/Abluft-Kombination"),Lw!I103,"") -> 37.72917063
D90: =IF(OR(D89="<25",D89=""),0,D89) -> 34.03934778 | E90: =IF(OR(E89="<25",E89=""),0,E89) -> 37.72917063
A91: Summen-Schallleistungspegel Zuluft + Abluft | B91: LWA_gesamt | C91: dB(A) | D91: =IF(D90+E90=0,"25",10*LOG(10^(0.1*D90)+10^(0.1*E90))) -> 39.27517617
A92: Schallldruckpegel im Raum | B92: LPA | C92: dB(A) | D92: =IF(D91+10*LOG(Lw!$F$110/(4*PI()*Auslegung!D61^2)+4/(Lw!$H$110))>=25,D91+10*LOG(Lw!$F$110/(4*PI()*Auslegung!D61^2)+4/(Lw!$H$110)),"<25") -> 33.467939
A93: *Daten gelten für Walzenstellung D/E
A95: Oktavspektrum Schallleistung | B95: LW_Okt | C95: dB | D95: =D83 -> Zuluft | E95: =E83 -> Abluft
B96: LW_125 | C96: dB | D96: =IF(OR($D$22="Zuluft",$D$22="Zuluft/Abluft-Kombination"),Lw!B$104,"") -> 33.36677687 | E96: =IF(OR($D$22="Abluft",$D$22="Zuluft/Abluft-Kombination"),Lw!B$105,"") -> 33.42588358
B97: LW_250 | C97: dB | D97: =IF(OR($D$22="Zuluft",$D$22="Zuluft/Abluft-Kombination"),Lw!C$104,"") -> 37.58845998 | E97: =IF(OR($D$22="Abluft",$D$22="Zuluft/Abluft-Kombination"),Lw!C$105,"") -> 40.69018588
B98: LW_500 | C98: dB | D98: =IF(OR($D$22="Zuluft",$D$22="Zuluft/Abluft-Kombination"),Lw!D$104,"") -> 31.95845233 | E98: =IF(OR($D$22="Abluft",$D$22="Zuluft/Abluft-Kombination"),Lw!D$105,"") -> 35.78494503
B99: LW_1000 | C99: dB | D99: =IF(OR($D$22="Zuluft",$D$22="Zuluft/Abluft-Kombination"),Lw!E$104,"") -> 28.37538875 | E99: =IF(OR($D$22="Abluft",$D$22="Zuluft/Abluft-Kombination"),Lw!E$105,"") -> 32.5837608
B100: LW_2000 | C100: dB | D100: =IF(OR($D$22="Zuluft",$D$22="Zuluft/Abluft-Kombination"),Lw!F$104,"") -> 19.57225918 | E100: =IF(OR($D$22="Abluft",$D$22="Zuluft/Abluft-Kombination"),Lw!F$105,"") -> 24.38396097
B101: LW_4000 | C101: dB | D101: =IF(OR($D$22="Zuluft",$D$22="Zuluft/Abluft-Kombination"),Lw!G$104,"") -> 17.07484944 | E101: =IF(OR($D$22="Abluft",$D$22="Zuluft/Abluft-Kombination"),Lw!G$105,"") -> 22.00723707
B102: LW_8000 | C102: dB | D102: =IF(OR($D$22="Zuluft",$D$22="Zuluft/Abluft-Kombination"),Lw!H$104,"") -> 19.31536733 | E102: =IF(OR($D$22="Abluft",$D$22="Zuluft/Abluft-Kombination"),Lw!H$105,"") -> 19.42738011
A104: Durchgangsdämpfungsmaß | B104: Dt | C104: dB
B105: Dt_63 | C105: dB | D105: =Dt!D$25 -> 20.97717724
B106: Dt_125 | C106: dB | D106: =Dt!E$25 -> 11.59493788
B107: Dt_250 | C107: dB | D107: =Dt!F$25 -> 7.686022815
B108: Dt_500 | C108: dB | D108: =Dt!G$25 -> 13.49896385
B109: Dt_1000 | C109: dB | D109: =Dt!H$25 -> 16.33439018
B110: Dt_2000 | C110: dB | D110: =Dt!I$25 -> 18.95665645
B111: Dt_4000 | C111: dB | D111: =Dt!J$25 -> 26.8738137
B112: Dt_8000 | C112: dB | D112: =Dt!K$25 -> 23.75541555
A113: Änderungen vorbehalten
A114: Stand: | E114: =IF(D12=500,KSW(),"") -> 
A115: =Grunddaten!E52 -> 2019-04-24

Sheet Bauakustik
A1: Bauakustik - resultierendes Schalldämm-Maß
A3: Erläuterung:
A4: Aus den Einzahlangaben der bewerteten Schalldämm-Maße nach DIN EN ISO 717-1 und den Flächenanteilen der Einzelelemente wird das resultierende Schalldämm-Maß R´W,R,res nach DIN 4109 berechnet.
A6: Eingabefelder sind gelb gekennzeichnet
A7: Ergebnisfelder sind blau gekennzeichnet
A9: Vorgaben KSW
A10: Position | B10: Symbol | C10: Einheit | D10: Wert
A11: gewählter Luftdurchlass | D11: =Auslegung!B81 -> 
A12: aktive Länge | B12: L | C12: mm | D12: =Auslegung!D12 -> 1000
A13: Schlitzanzahl | B13: n | C13: [-] | D13: =Auslegung!D18 -> 1
A14: Breite Anschlusskasten | B14: bAK | C14: m | D14: =Auslegung!K62/1000 -> 1.018
A15: Höhe Anschlusskasten | B15: hAK | C15: m | D15: =Auslegung!K64/1000 -> 0.28
A16: Bezugsfläche KSW für die Berechnung | B16: SAK | C16: m² | D16: =D14*D15 -> 0.28504
A17: Abluft an Kanal angeschlossen? | D17: ja
D18: ja
D19: nein
A20: Schalldämm-Maß emcoair KSW | B20: RW_AK | C20: dB | D20: =IF(D17="ja",Grunddaten!T49,Grunddaten!V49) -> 36.54905809
A22: Vorgaben Trennwand
A23: Position | B23: Symbol | C23: Einheit | D23: Wert
A24: Breite Trennwand | B24: bE1 | C24: m | D24: 5
A25: Höhe Trennwand | B25: hE1 | C25: m | D25: 3
A26: Fläche Trennwand exklusive Einbauten | B26: SE1 | C26: m² | D26: =D24*D25-D33-D16 -> 14.71496
A27: Schalldämm-Maß der Trennwand | B27: RW_E1 | C27: dB | D27: 40
A29: Vorgaben weitere Bauteile im System (Tür, Fenster, …)
A30: Position | B30: Symbol | C30: Einheit | D30: Wert
A31: Breite Element | B31: bE2 | C31: m | D31: 0
A32: Höhe Element | B32: hE2 | C32: m | D32: 0
A33: Fläche Element | B33: SE2 | C33: m² | D33: =D31*D32 -> 0
A34: Schalldämm-Maß Element | B34: RW_E2 | C34: dB | D34: 0
A36: resultierendes Schalldämmmaß des Gesamtsystems | B36: R´W,R,res | C36: dB | D36: =-10*LOG(1/(D33+D26+D16)*($D$16*10^(-0.1*$D$20)+$D$26*10^(-0.1*$D$27)+$D$33*10^(-0.1*$D$34))) -> 39.90098404
E52: technische Änderungen vorbehalten
D53: Stand: | E53: =Grunddaten!$E$52 -> 2019-04-24

Sheet Funktion

Sheet Maße

Sheet Datenblatt
A2: Typ | B2: KSW | I2: =TODAY() -> 2019-04-24
A3: Projekt | B3: bitte Projektname / VIS-Nr. eintragen
A5: Definition:
A6: aktive Länge: | B6: =Auslegung!D12 -> 1000 | C6: Farbe Walzen: | E6: =Auslegung!B64 -> schwarz | F6: Funktion: | G6: =Auslegung!D22 -> Zuluft/Abluft-Kombination
A7: Schlitzanzahl: | B7: =Auslegung!D18 -> 1 | C7: Farbe Abdeckprofil: | E7: =Auslegung!B63 -> 9010
A8: Innenauskleidung: | B8: =Auslegung!G77 -> B1 | C8: Drossel fb: | E8: =Auslegung!B74 -> ohne
A10: Beschreibung: Verstellbarer Luftdurchlass für den Einbau in Leichtbauwänden (z.B. Trockenbau). Zuluft- und Abluftfunktion in einer Frontblende (außer KSW500). Ausgestattet mit im Anschlusskasten integriertem Absorptionsmaterial nach VDI6022, zur Minderung der Telefonieschallübertragung. Variable Luftlenkung durch integrierte Luftleitelemente (Exzenterwalze).
A13: technische Vorgaben | F13: Raumdaten
A14: Luftvolumenstrom Zuluft | B14: V·SUP | C14: =Auslegung!D27 -> 80 | D14: m³/h | F14: Raumhöhe | G14: =Auslegung!D32 -> 3 | H14: m
A15: =IF(B6=500," ","Luftvolumenstrom Abluft") -> Luftvolumenstrom Abluft | B15: V·ETA | C15: =IF(B6=500,"",Auslegung!D28) -> 80 | D15: =IF(B6=500,"","m³/h") -> m³/h | F15: Raumbreite | G15: =Auslegung!D35 -> 3 | H15: m
A16: Temperatur Zuluft | B16: tZUL | C16: =Auslegung!D29 -> 22 | D16: °C | F16: Raumlänge | G16: =Auslegung!D34 -> 6 | H16: m
A17: Temperatur Raum | B17: tRAUM | C17: =Auslegung!D30 -> 26 | D17: °C | F17: Nutzungsart | G17: =Auslegung!D36 -> Einzelbüro
A20: technische Daten | C20: =IF(B6=500,"Zuluft/Abluft","Zuluft") -> Zuluft | D20: =IF(B6=500," ","Abluft") -> Abluft
A21: Druckverlust | B21: Dp | C21: =Auslegung!D84 -> 31.78100043 | D21: =Auslegung!E84 -> 33.17641421 | E21: Pa
A22: kritischer Strahlweg | B22: xkr. | C22: =Auslegung!D85 -> >Raumlänge | E22: m
A23: Lauflänge bis in den Aufenthaltsbereich | B23: x+y | C23: =Auslegung!D86 -> 7.2 | E23: m
A24: Geschwindigkeit im Aufenthaltsbereich | B24: vx+y | C24: =Auslegung!D87 -> 0.1550453042 | E24: m/s | F24: Maße
A25: Zugluftrisiko gemäß DIN EN ISO 7730** | B25: DR | C25: =Auslegung!D88 -> 12.022074 | E25: % | F25: =Auslegung!J62 -> Breite Anschlusskasten | H25: =Auslegung!K62 -> 1018 | I25: mm
A26: Schallleistungspegel | B26: LWA_SUP/ETA | C26: =Auslegung!D89 -> 34.03934778 | D26: =Auslegung!E89 -> 37.72917063 | E26: dB(A) | F26: =Auslegung!J63 -> sichtbare Breite Schlitzdurchlass | H26: =Auslegung!K63 -> 1030 | I26: mm
A27: Summen-Schallleistungspegel | B27: LWA_gesamt | C27: =Auslegung!D91 -> 39.27517617 | F27: =Auslegung!J64 -> Höhe Anschlusskasten | H27: =Auslegung!K64 -> 280 | I27: mm
A28: =CONCATENATE("Schalldruckpegel in ",Auslegung!D61," m Abstand") -> Schalldruckpegel in 3 m Abstand | B28: LPA | C28: =Auslegung!D92 -> 33.467939 | E28: dB(A) | F28: =Auslegung!J68 -> Durchmesser Anschlussstutzen | H28: =Auslegung!K68 -> 98 | I28: mm
A29: *Daten gelten für Walzenstellung D/E
A30: ** Raumkategorie nach DIN EN ISO 7730: DR<10 % = A; DR<20 % = B; DR<30 % = C
A33: Oktavspektrum Schallleistungspegel | B33: f [Hz] | C33: 125 | D33: 250 | E33: 500 | F33: 1000 | G33: 2000 | H33: 4000 | I33: 8000
A34: =IF(B6=500,"Zuluft/Abluft","Zuluft") -> Zuluft | B34: LWA_Okt | C34: =Auslegung!D96 -> 33.36677687 | D34: =Auslegung!D97 -> 37.58845998 | E34: =Auslegung!D98 -> 31.95845233 | F34: =Auslegung!D99 -> 28.37538875 | G34: =Auslegung!D100 -> 19.57225918 | H34: =Auslegung!D101 -> 17.07484944 | I34: =Auslegung!D102 -> 19.31536733
A35: Abluft | B35: LWA_Okt | C35: =Auslegung!E96 -> 33.42588358 | D35: =Auslegung!E97 -> 40.69018588 | E35: =Auslegung!E98 -> 35.78494503 | F35: =Auslegung!E99 -> 32.5837608 | G35: =Auslegung!E100 -> 24.38396097 | H35: =Auslegung!E101 -> 22.00723707 | I35: =Auslegung!E102 -> 19.42738011
A37: Durchgangsdämpfungs-maß | B37: f [Hz] | C37: 125 | D37: 250 | E37: 500 | F37: 1000 | G37: 2000 | H37: 4000 | I37: 8000
A38: Zuluft / Abluft | B38: Dt | C38: =Auslegung!D105 -> 20.97717724 | D38: =Auslegung!D107 -> 7.686022815 | E38: =Auslegung!D108 -> 13.49896385 | F38: =Auslegung!D109 -> 16.33439018 | G38: =Auslegung!D110 -> 18.95665645 | H38: =Auslegung!D111 -> 26.8738137 | I38: =Auslegung!D112 -> 23.75541555
I39: technische Änderungen vorbehalten
H40: Stand: | I40: =Grunddaten!E52 -> 2019-04-24

Sheet Grunddaten (hidden)
A1: Typ | D1: Baulänge | E1: Schlitzanzahl | F1: Schlitzlänge | G1: spez.Volumenstrom | H1: Widerstandsbeiwert | I1: Durchmesser Anschluss | J1: Anströmgeschwindigkeit | K1: Druckverlust | L1: Höhe Anschlusskasten | M1: Breite Anschlusskasten | N1: sichtbare Breit Schlitzdurchlass | O1: Abstand Zuluft/Abluft | P1: Durchmesser Anschlussstutzen | Q1: Norm-Schallpegeldifferenz | R1: Schalldämm-Maß | S1: Norm-Schallpegeldifferenz | T1: Schalldämm-Maß | U1: Norm-Schallpegeldifferenz | V1: Schalldämm-Maß
D2: l | E2: n | F2: L | G2: V°spez | H2: z | I2: d | J2: v | K2: Dp | L2: h | M2: b | N2: b1 | O2: x | P2: D | Q2: Dn,w | R2: Rw | S2: Dn,w | T2: Rw | U2: Dn,w | V2: Rw
D3: mm | E3: 1 | F3: mm | G3: m³/(h·Walze) | H3: 1 | I3: mm | J3: m/s | K3: Pa | L3: mm | M3: mm | N3: mm | O3: mm | P3: mm | Q3: dB | R3: dB | S3: dB | T3: dB | U3: dB | V3: dB
A4: KSW | B4: ZUL | C4: =CONCATENATE(A4,B4,D4,E4) -> KSWZUL5001 | D4: 500 | E4: 1 | F4: =D4*E4 -> 500 | G4: =Auslegung!$D$27/(0.01*Grunddaten!F4) -> 16 | H4: 4.019543736 | I4: 80 | J4: =Auslegung!$D$27/(PI()/4*(Grunddaten!I4/1000)^2*3600) -> 4.420970641 | K4: =H4*1.2/2*J4^2 -> 47.13714457 | L4: 280 | M4: 518 | N4: 530 | O4: - | P4: 78 | Q4: 43 | R4: =Q4+10*LOG(($L4/1000*$M4/1000)/10) -> 24.61487791 | S4: 53 | T4: =S4+10*LOG(($L4/1000*$M4/1000)/10) -> 34.61487791 | U4: - | V4: -
A5: KSW | B5: ZUL | C5: KSWZUL8001 | D5: 800 | E5: 1 | F5: =D5/2*E5 -> 400 | G5: =Auslegung!$D$27/(0.01*Grunddaten!F5) -> 20 | H5: 4.942523843 | I5: 80 | J5: =Auslegung!$D$27/(PI()/4*(Grunddaten!I5/1000)^2*3600) -> 4.420970641 | K5: =H5*1.2/2*J5^2 -> 57.96092199 | L5: 280 | M5: 818 | N5: 830 | O5: 408 | P5: 78 | Q5: 42 | R5: 25.59911335 | S5: 52 | T5: 35.59911335 | U5: 44 | V5: =U5+10*LOG(($L5/1000*$M5/1000)/10) -> 27.59911335
A6: KSW | B6: ZUL | C6: KSWZUL10001 | D6: 1000 | E6: 1 | F6: =D6/2*E6 -> 500 | G6: =Auslegung!$D$27/(0.01*Grunddaten!F6) -> 16 | H6: 6.616390115 | I6: 100 | J6: =Auslegung!$D$27/(PI()/4*(Grunddaten!I6/1000)^2*3600) -> 2.829421211 | K6: 31.78100043 | L6: 280 | M6: 1018 | N6: 1030 | O6: 508 | P6: 98 | Q6: 42 | R6: 26.54905809 | S6: 52 | T6: 36.54905809 | U6: 43 | V6: =U6+10*LOG(($L6/1000*$M6/1000)/10) -> 27.54905809
A7: KSW | B7: ZUL | C7: KSWZUL12001 | D7: 1200 | E7: 1 | F7: =D7/2*E7 -> 600 | G7: =Auslegung!$D$27/(0.01*Grunddaten!F7) -> 13.33333333 | H7: 5.590118193 | I7: 100 | J7: =Auslegung!$D$27/(PI()/4*(Grunddaten!I7/1000)^2*3600) -> 2.829421211 | K7: 26.85143192 | L7: 280 | M7: 1218 | N7: 1230 | O7: 608 | P7: 98 | Q7: 42 | R7: 27.3280532 | S7: 52 | T7: 37.3280532 | U7: 43 | V7: =U7+10*LOG(($L7/1000*$M7/1000)/10) -> 28.3280532
A8: KSW | B8: ZUL | C8: KSWZUL5002 | D8: 500 | E8: 2 | F8: =D8*E8 -> 1000 | G8: =Auslegung!$D$27/(0.01*Grunddaten!F8) -> 8 | H8: 3.959903773 | I8: 100 | J8: =Auslegung!$D$27/(PI()/4*(Grunddaten!I8/1000)^2*3600) -> 2.829421211 | K8: 19.02090133 | L8: 280 | M8: 518 | N8: 530 | O8: - | P8: 98 | Q8: 43 | R8: 24.61487791 | S8: 53 | T8: 34.61487791 | U8: - | V8: -
A9: KSW | B9: ZUL | C9: KSWZUL8002 | D9: 800 | E9: 2 | F9: =D9/2*E9 -> 800 | G9: =Auslegung!$D$27/(0.01*Grunddaten!F9) -> 10 | H9: 3.05357161 | I9: 80 | J9: =Auslegung!$D$27/(PI()/4*(Grunddaten!I9/1000)^2*3600) -> 4.420970641 | K9: 35.80920022 | L9: 280 | M9: 818 | N9: 830 | O9: 408 | P9: 78 | Q9: 41 | R9: 24.59911335 | S9: 52 | T9: 35.59911335 | U9: 44 | V9: =U9+10*LOG(($L9/1000*$M9/1000)/10) -> 27.59911335
A10: KSW | B10: ZUL | C10: KSWZUL10002 | D10: 1000 | E10: 2 | F10: =D10/2*E10 -> 1000 | G10: =Auslegung!$D$27/(0.01*Grunddaten!F10) -> 8 | H10: 3.815643699 | I10: 100 | J10: =Auslegung!$D$27/(PI()/4*(Grunddaten!I10/1000)^2*3600) -> 2.829421211 | K10: 18.32796615 | L10: 280 | M10: 1018 | N10: 1030 | O10: 508 | P10: 98 | Q10: 41 | R10: 25.54905809 | S10: 52 | T10: 36.54905809 | U10: 43 | V10: =U10+10*LOG(($L10/1000*$M10/1000)/10) -> 27.54905809
A11: KSW | B11: ZUL | C11: KSWZUL12002 | D11: 1200 | E11: 2 | F11: =D11/2*E11 -> 1200 | G11: =Auslegung!$D$27/(0.01*Grunddaten!F11) -> 6.666666667 | H11: 3.402380418 | I11: 100 | J11: =Auslegung!$D$27/(PI()/4*(Grunddaten!I11/1000)^2*3600) -> 2.829421211 | K11: 16.34290779 | L11: 280 | M11: 1218 | N11: 1230 | O11: 608 | P11: 98 | Q11: 41 | R11: 26.3280532 | S11: 52 | T11: 37.3280532 | U11: 43 | V11: =U11+10*LOG(($L11/1000*$M11/1000)/10) -> 28.3280532
A12: KSW | B12: ABL | C12: KSWABL5001 | D12: 500 | E12: 1 | F12: =D12*E12 -> 500 | G12: =Auslegung!$D$28/(0.01*Grunddaten!F12) -> 16 | H12: 4.015285488 | I12: 80 | J12: =Auslegung!$D$28/(PI()/4*(Grunddaten!I12/1000)^2*3600) -> 4.420970641 | K12: 47.08720814 | L12: 280 | M12: 518 | N12: 530 | O12: - | P12: 78 | Q12: 43 | R12: =Q12+10*LOG(($L12/1000*$M12/1000)/10) -> 24.61487791 | S12: 53 | T12: =S12+10*LOG(($L12/1000*$M12/1000)/10) -> 34.61487791 | U12: - | V12: -
A13: KSW | B13: ABL | C13: KSWABL8001 | D13: 800 | E13: 1 | F13: =D13/2*E13 -> 400 | G13: =Auslegung!$D$28/(0.01*Grunddaten!F13) -> 20 | H13: 4.996345995 | I13: 80 | J13: =Auslegung!$D$28/(PI()/4*(Grunddaten!I13/1000)^2*3600) -> 4.420970641 | K13: 58.59209377 | L13: 280 | M13: 818 | N13: 830 | O13: 408 | P13: 78 | Q13: 42 | R13: 25.59911335 | S13: 52 | T13: 35.59911335 | U13: 44 | V13: =U13+10*LOG(($L13/1000*$M13/1000)/10) -> 27.59911335
A14: KSW | B14: ABL | C14: KSWABL10001 | D14: 1000 | E14: 1 | F14: =D14/2*E14 -> 500 | G14: =Auslegung!$D$28/(0.01*Grunddaten!F14) -> 16 | H14: 6.906897078 | I14: 100 | J14: =Auslegung!$D$28/(PI()/4*(Grunddaten!I14/1000)^2*3600) -> 2.829421211 | K14: 33.17641421 | L14: 280 | M14: 1018 | N14: 1030 | O14: 508 | P14: 98 | Q14: 42 | R14: 26.54905809 | S14: 52 | T14: 36.54905809 | U14: 43 | V14: =U14+10*LOG(($L14/1000*$M14/1000)/10) -> 27.54905809
A15: KSW | B15: ABL | C15: KSWABL12001 | D15: 1200 | E15: 1 | F15: =D15/2*E15 -> 600 | G15: =Auslegung!$D$28/(0.01*Grunddaten!F15) -> 13.33333333 | H15: 5.798137037 | I15: 100 | J15: =Auslegung!$D$28/(PI()/4*(Grunddaten!I15/1000)^2*3600) -> 2.829421211 | K15: 27.85062436 | L15: 280 | M15: 1218 | N15: 1230 | O15: 608 | P15: 98 | Q15: 42 | R15: 27.3280532 | S15: 52 | T15: 37.3280532 | U15: 43 | V15: =U15+10*LOG(($L15/1000*$M15/1000)/10) -> 28.3280532
A16: KSW | B16: ABL | C16: KSWABL5002 | D16: 500 | E16: 2 | F16: =D16*E16 -> 1000 | G16: =Auslegung!$D$28/(0.01*Grunddaten!F16) -> 8 | H16: 3.805234457 | I16: 100 | J16: =Auslegung!$D$28/(PI()/4*(Grunddaten!I16/1000)^2*3600) -> 2.829421211 | K16: 18.27796666 | L16: 280 | M16: 518 | N16: 530 | O16: - | P16: 98 | Q16: 43 | R16: 24.61487791 | S16: 53 | T16: 34.61487791 | U16: - | V16: -
A17: KSW | B17: ABL | C17: KSWABL8002 | D17: 800 | E17: 2 | F17: =D17/2*E17 -> 800 | G17: =Auslegung!$D$28/(0.01*Grunddaten!F17) -> 10 | H17: 2.953878686 | I17: 80 | J17: =Auslegung!$D$28/(PI()/4*(Grunddaten!I17/1000)^2*3600) -> 4.420970641 | K17: =H17*1.2/2*J17^2 -> 34.6401024 | L17: 280 | M17: 818 | N17: 830 | O17: 408 | P17: 78 | Q17: 41 | R17: 24.59911335 | S17: 52 | T17: 35.59911335 | U17: 44 | V17: =U17+10*LOG(($L17/1000*$M17/1000)/10) -> 27.59911335
A18: KSW | B18: ABL | C18: KSWABL10002 | D18: 1000 | E18: 2 | F18: =D18/2*E18 -> 1000 | G18: =Auslegung!$D$28/(0.01*Grunddaten!F18) -> 8 | H18: 3.812362843 | I18: 100 | J18: =Auslegung!$D$28/(PI()/4*(Grunddaten!I18/1000)^2*3600) -> 2.829421211 | K18: =H18*1.2/2*J18^2 -> 18.31220697 | L18: 280 | M18: 1018 | N18: 1030 | O18: 508 | P18: 98 | Q18: 41 | R18: 25.54905809 | S18: 52 | T18: 36.54905809 | U18: 43 | V18: 27.54905809
A19: KSW | B19: ABL | C19: KSWABL12002 | D19: 1200 | E19: 2 | F19: =D19/2*E19 -> 1200 | G19: =Auslegung!$D$28/(0.01*Grunddaten!F19) -> 6.666666667 | H19: 3.377294261 | I19: 100 | J19: =Auslegung!$D$28/(PI()/4*(Grunddaten!I19/1000)^2*3600) -> 2.829421211 | K19: 16.22240958 | L19: 280 | M19: 1218 | N19: 1230 | O19: 608 | P19: 98 | Q19: 41 | R19: 26.3280532 | S19: 52 | T19: 37.3280532 | U19: 43 | V19: 28.3280532
A20: KSW-1LW | B20: ZUL | C20: KSW-1LWZUL8001 | D20: 800 | E20: 1 | F20: 800 | G20: =Auslegung!$D$27/(0.01*Grunddaten!F20) -> 10 | H20: 6.786198655 | I20: 80 | J20: =(Auslegung!$D$27/2)/(PI()/4*(Grunddaten!I20/1000)^2*3600) -> 2.210485321 | K20: =H20*1.2/2*J20^2 -> 19.89541898 | L20: 280 | M20: 818 | N20: 830 | O20: 408 | P20: 78 | Q20: 42 | R20: =Q20+10*LOG(($L20/1000*$M20/1000)/10) -> 25.59911335 | S20: 52 | T20: =S20+10*LOG(($L20/1000*$M20/1000)/10) -> 35.59911335 | U20: 44 | V20: 27.59911335
A21: KSW-1LW | B21: ZUL | C21: KSW-1LWZUL10001 | D21: 1000 | E21: 1 | F21: 1000 | G21: =Auslegung!$D$27/(0.01*Grunddaten!F21) -> 8 | H21: 12.81126643 | I21: 100 | J21: =(Auslegung!$D$27/2)/(PI()/4*(Grunddaten!I21/1000)^2*3600) -> 1.414710605 | K21: 15.38432805 | L21: 280 | M21: 1018 | N21: 1030 | O21: 508 | P21: 98 | Q21: 42 | R21: 26.54905809 | S21: 52 | T21: 36.54905809 | U21: 43 | V21: 27.54905809
A22: KSW-1LW | B22: ZUL | C22: KSW-1LWZUL12001 | D22: 1200 | E22: 1 | F22: 1200 | G22: =Auslegung!$D$27/(0.01*Grunddaten!F22) -> 6.666666667 | H22: 8.724594788 | I22: 100 | J22: =(Auslegung!$D$27/2)/(PI()/4*(Grunddaten!I22/1000)^2*3600) -> 1.414710605 | K22: 10.47687432 | L22: 280 | M22: 1218 | N22: 1230 | O22: 608 | P22: 98 | Q22: 42 | R22: 27.3280532 | S22: 52 | T22: 37.3280532 | U22: 43 | V22: 28.3280532
A23: KSW-1LW | B23: ZUL | C23: KSW-1LWZUL8002 | D23: 800 | E23: 2 | F23: 1600 | G23: =Auslegung!$D$27/(0.01*Grunddaten!F23) -> 5 | H23: 2.496027812 | I23: 80 | J23: =(Auslegung!$D$27/2)/(PI()/4*(Grunddaten!I23/1000)^2*3600) -> 2.210485321 | K23: 7.31772258 | L23: 280 | M23: 818 | N23: 830 | O23: 408 | P23: 78 | Q23: 41 | R23: 24.59911335 | S23: 52 | T23: 35.59911335 | U23: 44 | V23: 27.59911335
A24: KSW-1LW | B24: ZUL | C24: KSW-1LWZUL10002 | D24: 1000 | E24: 2 | F24: 2000 | G24: =Auslegung!$D$27/(0.01*Grunddaten!F24) -> 4 | H24: 4.687139273 | I24: 100 | J24: =(Auslegung!$D$27/2)/(PI()/4*(Grunddaten!I24/1000)^2*3600) -> 1.414710605 | K24: 5.62852147 | L24: 280 | M24: 1018 | N24: 1030 | O24: 508 | P24: 98 | Q24: 41 | R24: 25.54905809 | S24: 52 | T24: 36.54905809 | U24: 43 | V24: 27.54905809
A25: KSW-1LW | B25: ZUL | C25: KSW-1LWZUL12002 | D25: 1200 | E25: 2 | F25: 2400 | G25: =Auslegung!$D$27/(0.01*Grunddaten!F25) -> 3.333333333 | H25: 7.346689227 | I25: 100 | J25: =(Auslegung!$D$27/2)/(PI()/4*(Grunddaten!I25/1000)^2*3600) -> 1.414710605 | K25: =H25*1.2/2*J25^2 -> 8.822225165 | L25: 280 | M25: 1218 | N25: 1230 | O25: 608 | P25: 98 | Q25: 41 | R25: 26.3280532 | S25: 52 | T25: 37.3280532 | U25: 43 | V25: 28.3280532
A26: KSW-1LW | B26: ABL | C26: KSW-1LWABL8001 | D26: 800 | E26: 1 | F26: 800 | G26: =Auslegung!$D$28/(0.01*Grunddaten!F26) -> 10 | H26: 5.828249746 | I26: 80 | J26: =(Auslegung!$D$28/2)/(PI()/4*(Grunddaten!I26/1000)^2*3600) -> 2.210485321 | K26: =H26*1.2/2*J26^2 -> 17.08695494 | L26: 280 | M26: 818 | N26: 830 | O26: 408 | P26: 78 | Q26: 42 | R26: =Q26+10*LOG(($L26/1000*$M26/1000)/10) -> 25.59911335 | S26: 52 | T26: =S26+10*LOG(($L26/1000*$M26/1000)/10) -> 35.59911335 | U26: 44 | V26: 27.59911335
A27: KSW-1LW | B27: ABL | C27: KSW-1LWABL10001 | D27: 1000 | E27: 1 | F27: 1000 | G27: =Auslegung!$D$28/(0.01*Grunddaten!F27) -> 8 | H27: 12.56947676 | I27: 100 | J27: =(Auslegung!$D$28/2)/(PI()/4*(Grunddaten!I27/1000)^2*3600) -> 1.414710605 | K27: 15.09397645 | L27: 280 | M27: 1018 | N27: 1030 | O27: 508 | P27: 98 | Q27: 42 | R27: 26.54905809 | S27: 52 | T27: 36.54905809 | U27: 43 | V27: 27.54905809
A28: KSW-1LW | B28: ABL | C28: KSW-1LWABL12001 | D28: 1200 | E28: 1 | F28: 1200 | G28: =Auslegung!$D$28/(0.01*Grunddaten!F28) -> 6.666666667 | H28: 10.84370465 | I28: 100 | J28: =(Auslegung!$D$28/2)/(PI()/4*(Grunddaten!I28/1000)^2*3600) -> 1.414710605 | K28: 13.02159395 | L28: 280 | M28: 1218 | N28: 1230 | O28: 608 | P28: 98 | Q28: 42 | R28: 27.3280532 | S28: 52 | T28: 37.3280532 | U28: 43 | V28: 28.3280532
A29: KSW-1LW | B29: ABL | C29: KSW-1LWABL8002 | D29: 800 | E29: 2 | F29: 1600 | G29: =Auslegung!$D$28/(0.01*Grunddaten!F29) -> 5 | H29: 4.673105166 | I29: 80 | J29: =(Auslegung!$D$28/2)/(PI()/4*(Grunddaten!I29/1000)^2*3600) -> 2.210485321 | K29: 13.70036304 | L29: 280 | M29: 818 | N29: 830 | O29: 408 | P29: 78 | Q29: 41 | R29: 24.59911335 | S29: 52 | T29: 35.59911335 | U29: 44 | V29: 27.59911335
A30: KSW-1LW | B30: ABL | C30: KSW-1LWABL10002 | D30: 1000 | E30: 2 | F30: 2000 | G30: =Auslegung!$D$28/(0.01*Grunddaten!F30) -> 4 | H30: 5.164964211 | I30: 100 | J30: =(Auslegung!$D$28/2)/(PI()/4*(Grunddaten!I30/1000)^2*3600) -> 1.414710605 | K30: 6.202314517 | L30: 280 | M30: 1018 | N30: 1030 | O30: 508 | P30: 98 | Q30: 41 | R30: 25.54905809 | S30: 52 | T30: 36.54905809 | U30: 43 | V30: 27.54905809
A31: KSW-1LW | B31: ABL | C31: KSW-1LWABL12002 | D31: 1200 | E31: 2 | F31: 2400 | G31: =Auslegung!$D$28/(0.01*Grunddaten!F31) -> 3.333333333 | H31: 6.173672558 | I31: 100 | J31: =(Auslegung!$D$28/2)/(PI()/4*(Grunddaten!I31/1000)^2*3600) -> 1.414710605 | K31: 7.413615538 | L31: 280 | M31: 1218 | N31: 1230 | O31: 608 | P31: 98 | Q31: 41 | R31: 26.3280532 | S31: 52 | T31: 37.3280532 | U31: 43 | V31: 28.3280532
D38: 2 | E38: 3 | F38: 4 | G38: 5 | H38: 6 | I38: 7 | J38: 8 | K38: 9 | L38: 10 | M38: 11 | N38: 12 | O38: 13 | P38: 14 | Q38: 15 | R38: 16 | S38: 17 | T38: 18 | U38: 19 | V38: 20
A40: Verklausulierung:
A43: Länge: | B43: =Auslegung!D12 -> 1000 | D43: =IF(B43=500,"KSW",IF(AND(B43>500,C44=3),"KSW","KSW-1LW")) -> KSW
A44: Funktion: | B44: =Auslegung!D22 -> Zuluft/Abluft-Kombination | C44: =IF(B44="Zuluft",1,IF(B44="Abluft",2,IF(B44="Zuluft/Abluft-Kombination",3,""))) -> 3 | D44: =IF($B$44="Zuluft","ZUL",IF($B$44="Abluft","ABL",IF(AND($B$44="Zuluft",$D$43="KSW-1LW"),"ZUL",IF(AND($B$44="Abluft",$D$43="KSW-1LW"),"ABL","ZUL")))) -> ZUL
D45: =IF($B$44="Zuluft","ZUL",IF($B$44="Abluft","ABL",IF(AND($B$44="Zuluft",$D$43="KSW-1LW"),"ZUL",IF(AND($B$44="Abluft",$D$43="KSW-1LW"),"ABL","ABL")))) -> ABL
A49: Auswahl: | B49: Zuluft | C49: =CONCATENATE(D43,D44,Auslegung!$D$12,Auslegung!$D$18) -> KSWZUL10001 | D49: =VLOOKUP($C$49,$C$4:$L$31,D38,FALSE) -> 1000 | E49: =VLOOKUP($C$49,$C$4:$L$31,E38,FALSE) -> 1 | F49: 500 | G49: 16 | H49: 6.616390115 | I49: 100 | J49: 2.829421211 | K49: 31.78100043 | L49: 280 | M49: =VLOOKUP($C$49,$C$4:$V$31,M38,FALSE) -> 1018 | N49: =VLOOKUP($C$49,$C$4:$V$31,N38,FALSE) -> 1030 | O49: 508 | P49: 98 | Q49: 42 | R49: 26.54905809 | S49: 52 | T49: 36.54905809 | U49: 43 | V49: 27.54905809
B50: Abluft | C50: =CONCATENATE(D43,D45,Auslegung!$D$12,Auslegung!$D$18) -> KSWABL10001 | D50: =VLOOKUP($C$50,$C$4:$L$31,D38,FALSE) -> 1000 | E50: =VLOOKUP($C$50,$C$4:$L$31,E38,FALSE) -> 1 | F50: 500 | G50: 16 | H50: 6.906897078 | I50: 100 | J50: 2.829421211 | K50: 33.17641421 | L50: 280 | M50: =VLOOKUP($C$50,$C$4:$V$31,M38,FALSE) -> 1018 | N50: =VLOOKUP($C$50,$C$4:$V$31,N38,FALSE) -> 1030 | O50: 508 | P50: 98 | Q50: 42 | R50: 26.54905809 | S50: 52 | T50: 36.54905809 | U50: 43 | V50: 27.54905809
Q51: offen | S51: geschlossen | U51: ZUL geschlossen, ABL offen
D52: Stand: | E52: 2019-04-24

Sheet Lw (hidden)
B2: Terzfrequenzband fm [Hz]
B3: 100 | C3: 125 | D3: 160 | E3: 200 | F3: 250 | G3: 315 | H3: 400 | I3: 500 | J3: 630 | K3: 800 | L3: 1000 | M3: 1250 | N3: 1600 | O3: 2000 | P3: 2500 | Q3: 3150 | R3: 4000 | S3: 5000 | T3: 6300 | U3: 8000 | V3: 10000
A4: KSD-WZUL1 | B4: -87.02566304 | C4: -101.1066778 | D4: -96.40165359 | E4: -83.8666753 | F4: -75.70483128 | G4: -94.96504507 | H4: -79.62393727 | I4: -60.34679959 | J4: -93.25658464 | K4: -92.22146402 | L4: -90.48357739 | M4: -72.56642226 | N4: -48.30854786 | O4: -31.71683875 | P4: -30.38054643 | Q4: -6.239623394 | R4: 5.774851098 | S4: 13.97335563 | T4: 16.34318832 | U4: 14.46145144 | V4: 15.13096535
B5: 15.88089584 | C5: 21.67308648 | D5: 37.97463261 | E5: 47.27607486 | F5: 53.98947434 | G5: 56.454251 | H5: 51.60303589 | I5: 54.10256365 | J5: 68.03239502 | K5: 71.38880007 | L5: 71.48388321 | M5: 64.38415838 | N5: 56.03425285 | O5: 47.2253611 | P5: 40.41240807 | Q5: 28.41125621 | R5: 15.7207062 | S5: 7.872076916 | T5: 2.725489793 | U5: 0.4909300693 | V5: 0.2026344897
B6: 30.59710435 | C6: 36.17591694 | D6: 28.03169334 | E6: 22.10077938 | F6: 15.98282272 | G6: 21.22749344 | H6: 16.84289775 | I6: 10.17347988 | J6: 18.06464664 | K6: 14.95618498 | L6: 15.55372571 | M6: 9.987834635 | N6: 3.883564817 | O6: 0.1294176301 | P6: 2.775980639 | Q6: -2.318845378 | R6: -3.053774784 | S6: -3.556013472 | T6: -2.235288029 | U6: -0.3068354906 | V6: -0.04432493087
B7: -3.604437091 | C7: -14.00054577 | D7: -13.31469909 | E7: -14.26979896 | F7: -8.453689231 | G7: -6.550183654 | H7: -5.717686997 | I7: -12.26895288 | J7: -14.25828846 | K7: -9.987858812 | L7: -17.53226422 | M7: -15.08395033 | N7: -15.58610282 | O7: -12.26304281 | P7: -12.4355645 | Q7: -8.989386114 | R7: -4.03867612 | S7: -2.075787791 | T7: -1.308204371 | U7: -1.304768373 | V7: -0.9980856955
A8: KSD-WZUL2 | B8: -52.0422569 | C8: -101.333378 | D8: -158.2410617 | E8: -145.464554 | F8: -92.67078651 | G8: -79.51306778 | H8: -91.8652897 | I8: -98.55717604 | J8: -145.0516693 | K8: -159.0161293 | L8: -158.2559072 | M8: -150.4111693 | N8: -129.1611619 | O8: -111.9748747 | P8: -94.39933529 | Q8: -67.71664396 | R8: -39.27673764 | S8: -27.68326873 | T8: -19.04923936 | U8: -15.40038762 | V8: -12.91709317
B9: 11.07144264 | C9: 21.30923227 | D9: 36.92247603 | E9: 46.95124589 | F9: 51.70285203 | G9: 54.21525592 | H9: 53.67850792 | I9: 59.37317143 | J9: 67.52564838 | K9: 73.39741426 | L9: 77.80008112 | M9: 75.19222454 | N9: 69.49804307 | O9: 60.51531383 | P9: 50.56469888 | Q9: 35.40239414 | R9: 21.13561326 | S9: 10.42098991 | T9: 3.661637412 | U9: 0.9196082575 | V9: 0.5630685347
B10: 15.85281736 | C10: 32.4587741 | D10: 44.65325498 | E10: 45.23842899 | F10: 26.08646009 | G10: 23.09939099 | H10: 25.60038541 | I10: 23.32593906 | J10: 35.9154646 | K10: 38.72940406 | L10: 36.23041583 | M10: 34.45534554 | N10: 30.3443733 | O10: 26.77967744 | P10: 22.39807503 | Q10: 16.53909826 | R10: 9.605853468 | S10: 8.272175896 | T10: 7.728987235 | U10: 7.566520806 | V10: 7.399691447
B11: 11.11610142 | C11: -8.196924431 | D11: 1.832118402 | E11: -32.75189086 | F11: -23.17920236 | G11: -33.42352748 | H11: -25.73084089 | I11: -13.11307784 | J11: -10.64161861 | K11: -11.13563839 | L11: -9.305400567 | M11: -13.26944935 | N11: -23.31183918 | O11: -22.32755202 | P11: -13.14126592 | Q11: -5.271815142 | R11: 4.283429625 | S11: 7.675067605 | T11: 7.5312951 | U11: 8.048702309 | V11: 7.320239369
A12: KSD-WABL1 | B12: -38.85909859 | C12: -64.1311822 | D12: -65.51264215 | E12: -90.72702562 | F12: -108.6582914 | G12: -128.6144768 | H12: -101.0258131 | I12: -107.7262708 | J12: -150.5394189 | K12: -178.5216815 | L12: -166.0442413 | M12: -145.7208098 | N12: -126.1051058 | O12: -106.7714486 | P12: -87.13075919 | Q12: -89.27280153 | R12: -50.63741643 | S12: -13.81246142 | T12: 4.577130545 | U12: 11.21611878 | V12: 13.18794674
B13: 21.29140935 | C13: 20.99613483 | D13: 27.7534222 | E13: 39.64586106 | F13: 45.86816347 | G13: 49.27648292 | H13: 49.95559997 | I13: 56.34543691 | J13: 67.20379269 | K13: 72.05291998 | L13: 74.97767591 | M13: 69.21328374 | N13: 63.31766172 | O13: 55.3428974 | P13: 48.41012791 | Q13: 46.32033827 | R13: 31.67899774 | S13: 15.05966276 | T13: 5.614136029 | U13: 0.7887019107 | V13: 0.1061531968
B14: 10.06979987 | C14: 17.99183217 | D14: 20.04627922 | E14: 27.56593106 | F14: 29.52998992 | G14: 36.43195278 | H14: 24.51340243 | I14: 24.09494523 | J14: 36.84024621 | K14: 43.53547507 | L14: 37.21859106 | M14: 31.88127588 | N14: 26.55170317 | O14: 21.79332146 | P14: 17.50358159 | Q14: 19.58403309 | R14: 10.57084326 | S14: 3.184281836 | T14: 0.6332463833 | U14: 0.3197172407 | V14: 0.3950239066
B15: -3.125101088 | C15: 2.083498996 | D15: -9.279122729 | E15: -10.4986738 | F15: 3.659252139 | G15: -1.718345714 | H15: 2.446411038 | I15: 1.507527158 | J15: -0.7220915774 | K15: 5.235390437 | L15: 3.154018148 | M15: 0.1624449463 | N15: 0.3061660763 | O15: 1.743722197 | P15: 1.780286741 | Q15: 1.557356416 | R15: 1.91278919 | S15: 1.29946712 | T15: 0.01591794466 | U15: 0.1465149874 | V15: -0.05359532192
A16: KSD-WABL2 | B16: -37.48038684 | C16: -76.57868819 | D16: -73.62491329 | E16: -70.32340786 | F16: -78.90193906 | G16: -49.00077066 | H16: -57.27160388 | I16: -62.75187484 | J16: -75.67176696 | K16: -88.58704074 | L16: -95.5531967 | M16: -99.21199035 | N16: -81.13299377 | O16: -74.46877653 | P16: -49.19379635 | Q16: -35.45718165 | R16: -14.79280526 | S16: 2.858195177 | T16: 11.45381861 | U16: 13.38019887 | V16: 14.08780435
B17: 26.73282328 | C17: 32.13065777 | D17: 38.33806563 | E17: 45.10881791 | F17: 49.88003134 | G17: 50.9853586 | H17: 55.62531166 | I17: 62.34037486 | J17: 72.8330413 | K17: 82.74493992 | L17: 79.44811485 | M17: 72.8864086 | N17: 61.66590126 | O17: 52.97406613 | P17: 41.98298857 | Q17: 30.96613841 | R17: 15.84028937 | S17: 5.089319625 | T17: 1.051332343 | U17: 0.1804914019 | V17: 0.1343960949
B18: 6.523357744 | C18: 20.38586041 | D18: 14.14884452 | E18: 15.72133141 | F18: 19.29387192 | G18: 4.70802633 | H18: 3.069308329 | I18: 7.085170727 | J18: 7.202151712 | K18: 6.902327557 | L18: 12.4616607 | M18: 15.18816461 | N18: 12.87723786 | O18: 13.21477875 | P18: 6.952748449 | Q18: 5.656048068 | R18: 3.808700064 | S18: 1.403407684 | T18: -0.08064700053 | U18: -0.1481462869 | V18: 0.3876178288
B19: 2.883869162 | C19: -7.609712345 | D19: 8.886865272 | E19: -7.035611376 | F19: -9.051989765 | G19: 16.75006815 | H19: 31.65958084 | I19: 3.313945224 | J19: 9.10755625 | K19: 15.96254761 | L19: -1.572187274 | M19: -2.775823599 | N19: -6.825896868 | O19: -6.634833773 | P19: 0.9963597258 | Q19: 1.969744641 | R19: -0.07653438384 | S19: -1.422968687 | T19: -0.4602952447 | U19: -0.1794259327 | V19: -1.918741561
A20: KSW-1LWZUL1 | B20: -66.59070676 | C20: -79.23784268 | D20: -159.5344396 | E20: -110.8154033 | F20: -101.1474858 | G20: -84.89438909 | H20: -109.1560961 | I20: -106.599363 | J20: -84.34089915 | K20: -94.50274843 | L20: -84.62106015 | M20: -78.92584598 | N20: -81.99440467 | O20: -87.27981059 | P20: -92.41354293 | Q20: -81.88538582 | R20: -71.70561708 | S20: -50.86342476 | T20: -28.32297912 | U20: -12.18891674 | V20: -9.083603305
B21: 31.58034618 | C21: 43.22219678 | D21: 47.24284299 | E21: 51.97150898 | F21: 57.40353032 | G21: 61.30212068 | H21: 61.69430877 | I21: 61.51193603 | J21: 64.25652903 | K21: 68.15944565 | L21: 75.34063283 | M21: 81.53851952 | N21: 83.09832112 | O21: 80.63502742 | P21: 77.34135205 | Q21: 70.81519623 | R21: 53.94538536 | S21: 35.58320725 | T21: 16.2416964 | U21: 2.541017252 | V21: 0.6541719743
B22: 13.59974961 | C22: 12.28781802 | D22: 40.64191427 | E22: 26.15593119 | F22: 20.34078082 | G22: 12.62010761 | H22: 18.79700053 | I22: 20.94387486 | J22: 13.9232393 | K22: 16.09782363 | L22: 8.736164986 | M22: 3.386118718 | N22: 3.215662643 | O22: 5.389433179 | P22: 8.000079523 | Q22: 5.423712364 | R22: 8.243304914 | S22: 8.223569964 | T22: 8.868480589 | U22: 9.306047143 | V22: 9.594424372
B23: 1.350370334 | C23: 8.64920335 | D23: 2.511908472 | E23: -3.121860071 | F23: 0.8046439106 | G23: 2.408334441 | H23: 5.773599953 | I23: -2.819735999 | J23: -5.351195062 | K23: -7.164789575 | L23: -4.105038229 | M23: -3.20900029 | N23: -3.296442338 | O23: -3.663919331 | P23: -2.230503177 | Q23: 2.615617863 | R23: 1.898221924 | S23: 1.49025745 | T23: -0.7762633033 | U23: -2.665262918 | V23: -3.426740827
A24: KSW-1LWZUL2 | B24: 540.5164386 | C24: 625.7604726 | D24: -711.9119179 | E24: -1080.776986 | F24: -1250.838712 | G24: -1010.716916 | H24: -4.747558151 | I24: -291.2543806 | J24: -732.2509649 | K24: -1074.987253 | L24: -1526.16032 | M24: -1785.867557 | N24: -1777.146552 | O24: -1495.134252 | P24: -523.8726501 | Q24: -103.8208552 | R24: 780.5590362 | S24: 868.8750223 | T24: 910.1932251 | U24: 1151.220244 | V24: 1129.713139
B25: 36.15791847 | C25: 44.34776265 | D25: 52.9081113 | E25: 52.55337277 | F25: 53.9338681 | G25: 55.36048817 | H25: 57.13028408 | I25: 61.05910736 | J25: 66.56938055 | K25: 69.82028874 | L25: 76.1667469 | M25: 80.25657805 | N25: 79.94822726 | O25: 76.49227945 | P25: 71.94081902 | Q25: 57.21189598 | R25: 42.16521262 | S25: 26.80905523 | T25: 12.85090689 | U25: 3.400666266 | V25: 0.7102889962
B26: -180.7866347 | C26: -214.6036524 | D26: 220.9831321 | E26: 342.6185784 | F26: 397.3994994 | G26: 319.7892509 | H26: -11.29681697 | I26: 80.84030785 | J26: 224.7322557 | K26: 336.5524732 | L26: 481.9234003 | M26: 564.8629349 | N26: 561.4313551 | O26: 469.4352711 | P26: 153.2835778 | Q26: 20.59863734 | R26: -264.2019899 | S26: -288.2074306 | T26: -296.9072056 | U26: -372.7505695 | V26: -364.6361461
B27: 59.59874465 | C27: 89.39388129 | D27: -74.90454669 | E27: -116.1174465 | F27: -131.6328486 | G27: -108.4810627 | H27: 16.75672934 | I27: -16.32331458 | J27: -72.81860706 | K27: -118.0505893 | L27: -173.1823265 | M27: -203.3870864 | N27: -201.879138 | O27: -166.9176237 | P27: -50.27141627 | Q27: -2.928465229 | R27: 102.4786131 | S27: 111.1408898 | T27: 113.7489924 | U27: 142.1901789 | V27: 139.6966496
A28: KSW-1LWABL1 | B28: -174.1202017 | C28: -257.3164995 | D28: -86.6736989 | E28: -77.1322199 | F28: -143.8090328 | G28: -114.9300051 | H28: -125.1235184 | I28: -122.9262167 | J28: -125.2595844 | K28: -158.0324819 | L28: -166.8789823 | M28: -156.2930145 | N28: -145.2255768 | O28: -133.4148057 | P28: -134.5926555 | Q28: -93.78273987 | R28: -95.85265192 | S28: -56.17553584 | T28: -21.31789539 | U28: -1.124556822 | V28: -2.045191797
B29: 22.57171364 | C29: 37.9860248 | D29: 41.13623089 | E29: 41.67872476 | F29: 55.44651032 | G29: 53.08185257 | H29: 57.95113041 | I29: 60.51459467 | J29: 67.69212026 | K29: 74.58075254 | L29: 84.26162052 | M29: 88.6806179 | N29: 83.30181666 | O29: 75.98959654 | P29: 72.30770251 | Q29: 67.74846096 | R29: 52.32666536 | S29: 26.76401437 | T29: 7.916963507 | U29: 1.188833039 | V29: 0.3086426288
B30: 56.89668139 | C30: 82.95489827 | D30: 19.50669347 | E30: 15.80319437 | F30: 34.41464801 | G30: 24.7110636 | H30: 26.82330229 | I30: 25.55732807 | J30: 22.93369694 | K30: 32.43392043 | L30: 30.03892325 | M30: 23.42256959 | N30: 21.61216055 | O30: 20.04903229 | P30: 20.96981898 | Q30: 7.629018085 | R30: 15.69036161 | S30: 13.40769918 | T30: 10.18500758 | U30: 6.248338098 | V30: 7.450164283
B31: -8.838372008 | C31: -19.14603883 | D31: -1.335752189 | E31: 9.140521585 | F31: 7.472608735 | G31: 8.59908552 | H31: 4.39375937 | I31: 3.789871383 | J31: 8.311579323 | K31: 4.230770668 | L31: 7.438156256 | M31: 9.506887213 | N31: 8.020759364 | O31: 7.477855961 | P31: 9.898394947 | Q31: 15.1432993 | R31: 8.692459647 | S31: 2.39610108 | T31: -1.842889181 | U31: -2.351087051 | V31: -2.746760718
A32: KSW-1LWABL2 | B32: -160.7009474 | C32: -169.2560662 | D32: -36.95935388 | E32: 0.992169828 | F32: -197.3006194 | G32: -58.3736381 | H32: -183.5534702 | I32: -60.21555684 | J32: -84.28483829 | K32: -109.0808175 | L32: -110.2569063 | M32: -125.7973024 | N32: -131.21837 | O32: -95.04040455 | P32: -103.2601919 | Q32: -81.94617119 | R32: -82.92171075 | S32: -50.34360286 | T32: -28.79754963 | U32: -39.53797641 | V32: -27.92897557
B33: 32.52244976 | C33: 46.9102212 | D33: 52.39848418 | E33: 57.3361473 | F33: 57.71531532 | G33: 62.75010467 | H33: 61.46586692 | I33: 66.74655212 | J33: 75.05606355 | K33: 82.47570855 | L33: 88.7582084 | M33: 88.17765744 | N33: 81.87826849 | O33: 70.60842 | P33: 62.26103719 | Q33: 52.93528505 | R33: 35.47525141 | S33: 13.51948726 | T33: 2.744388464 | U33: 0.4657059872 | V33: 0.1921534071
B34: 50.37639401 | C34: 37.29820535 | D34: -9.559509807 | E34: -39.56072682 | F34: 47.10201174 | G34: -9.862770294 | H34: 46.49147815 | I34: -8.160660476 | J34: -4.415236162 | K34: 4.952672879 | L34: 3.045344355 | M34: 8.033796308 | N34: 12.4085824 | O34: 0.800646268 | P34: 12.03513377 | Q34: 10.17168731 | R34: 19.13711233 | S34: 17.26788136 | T34: 13.6181232 | U34: 20.1992792 | V34: 15.86958535
B35: -23.71856253 | C35: 26.85586809 | D35: 49.80240198 | E35: 132.011901 | F35: 15.00774371 | G35: 76.57579341 | H35: -9.058534439 | I35: 61.34041122 | J35: 67.94285698 | K35: 49.10577408 | L35: 47.01856515 | M35: 43.89014921 | N35: 37.61870222 | O35: 54.00223542 | P35: 26.33267131 | Q35: 18.52797979 | R35: 2.171765578 | S35: -4.684392127 | T35: -1.598860188 | U35: -12.38013782 | V35: -6.622527583
B36: 2 | C36: 3 | D36: 4 | E36: 5 | F36: 6 | G36: 7 | H36: 8 | I36: 9 | J36: 10 | K36: 11 | L36: 12 | M36: 13 | N36: 14 | O36: 15 | P36: 16 | Q36: 17 | R36: 18 | S36: 19 | T36: 20 | U36: 21 | V36: 22
B38: Terzfrequenzband fm [Hz]
B39: 100 | C39: 125 | D39: 160 | E39: 200 | F39: 250 | G39: 315 | H39: 400 | I39: 500 | J39: 630 | K39: 800 | L39: 1000 | M39: 1250 | N39: 1600 | O39: 2000 | P39: 2500 | Q39: 3150 | R39: 4000 | S39: 5000 | T39: 6300 | U39: 8000 | V39: 10000
A40: =Grunddaten!C4 -> KSWZUL5001 | B40: =B$4+Lw!B$5*LOG(Grunddaten!$G4)+B$6*LOG(Grunddaten!$F4)+B$7*LOG(Grunddaten!$H4) -> 12.49979072 | C40: =C$4+C$5*LOG(Grunddaten!$G4)+C$6*LOG(Grunddaten!$F4)+C$7*LOG(Grunddaten!$H4) -> 14.16922906 | D40: =D$4+D$5*LOG(Grunddaten!$G4)+D$6*LOG(Grunddaten!$F4)+D$7*LOG(Grunddaten!$H4) -> 16.93662814 | E40: =E$4+E$5*LOG(Grunddaten!$G4)+E$6*LOG(Grunddaten!$F4)+E$7*LOG(Grunddaten!$H4) -> 24.08725088 | F40: =F$4+F$5*LOG(Grunddaten!$G4)+F$6*LOG(Grunddaten!$F4)+F$7*LOG(Grunddaten!$H4) -> 27.33461017 | G40: =G$4+G$5*LOG(Grunddaten!$G4)+G$6*LOG(Grunddaten!$F4)+G$7*LOG(Grunddaten!$H4) -> 26.34754599 | H40: =H$4+H$5*LOG(Grunddaten!$G4)+H$6*LOG(Grunddaten!$F4)+H$7*LOG(Grunddaten!$H4) -> 24.51629163 | I40: =I$4+I$5*LOG(Grunddaten!$G4)+I$6*LOG(Grunddaten!$F4)+I$7*LOG(Grunddaten!$H4) -> 24.84447927 | J40: =J$4+J$5*LOG(Grunddaten!$G4)+J$6*LOG(Grunddaten!$F4)+J$7*LOG(Grunddaten!$H4) -> 28.80399459 | K40: =K$4+K$5*LOG(Grunddaten!$G4)+K$6*LOG(Grunddaten!$F4)+K$7*LOG(Grunddaten!$H4) -> 28.07107916 | L40: =L$4+L$5*LOG(Grunddaten!$G4)+L$6*LOG(Grunddaten!$F4)+L$7*LOG(Grunddaten!$H4) -> 26.97804738 | M40: =M$4+M$5*LOG(Grunddaten!$G4)+M$6*LOG(Grunddaten!$F4)+M$7*LOG(Grunddaten!$H4) -> 22.80332328 | N40: =N$4+N$5*LOG(Grunddaten!$G4)+N$6*LOG(Grunddaten!$F4)+N$7*LOG(Grunddaten!$H4) -> 20.22827958 | O40: =O$4+O$5*LOG(Grunddaten!$G4)+O$6*LOG(Grunddaten!$F4)+O$7*LOG(Grunddaten!$H4) -> 18.08841109 | P40: =P$4+P$5*LOG(Grunddaten!$G4)+P$6*LOG(Grunddaten!$F4)+P$7*LOG(Grunddaten!$H4) -> 18.2598511 | Q40: =Q$4+Q$5*LOG(Grunddaten!$G4)+Q$6*LOG(Grunddaten!$F4)+Q$7*LOG(Grunddaten!$H4) -> 16.28126566 | R40: =R$4+R$5*LOG(Grunddaten!$G4)+R$6*LOG(Grunddaten!$F4)+R$7*LOG(Grunddaten!$H4) -> 14.02234678 | S40: =S$4+S$5*LOG(Grunddaten!$G4)+S$6*LOG(Grunddaten!$F4)+S$7*LOG(Grunddaten!$H4) -> 12.60056432 | T40: =T$4+T$5*LOG(Grunddaten!$G4)+T$6*LOG(Grunddaten!$F4)+T$7*LOG(Grunddaten!$H4) -> 12.80164302 | U40: =U$4+U$5*LOG(Grunddaten!$G4)+U$6*LOG(Grunddaten!$F4)+U$7*LOG(Grunddaten!$H4) -> 13.43613963 | V40: =V$4+V$5*LOG(Grunddaten!$G4)+V$6*LOG(Grunddaten!$F4)+V$7*LOG(Grunddaten!$H4) -> 14.65230975 | W40: =10*LOG(10^(0.1*B40)+10^(0.1*C40)+10^(0.1*D40)+10^(0.1*E40)+10^(0.1*F40)+10^(0.1*G40)+10^(0.1*H40)+10^(0.1*I40)+10^(0.1*J40)+10^(0.1*K40)+10^(0.1*L40)+10^(0.1*M40)+10^(0.1*N40)+10^(0.1*O40)+10^(0.1*P40)+10^(0.1*Q40)+10^(0.1*R40)+10^(0.1*S40)+10^(0.1*T40)+10^(0.1*U40)+10^(0.1*V40)) -> 36.42780049
A41: =Grunddaten!C5 -> KSWZUL8001 | B41: =B$4+B$5*LOG(Grunddaten!$G5)+B$6*LOG(Grunddaten!$F5)+B$7*LOG(Grunddaten!$H5) -> 10.75006518 | C41: =C$4+C$5*LOG(Grunddaten!$G5)+C$6*LOG(Grunddaten!$F5)+C$7*LOG(Grunddaten!$H5) -> 11.50690237 | D41: =D$4+D$5*LOG(Grunddaten!$G5)+D$6*LOG(Grunddaten!$F5)+D$7*LOG(Grunddaten!$H5) -> 16.70491115 | E41: =E$4+E$5*LOG(Grunddaten!$G5)+E$6*LOG(Grunddaten!$F5)+E$7*LOG(Grunddaten!$H5) -> 25.2459605 | F41: =F$4+F$5*LOG(Grunddaten!$G5)+F$6*LOG(Grunddaten!$F5)+F$7*LOG(Grunddaten!$H5) -> 30.25893056 | G41: =G$4+G$5*LOG(Grunddaten!$G5)+G$6*LOG(Grunddaten!$F5)+G$7*LOG(Grunddaten!$H5) -> 29.17334834 | H41: =H$4+H$5*LOG(Grunddaten!$G5)+H$6*LOG(Grunddaten!$F5)+H$7*LOG(Grunddaten!$H5) -> 27.37160878 | I41: =I$4+I$5*LOG(Grunddaten!$G5)+I$6*LOG(Grunddaten!$F5)+I$7*LOG(Grunddaten!$H5) -> 28.00023873 | J41: =J$4+J$5*LOG(Grunddaten!$G5)+J$6*LOG(Grunddaten!$F5)+J$7*LOG(Grunddaten!$H5) -> 32.36637446 | K41: =K$4+K$5*LOG(Grunddaten!$G5)+K$6*LOG(Grunddaten!$F5)+K$7*LOG(Grunddaten!$H5) -> 32.64333442 | L41: =L$4+L$5*LOG(Grunddaten!$G5)+L$6*LOG(Grunddaten!$F5)+L$7*LOG(Grunddaten!$H5) -> 30.824333 | M41: =M$4+M$5*LOG(Grunddaten!$G5)+M$6*LOG(Grunddaten!$F5)+M$7*LOG(Grunddaten!$H5) -> 26.72075511 | N41: =N$4+N$5*LOG(Grunddaten!$G5)+N$6*LOG(Grunddaten!$F5)+N$7*LOG(Grunddaten!$H5) -> 23.88300759 | O41: =O$4+O$5*LOG(Grunddaten!$G5)+O$6*LOG(Grunddaten!$F5)+O$7*LOG(Grunddaten!$H5) -> 21.55160153 | P41: =P$4+P$5*LOG(Grunddaten!$G5)+P$6*LOG(Grunddaten!$F5)+P$7*LOG(Grunddaten!$H5) -> 20.79083209 | Q41: =Q$4+Q$5*LOG(Grunddaten!$G5)+Q$6*LOG(Grunddaten!$F5)+Q$7*LOG(Grunddaten!$H5) -> 18.4523249 | R41: =R$4+R$5*LOG(Grunddaten!$G5)+R$6*LOG(Grunddaten!$F5)+R$7*LOG(Grunddaten!$H5) -> 15.47922189 | S41: =S$4+S$5*LOG(Grunddaten!$G5)+S$6*LOG(Grunddaten!$F5)+S$7*LOG(Grunddaten!$H5) -> 13.52171305 | T41: =T$4+T$5*LOG(Grunddaten!$G5)+T$6*LOG(Grunddaten!$F5)+T$7*LOG(Grunddaten!$H5) -> 13.16495193 | U41: =U$4+U$5*LOG(Grunddaten!$G5)+U$6*LOG(Grunddaten!$F5)+U$7*LOG(Grunddaten!$H5) -> 13.39631942 | V41: =V$4+V$5*LOG(Grunddaten!$G5)+V$6*LOG(Grunddaten!$F5)+V$7*LOG(Grunddaten!$H5) -> 14.58664243 | W41: =10*LOG(10^(0.1*B41)+10^(0.1*C41)+10^(0.1*D41)+10^(0.1*E41)+10^(0.1*F41)+10^(0.1*G41)+10^(0.1*H41)+10^(0.1*I41)+10^(0.1*J41)+10^(0.1*K41)+10^(0.1*L41)+10^(0.1*M41)+10^(0.1*N41)+10^(0.1*O41)+10^(0.1*P41)+10^(0.1*Q41)+10^(0.1*R41)+10^(0.1*S41)+10^(0.1*T41)+10^(0.1*U41)+10^(0.1*V41)) -> 39.74074557
A42: =Grunddaten!C6 -> KSWZUL10001 | B42: =B$4+B$5*LOG(Grunddaten!$G6)+B$6*LOG(Grunddaten!$F6)+B$7*LOG(Grunddaten!$H6) -> 11.71963069 | C42: =C$4+C$5*LOG(Grunddaten!$G6)+C$6*LOG(Grunddaten!$F6)+C$7*LOG(Grunddaten!$H6) -> 11.13889009 | D42: =D$4+D$5*LOG(Grunddaten!$G6)+D$6*LOG(Grunddaten!$F6)+D$7*LOG(Grunddaten!$H6) -> 14.0547368 | E42: =E$4+E$5*LOG(Grunddaten!$G6)+E$6*LOG(Grunddaten!$F6)+E$7*LOG(Grunddaten!$H6) -> 20.99863359 | F42: =F$4+F$5*LOG(Grunddaten!$G6)+F$6*LOG(Grunddaten!$F6)+F$7*LOG(Grunddaten!$H6) -> 25.50485694 | G42: =G$4+G$5*LOG(Grunddaten!$G6)+G$6*LOG(Grunddaten!$F6)+G$7*LOG(Grunddaten!$H6) -> 24.92979578 | H42: =H$4+H$5*LOG(Grunddaten!$G6)+H$6*LOG(Grunddaten!$F6)+H$7*LOG(Grunddaten!$H6) -> 23.27873061 | I42: =I$4+I$5*LOG(Grunddaten!$G6)+I$6*LOG(Grunddaten!$F6)+I$7*LOG(Grunddaten!$H6) -> 22.18893379 | J42: =J$4+J$5*LOG(Grunddaten!$G6)+J$6*LOG(Grunddaten!$F6)+J$7*LOG(Grunddaten!$H6) -> 25.71786868 | K42: =K$4+K$5*LOG(Grunddaten!$G6)+K$6*LOG(Grunddaten!$F6)+K$7*LOG(Grunddaten!$H6) -> 25.9092636 | L42: =L$4+L$5*LOG(Grunddaten!$G6)+L$6*LOG(Grunddaten!$F6)+L$7*LOG(Grunddaten!$H6) -> 23.18328793 | M42: =M$4+M$5*LOG(Grunddaten!$G6)+M$6*LOG(Grunddaten!$F6)+M$7*LOG(Grunddaten!$H6) -> 19.53848752 | N42: =N$4+N$5*LOG(Grunddaten!$G6)+N$6*LOG(Grunddaten!$F6)+N$7*LOG(Grunddaten!$H6) -> 16.85475576 | O42: =O$4+O$5*LOG(Grunddaten!$G6)+O$6*LOG(Grunddaten!$F6)+O$7*LOG(Grunddaten!$H6) -> 15.43414481 | P42: =P$4+P$5*LOG(Grunddaten!$G6)+P$6*LOG(Grunddaten!$F6)+P$7*LOG(Grunddaten!$H6) -> 15.56824348 | Q42: =Q$4+Q$5*LOG(Grunddaten!$G6)+Q$6*LOG(Grunddaten!$F6)+Q$7*LOG(Grunddaten!$H6) -> 14.33556386 | R42: =R$4+R$5*LOG(Grunddaten!$G6)+R$6*LOG(Grunddaten!$F6)+R$7*LOG(Grunddaten!$H6) -> 13.14819817 | S42: =S$4+S$5*LOG(Grunddaten!$G6)+S$6*LOG(Grunddaten!$F6)+S$7*LOG(Grunddaten!$H6) -> 12.15127179 | T42: =T$4+T$5*LOG(Grunddaten!$G6)+T$6*LOG(Grunddaten!$F6)+T$7*LOG(Grunddaten!$H6) -> 12.51848959 | U42: =U$4+U$5*LOG(Grunddaten!$G6)+U$6*LOG(Grunddaten!$F6)+U$7*LOG(Grunddaten!$H6) -> 13.15372989 | V42: =V$4+V$5*LOG(Grunddaten!$G6)+V$6*LOG(Grunddaten!$F6)+V$7*LOG(Grunddaten!$H6) -> 14.43627975 | W42: =10*LOG(10^(0.1*B42)+10^(0.1*C42)+10^(0.1*D42)+10^(0.1*E42)+10^(0.1*F42)+10^(0.1*G42)+10^(0.1*H42)+10^(0.1*I42)+10^(0.1*J42)+10^(0.1*K42)+10^(0.1*L42)+10^(0.1*M42)+10^(0.1*N42)+10^(0.1*O42)+10^(0.1*P42)+10^(0.1*Q42)+10^(0.1*R42)+10^(0.1*S42)+10^(0.1*T42)+10^(0.1*U42)+10^(0.1*V42)) -> 34.03934778
A43: =Grunddaten!C7 -> KSWZUL12001 | B43: =B$4+B$5*LOG(Grunddaten!$G7)+B$6*LOG(Grunddaten!$F7)+B$7*LOG(Grunddaten!$H7) -> 13.14872362 | C43: =C$4+C$5*LOG(Grunddaten!$G7)+C$6*LOG(Grunddaten!$F7)+C$7*LOG(Grunddaten!$H7) -> 13.31208382 | D43: =D$4+D$5*LOG(Grunddaten!$G7)+D$6*LOG(Grunddaten!$F7)+D$7*LOG(Grunddaten!$H7) -> 14.24207997 | E43: =E$4+E$5*LOG(Grunddaten!$G7)+E$6*LOG(Grunddaten!$F7)+E$7*LOG(Grunddaten!$H7) -> 20.04977323 | F43: =F$4+F$5*LOG(Grunddaten!$G7)+F$6*LOG(Grunddaten!$F7)+F$7*LOG(Grunddaten!$H7) -> 23.11425392 | G43: =G$4+G$5*LOG(Grunddaten!$G7)+G$6*LOG(Grunddaten!$F7)+G$7*LOG(Grunddaten!$H7) -> 22.61997141 | H43: =H$4+H$5*LOG(Grunddaten!$G7)+H$6*LOG(Grunddaten!$F7)+H$7*LOG(Grunddaten!$H7) -> 20.94491489 | I43: =I$4+I$5*LOG(Grunddaten!$G7)+I$6*LOG(Grunddaten!$F7)+I$7*LOG(Grunddaten!$H7) -> 19.60866295 | J43: =J$4+J$5*LOG(Grunddaten!$G7)+J$6*LOG(Grunddaten!$F7)+J$7*LOG(Grunddaten!$H7) -> 22.80506843 | K43: =K$4+K$5*LOG(Grunddaten!$G7)+K$6*LOG(Grunddaten!$F7)+K$7*LOG(Grunddaten!$H7) -> 22.17197122 | L43: =L$4+L$5*LOG(Grunddaten!$G7)+L$6*LOG(Grunddaten!$F7)+L$7*LOG(Grunddaten!$H7) -> 20.0380321 | M43: =M$4+M$5*LOG(Grunddaten!$G7)+M$6*LOG(Grunddaten!$F7)+M$7*LOG(Grunddaten!$H7) -> 16.33546571 | N43: =N$4+N$5*LOG(Grunddaten!$G7)+N$6*LOG(Grunddaten!$F7)+N$7*LOG(Grunddaten!$H7) -> 13.8663038 | O43: =O$4+O$5*LOG(Grunddaten!$G7)+O$6*LOG(Grunddaten!$F7)+O$7*LOG(Grunddaten!$H7) -> 12.60268546 | P43: =P$4+P$5*LOG(Grunddaten!$G7)+P$6*LOG(Grunddaten!$F7)+P$7*LOG(Grunddaten!$H7) -> 13.49842899 | Q43: =Q$4+Q$5*LOG(Grunddaten!$G7)+Q$6*LOG(Grunddaten!$F7)+Q$7*LOG(Grunddaten!$H7) -> 12.56034022 | R43: =R$4+R$5*LOG(Grunddaten!$G7)+R$6*LOG(Grunddaten!$F7)+R$7*LOG(Grunddaten!$H7) -> 11.95724293 | S43: =S$4+S$5*LOG(Grunddaten!$G7)+S$6*LOG(Grunddaten!$F7)+S$7*LOG(Grunddaten!$H7) -> 11.39832925 | T43: =T$4+T$5*LOG(Grunddaten!$G7)+T$6*LOG(Grunddaten!$F7)+T$7*LOG(Grunddaten!$H7) -> 12.22144972 | U43: =U$4+U$5*LOG(Grunddaten!$G7)+U$6*LOG(Grunddaten!$F7)+U$7*LOG(Grunddaten!$H7) -> 13.18607102 | V43: =V$4+V$5*LOG(Grunddaten!$G7)+V$6*LOG(Grunddaten!$F7)+V$7*LOG(Grunddaten!$H7) -> 14.48978518 | W43: =10*LOG(10^(0.1*B43)+10^(0.1*C43)+10^(0.1*D43)+10^(0.1*E43)+10^(0.1*F43)+10^(0.1*G43)+10^(0.1*H43)+10^(0.1*I43)+10^(0.1*J43)+10^(0.1*K43)+10^(0.1*L43)+10^(0.1*M43)+10^(0.1*N43)+10^(0.1*O43)+10^(0.1*P43)+10^(0.1*Q43)+10^(0.1*R43)+10^(0.1*S43)+10^(0.1*T43)+10^(0.1*U43)+10^(0.1*V43)) -> 31.61601079
A44: =Grunddaten!C8 -> KSWZUL5002 | B44: =B$8+B$9*LOG(Grunddaten!$G8)+B$10*LOG(Grunddaten!$F8)+B$11*LOG(Grunddaten!$H8) -> 12.15862716 | C44: =C$8+C$9*LOG(Grunddaten!$G8)+C$10*LOG(Grunddaten!$F8)+C$11*LOG(Grunddaten!$H8) -> 10.38792284 | D44: =D$8+D$9*LOG(Grunddaten!$G8)+D$10*LOG(Grunddaten!$F8)+D$11*LOG(Grunddaten!$H8) -> 10.15805068 | E44: =E$8+E$9*LOG(Grunddaten!$G8)+E$10*LOG(Grunddaten!$F8)+E$11*LOG(Grunddaten!$H8) -> 13.07663116 | F44: =F$8+F$9*LOG(Grunddaten!$G8)+F$10*LOG(Grunddaten!$F8)+F$11*LOG(Grunddaten!$H8) -> 18.42706867 | G44: =G$8+G$9*LOG(Grunddaten!$G8)+G$10*LOG(Grunddaten!$F8)+G$11*LOG(Grunddaten!$H8) -> 18.76963122 | H44: =H$8+H$9*LOG(Grunddaten!$G8)+H$10*LOG(Grunddaten!$F8)+H$11*LOG(Grunddaten!$H8) -> 18.03346135 | I44: =I$8+I$9*LOG(Grunddaten!$G8)+I$10*LOG(Grunddaten!$F8)+I$11*LOG(Grunddaten!$H8) -> 17.20247263 | J44: =J$8+J$9*LOG(Grunddaten!$G8)+J$10*LOG(Grunddaten!$F8)+J$11*LOG(Grunddaten!$H8) -> 17.31612953 | K44: =K$8+K$9*LOG(Grunddaten!$G8)+K$10*LOG(Grunddaten!$F8)+K$11*LOG(Grunddaten!$H8) -> 16.80095287 | L44: =L$8+L$9*LOG(Grunddaten!$G8)+L$10*LOG(Grunddaten!$F8)+L$11*LOG(Grunddaten!$H8) -> 15.13411957 | M44: =M$8+M$9*LOG(Grunddaten!$G8)+M$10*LOG(Grunddaten!$F8)+M$11*LOG(Grunddaten!$H8) -> 12.92926639 | N44: =N$8+N$9*LOG(Grunddaten!$G8)+N$10*LOG(Grunddaten!$F8)+N$11*LOG(Grunddaten!$H8) -> 10.70181681 | O44: =O$8+O$9*LOG(Grunddaten!$G8)+O$10*LOG(Grunddaten!$F8)+O$11*LOG(Grunddaten!$H8) -> 9.670096883 | P44: =P$8+P$9*LOG(Grunddaten!$G8)+P$10*LOG(Grunddaten!$F8)+P$11*LOG(Grunddaten!$H8) -> 10.60503036 | Q44: =Q$8+Q$9*LOG(Grunddaten!$G8)+Q$10*LOG(Grunddaten!$F8)+Q$11*LOG(Grunddaten!$H8) -> 10.7213156 | R44: =R$8+R$9*LOG(Grunddaten!$G8)+R$10*LOG(Grunddaten!$F8)+R$11*LOG(Grunddaten!$H8) -> 11.18832352 | S44: =S$8+S$9*LOG(Grunddaten!$G8)+S$10*LOG(Grunddaten!$F8)+S$11*LOG(Grunddaten!$H8) -> 11.13162056 | T44: =T$8+T$9*LOG(Grunddaten!$G8)+T$10*LOG(Grunddaten!$F8)+T$11*LOG(Grunddaten!$H8) -> 11.94584977 | U44: =U$8+U$9*LOG(Grunddaten!$G8)+U$10*LOG(Grunddaten!$F8)+U$11*LOG(Grunddaten!$H8) -> 12.94024949 | V44: =V$8+V$9*LOG(Grunddaten!$G8)+V$10*LOG(Grunddaten!$F8)+V$11*LOG(Grunddaten!$H8) -> 14.16567731 | W44: =10*LOG(10^(0.1*B44)+10^(0.1*C44)+10^(0.1*D44)+10^(0.1*E44)+10^(0.1*F44)+10^(0.1*G44)+10^(0.1*H44)+10^(0.1*I44)+10^(0.1*J44)+10^(0.1*K44)+10^(0.1*L44)+10^(0.1*M44)+10^(0.1*N44)+10^(0.1*O44)+10^(0.1*P44)+10^(0.1*Q44)+10^(0.1*R44)+10^(0.1*S44)+10^(0.1*T44)+10^(0.1*U44)+10^(0.1*V44)) -> 27.81746667
A45: =Grunddaten!C9 -> KSWZUL8002 | B45: =B$8+B$9*LOG(Grunddaten!$G9)+B$10*LOG(Grunddaten!$F9)+B$11*LOG(Grunddaten!$H9) -> 10.4405172 | C45: =C$8+C$9*LOG(Grunddaten!$G9)+C$10*LOG(Grunddaten!$F9)+C$11*LOG(Grunddaten!$H9) -> 10.23266093 | D45: =D$8+D$9*LOG(Grunddaten!$G9)+D$10*LOG(Grunddaten!$F9)+D$11*LOG(Grunddaten!$H9) -> 9.202057632 | E45: =E$8+E$9*LOG(Grunddaten!$G9)+E$10*LOG(Grunddaten!$F9)+E$11*LOG(Grunddaten!$H9) -> 16.93953984 | F45: =F$8+F$9*LOG(Grunddaten!$G9)+F$10*LOG(Grunddaten!$F9)+F$11*LOG(Grunddaten!$H9) -> 23.52594133 | G45: =G$8+G$9*LOG(Grunddaten!$G9)+G$10*LOG(Grunddaten!$F9)+G$11*LOG(Grunddaten!$H9) -> 25.55780168 | H45: =H$8+H$9*LOG(Grunddaten!$G9)+H$10*LOG(Grunddaten!$F9)+H$11*LOG(Grunddaten!$H9) -> 23.65892043 | I45: =I$8+I$9*LOG(Grunddaten!$G9)+I$10*LOG(Grunddaten!$F9)+I$11*LOG(Grunddaten!$H9) -> 22.17596903 | J45: =J$8+J$9*LOG(Grunddaten!$G9)+J$10*LOG(Grunddaten!$F9)+J$11*LOG(Grunddaten!$H9) -> 21.58066176 | K45: =K$8+K$9*LOG(Grunddaten!$G9)+K$10*LOG(Grunddaten!$F9)+K$11*LOG(Grunddaten!$H9) -> 21.41758233 | L45: =L$8+L$9*LOG(Grunddaten!$G9)+L$10*LOG(Grunddaten!$F9)+L$11*LOG(Grunddaten!$H9) -> 20.21299764 | M45: =M$8+M$9*LOG(Grunddaten!$G9)+M$10*LOG(Grunddaten!$F9)+M$11*LOG(Grunddaten!$H9) -> 18.37488718 | N45: =N$8+N$9*LOG(Grunddaten!$G9)+N$10*LOG(Grunddaten!$F9)+N$11*LOG(Grunddaten!$H9) -> 17.12755882 | O45: =O$8+O$9*LOG(Grunddaten!$G9)+O$10*LOG(Grunddaten!$F9)+O$11*LOG(Grunddaten!$H9) -> 15.45967429 | P45: =P$8+P$9*LOG(Grunddaten!$G9)+P$10*LOG(Grunddaten!$F9)+P$11*LOG(Grunddaten!$H9) -> 14.81799865 | Q45: =Q$8+Q$9*LOG(Grunddaten!$G9)+Q$10*LOG(Grunddaten!$F9)+Q$11*LOG(Grunddaten!$H9) -> 13.14442201 | R45: =R$8+R$9*LOG(Grunddaten!$G9)+R$10*LOG(Grunddaten!$F9)+R$11*LOG(Grunddaten!$H9) -> 11.82217405 | S45: =S$8+S$9*LOG(Grunddaten!$G9)+S$10*LOG(Grunddaten!$F9)+S$11*LOG(Grunddaten!$H9) -> 10.4735272 | T45: =T$8+T$9*LOG(Grunddaten!$G9)+T$10*LOG(Grunddaten!$F9)+T$11*LOG(Grunddaten!$H9) -> 10.70157644 | U45: =U$8+U$9*LOG(Grunddaten!$G9)+U$10*LOG(Grunddaten!$F9)+U$11*LOG(Grunddaten!$H9) -> 11.38758757 | V45: =V$8+V$9*LOG(Grunddaten!$G9)+V$10*LOG(Grunddaten!$F9)+V$11*LOG(Grunddaten!$H9) -> 12.67685692 | W45: 32.37000238
A46: =Grunddaten!C10 -> KSWZUL10002 | B46: =B$8+B$9*LOG(Grunddaten!$G10)+B$10*LOG(Grunddaten!$F10)+B$11*LOG(Grunddaten!$H10) -> 11.97947097 | C46: =C$8+C$9*LOG(Grunddaten!$G10)+C$10*LOG(Grunddaten!$F10)+C$11*LOG(Grunddaten!$H10) -> 10.52003118 | D46: =D$8+D$9*LOG(Grunddaten!$G10)+D$10*LOG(Grunddaten!$F10)+D$11*LOG(Grunddaten!$H10) -> 10.12852276 | E46: =E$8+E$9*LOG(Grunddaten!$G10)+E$10*LOG(Grunddaten!$F10)+E$11*LOG(Grunddaten!$H10) -> 13.60448744 | F46: =F$8+F$9*LOG(Grunddaten!$G10)+F$10*LOG(Grunddaten!$F10)+F$11*LOG(Grunddaten!$H10) -> 18.80064367 | G46: =G$8+G$9*LOG(Grunddaten!$G10)+G$10*LOG(Grunddaten!$F10)+G$11*LOG(Grunddaten!$H10) -> 19.30831215 | H46: =H$8+H$9*LOG(Grunddaten!$G10)+H$10*LOG(Grunddaten!$F10)+H$11*LOG(Grunddaten!$H10) -> 18.44816065 | I46: =I$8+I$9*LOG(Grunddaten!$G10)+I$10*LOG(Grunddaten!$F10)+I$11*LOG(Grunddaten!$H10) -> 17.41381373 | J46: =J$8+J$9*LOG(Grunddaten!$G10)+J$10*LOG(Grunddaten!$F10)+J$11*LOG(Grunddaten!$H10) -> 17.48763857 | K46: =K$8+K$9*LOG(Grunddaten!$G10)+K$10*LOG(Grunddaten!$F10)+K$11*LOG(Grunddaten!$H10) -> 16.98042393 | L46: =L$8+L$9*LOG(Grunddaten!$G10)+L$10*LOG(Grunddaten!$F10)+L$11*LOG(Grunddaten!$H10) -> 15.28409303 | M46: =M$8+M$9*LOG(Grunddaten!$G10)+M$10*LOG(Grunddaten!$F10)+M$11*LOG(Grunddaten!$H10) -> 13.1431277 | N46: =N$8+N$9*LOG(Grunddaten!$G10)+N$10*LOG(Grunddaten!$F10)+N$11*LOG(Grunddaten!$H10) -> 11.07752949 | O46: =O$8+O$9*LOG(Grunddaten!$G10)+O$10*LOG(Grunddaten!$F10)+O$11*LOG(Grunddaten!$H10) -> 10.02994599 | P46: =P$8+P$9*LOG(Grunddaten!$G10)+P$10*LOG(Grunddaten!$F10)+P$11*LOG(Grunddaten!$H10) -> 10.81682576 | Q46: =Q$8+Q$9*LOG(Grunddaten!$G10)+Q$10*LOG(Grunddaten!$F10)+Q$11*LOG(Grunddaten!$H10) -> 10.80628048 | R46: =R$8+R$9*LOG(Grunddaten!$G10)+R$10*LOG(Grunddaten!$F10)+R$11*LOG(Grunddaten!$H10) -> 11.11928827 | S46: =S$8+S$9*LOG(Grunddaten!$G10)+S$10*LOG(Grunddaten!$F10)+S$11*LOG(Grunddaten!$H10) -> 11.00792289 | T46: =T$8+T$9*LOG(Grunddaten!$G10)+T$10*LOG(Grunddaten!$F10)+T$11*LOG(Grunddaten!$H10) -> 11.82446925 | U46: =U$8+U$9*LOG(Grunddaten!$G10)+U$10*LOG(Grunddaten!$F10)+U$11*LOG(Grunddaten!$H10) -> 12.81053001 | V46: =V$8+V$9*LOG(Grunddaten!$G10)+V$10*LOG(Grunddaten!$F10)+V$11*LOG(Grunddaten!$H10) -> 14.04769834 | W46: 28.05584276
A47: =Grunddaten!C11 -> KSWZUL12002 | B47: =B$8+B$9*LOG(Grunddaten!$G11)+B$10*LOG(Grunddaten!$F11)+B$11*LOG(Grunddaten!$H11) -> 11.8046517 | C47: =C$8+C$9*LOG(Grunddaten!$G11)+C$10*LOG(Grunddaten!$F11)+C$11*LOG(Grunddaten!$H11) -> 11.81094922 | D47: =D$8+D$9*LOG(Grunddaten!$G11)+D$10*LOG(Grunddaten!$F11)+D$11*LOG(Grunddaten!$H11) -> 10.64944355 | E47: =E$8+E$9*LOG(Grunddaten!$G11)+E$10*LOG(Grunddaten!$F11)+E$11*LOG(Grunddaten!$H11) -> 15.09941551 | F47: =F$8+F$9*LOG(Grunddaten!$G11)+F$10*LOG(Grunddaten!$F11)+F$11*LOG(Grunddaten!$H11) -> 17.92628113 | G47: =G$8+G$9*LOG(Grunddaten!$G11)+G$10*LOG(Grunddaten!$F11)+G$11*LOG(Grunddaten!$H11) -> 18.50850763 | H47: =H$8+H$9*LOG(Grunddaten!$G11)+H$10*LOG(Grunddaten!$F11)+H$11*LOG(Grunddaten!$H11) -> 17.50590839 | I47: =I$8+I$9*LOG(Grunddaten!$G11)+I$10*LOG(Grunddaten!$F11)+I$11*LOG(Grunddaten!$H11) -> 15.2123828 | J47: =J$8+J$9*LOG(Grunddaten!$G11)+J$10*LOG(Grunddaten!$F11)+J$11*LOG(Grunddaten!$H11) -> 15.51449721 | K47: =K$8+K$9*LOG(Grunddaten!$G11)+K$10*LOG(Grunddaten!$F11)+K$11*LOG(Grunddaten!$H11) -> 14.78975482 | L47: =L$8+L$9*LOG(Grunddaten!$G11)+L$10*LOG(Grunddaten!$F11)+L$11*LOG(Grunddaten!$H11) -> 12.45582397 | M47: =M$8+M$9*LOG(Grunddaten!$G11)+M$10*LOG(Grunddaten!$F11)+M$11*LOG(Grunddaten!$H11) -> 10.57814965 | N47: =N$8+N$9*LOG(Grunddaten!$G11)+N$10*LOG(Grunddaten!$F11)+N$11*LOG(Grunddaten!$H11) -> 9.137871737 | O47: =O$8+O$9*LOG(Grunddaten!$G11)+O$10*LOG(Grunddaten!$F11)+O$11*LOG(Grunddaten!$H11) -> 8.470292187 | P47: =P$8+P$9*LOG(Grunddaten!$G11)+P$10*LOG(Grunddaten!$F11)+P$11*LOG(Grunddaten!$H11) -> 9.240794569 | Q47: =Q$8+Q$9*LOG(Grunddaten!$G11)+Q$10*LOG(Grunddaten!$F11)+Q$11*LOG(Grunddaten!$H11) -> 9.575118233 | R47: =R$8+R$9*LOG(Grunddaten!$G11)+R$10*LOG(Grunddaten!$F11)+R$11*LOG(Grunddaten!$H11) -> 9.993097216 | S47: =S$8+S$9*LOG(Grunddaten!$G11)+S$10*LOG(Grunddaten!$F11)+S$11*LOG(Grunddaten!$H11) -> 10.45567431 | T47: =T$8+T$9*LOG(Grunddaten!$G11)+T$10*LOG(Grunddaten!$F11)+T$11*LOG(Grunddaten!$H11) -> 11.77158198 | U47: =U$8+U$9*LOG(Grunddaten!$G11)+U$10*LOG(Grunddaten!$F11)+U$11*LOG(Grunddaten!$H11) -> 12.93613664 | V47: =V$8+V$9*LOG(Grunddaten!$G11)+V$10*LOG(Grunddaten!$F11)+V$11*LOG(Grunddaten!$H11) -> 14.22459296 | W47: 27.04553519
A48: =Grunddaten!C12 -> KSWABL5001 | B48: =B50 -> 11.33355651 | C48: =C50 -> 11.4587439 | D48: 14.22230461 | E48: 22.5996107 | F48: 29.34418592 | G48: 27.60689041 | H48: 27.3408921 | I48: 26.41717204 | J48: 29.20669114 | K48: 30.13359472 | L48: 27.33685111 | M48: 23.80323281 | N48: 22.05616631 | O48: 20.15103737 | P48: 19.89664924 | Q48: 20.66622398 | R48: 17.64365807 | S48: 14.00608125 | T48: 13.05969658 | U48: 13.15168529 | V48: 14.33694396 | W48: 37.72917063
A49: =Grunddaten!C13 -> KSWABL8001 | B49: =B$12+B$13*LOG(Grunddaten!$G13)+B$14*LOG(Grunddaten!$F13)+B$15*LOG(Grunddaten!$H13) -> 12.86052729 | C49: =C$12+C$13*LOG(Grunddaten!$G13)+C$14*LOG(Grunddaten!$F13)+C$15*LOG(Grunddaten!$H13) -> 11.45688745 | D49: =D$12+D$13*LOG(Grunddaten!$G13)+D$14*LOG(Grunddaten!$F13)+D$15*LOG(Grunddaten!$H13) -> 16.27413141 | E49: =E$12+E$13*LOG(Grunddaten!$G13)+E$14*LOG(Grunddaten!$F13)+E$15*LOG(Grunddaten!$H13) -> 25.24671039 | F49: =F$12+F$13*LOG(Grunddaten!$G13)+F$14*LOG(Grunddaten!$F13)+F$15*LOG(Grunddaten!$H13) -> 30.41291615 | G49: =G$12+G$13*LOG(Grunddaten!$G13)+G$14*LOG(Grunddaten!$F13)+G$15*LOG(Grunddaten!$H13) -> 29.09330578 | H49: =H$12+H$13*LOG(Grunddaten!$G13)+H$14*LOG(Grunddaten!$F13)+H$15*LOG(Grunddaten!$H13) -> 29.46245584 | I49: =I$12+I$13*LOG(Grunddaten!$G13)+I$14*LOG(Grunddaten!$F13)+I$15*LOG(Grunddaten!$H13) -> 29.33056334 | J49: =J$12+J$13*LOG(Grunddaten!$G13)+J$14*LOG(Grunddaten!$F13)+J$15*LOG(Grunddaten!$H13) -> 32.25077091 | K49: =K$12+K$13*LOG(Grunddaten!$G13)+K$14*LOG(Grunddaten!$F13)+K$15*LOG(Grunddaten!$H13) -> 32.16096521 | L49: =L$12+L$13*LOG(Grunddaten!$G13)+L$14*LOG(Grunddaten!$F13)+L$15*LOG(Grunddaten!$H13) -> 30.55253343 | M49: =M$12+M$13*LOG(Grunddaten!$G13)+M$14*LOG(Grunddaten!$F13)+M$15*LOG(Grunddaten!$H13) -> 27.39823346 | N49: =N$12+N$13*LOG(Grunddaten!$G13)+N$14*LOG(Grunddaten!$F13)+N$15*LOG(Grunddaten!$H13) -> 25.57609955 | O49: =O$12+O$13*LOG(Grunddaten!$G13)+O$14*LOG(Grunddaten!$F13)+O$15*LOG(Grunddaten!$H13) -> 23.15710673 | P49: =P$12+P$13*LOG(Grunddaten!$G13)+P$14*LOG(Grunddaten!$F13)+P$15*LOG(Grunddaten!$H13) -> 22.64144047 | Q49: =Q$12+Q$13*LOG(Grunddaten!$G13)+Q$14*LOG(Grunddaten!$F13)+Q$15*LOG(Grunddaten!$H13) -> 23.03822789 | R49: =R$12+R$13*LOG(Grunddaten!$G13)+R$14*LOG(Grunddaten!$F13)+R$15*LOG(Grunddaten!$H13) -> 19.42025314 | S49: =S$12+S$13*LOG(Grunddaten!$G13)+S$14*LOG(Grunddaten!$F13)+S$15*LOG(Grunddaten!$H13) -> 14.97417989 | T49: =T$12+T$13*LOG(Grunddaten!$G13)+T$14*LOG(Grunddaten!$F13)+T$15*LOG(Grunddaten!$H13) -> 13.54015611 | U49: =U$12+U$13*LOG(Grunddaten!$G13)+U$14*LOG(Grunddaten!$F13)+U$15*LOG(Grunddaten!$H13) -> 13.17653013 | V49: =V$12+V$13*LOG(Grunddaten!$G13)+V$14*LOG(Grunddaten!$F13)+V$15*LOG(Grunddaten!$H13) -> 14.31648664 | W49: 40.09179011
A50: =Grunddaten!C14 -> KSWABL10001 | B50: =B$12+B$13*LOG(Grunddaten!$G14)+B$14*LOG(Grunddaten!$F14)+B$15*LOG(Grunddaten!$H14) -> 11.33355651 | C50: =C$12+C$13*LOG(Grunddaten!$G14)+C$14*LOG(Grunddaten!$F14)+C$15*LOG(Grunddaten!$H14) -> 11.4587439 | D50: =D$12+D$13*LOG(Grunddaten!$G14)+D$14*LOG(Grunddaten!$F14)+D$15*LOG(Grunddaten!$H14) -> 14.22230461 | E50: =E$12+E$13*LOG(Grunddaten!$G14)+E$14*LOG(Grunddaten!$F14)+E$15*LOG(Grunddaten!$H14) -> 22.5996107 | F50: =F$12+F$13*LOG(Grunddaten!$G14)+F$14*LOG(Grunddaten!$F14)+F$15*LOG(Grunddaten!$H14) -> 29.34418592 | G50: =G$12+G$13*LOG(Grunddaten!$G14)+G$14*LOG(Grunddaten!$F14)+G$15*LOG(Grunddaten!$H14) -> 27.60689041 | H50: =H$12+H$13*LOG(Grunddaten!$G14)+H$14*LOG(Grunddaten!$F14)+H$15*LOG(Grunddaten!$H14) -> 27.3408921 | I50: =I$12+I$13*LOG(Grunddaten!$G14)+I$14*LOG(Grunddaten!$F14)+I$15*LOG(Grunddaten!$H14) -> 26.41717204 | J50: =J$12+J$13*LOG(Grunddaten!$G14)+J$14*LOG(Grunddaten!$F14)+J$15*LOG(Grunddaten!$H14) -> 29.20669114 | K50: =K$12+K$13*LOG(Grunddaten!$G14)+K$14*LOG(Grunddaten!$F14)+K$15*LOG(Grunddaten!$H14) -> 30.13359472 | L50: =L$12+L$13*LOG(Grunddaten!$G14)+L$14*LOG(Grunddaten!$F14)+L$15*LOG(Grunddaten!$H14) -> 27.33685111 | M50: =M$12+M$13*LOG(Grunddaten!$G14)+M$14*LOG(Grunddaten!$F14)+M$15*LOG(Grunddaten!$H14) -> 23.80323281 | N50: =N$12+N$13*LOG(Grunddaten!$G14)+N$14*LOG(Grunddaten!$F14)+N$15*LOG(Grunddaten!$H14) -> 22.05616631 | O50: =O$12+O$13*LOG(Grunddaten!$G14)+O$14*LOG(Grunddaten!$F14)+O$15*LOG(Grunddaten!$H14) -> 20.15103737 | P50: =P$12+P$13*LOG(Grunddaten!$G14)+P$14*LOG(Grunddaten!$F14)+P$15*LOG(Grunddaten!$H14) -> 19.89664924 | Q50: =Q$12+Q$13*LOG(Grunddaten!$G14)+Q$14*LOG(Grunddaten!$F14)+Q$15*LOG(Grunddaten!$H14) -> 20.66622398 | R50: =R$12+R$13*LOG(Grunddaten!$G14)+R$14*LOG(Grunddaten!$F14)+R$15*LOG(Grunddaten!$H14) -> 17.64365807 | S50: =S$12+S$13*LOG(Grunddaten!$G14)+S$14*LOG(Grunddaten!$F14)+S$15*LOG(Grunddaten!$H14) -> 14.00608125 | T50: =T$12+T$13*LOG(Grunddaten!$G14)+T$14*LOG(Grunddaten!$F14)+T$15*LOG(Grunddaten!$H14) -> 13.05969658 | U50: =U$12+U$13*LOG(Grunddaten!$G14)+U$14*LOG(Grunddaten!$F14)+U$15*LOG(Grunddaten!$H14) -> 13.15168529 | V50: =V$12+V$13*LOG(Grunddaten!$G14)+V$14*LOG(Grunddaten!$F14)+V$15*LOG(Grunddaten!$H14) -> 14.33694396 | W50: 37.72917063
A51: =Grunddaten!C15 -> KSWABL12001 | B51: =B$12+B$13*LOG(Grunddaten!$G15)+B$14*LOG(Grunddaten!$F15)+B$15*LOG(Grunddaten!$H15) -> 10.68250601 | C51: =C$12+C$13*LOG(Grunddaten!$G15)+C$14*LOG(Grunddaten!$F15)+C$15*LOG(Grunddaten!$H15) -> 11.06252499 | D51: =D$12+D$13*LOG(Grunddaten!$G15)+D$14*LOG(Grunddaten!$F15)+D$15*LOG(Grunddaten!$H15) -> 14.3172058 | E51: =E$12+E$13*LOG(Grunddaten!$G15)+E$14*LOG(Grunddaten!$F15)+E$15*LOG(Grunddaten!$H15) -> 22.44094835 | F51: =F$12+F$13*LOG(Grunddaten!$G15)+F$14*LOG(Grunddaten!$F15)+F$15*LOG(Grunddaten!$H15) -> 27.77242592 | G51: =G$12+G$13*LOG(Grunddaten!$G15)+G$14*LOG(Grunddaten!$F15)+G$15*LOG(Grunddaten!$H15) -> 26.72042935 | H51: =H$12+H$13*LOG(Grunddaten!$G15)+H$14*LOG(Grunddaten!$F15)+H$15*LOG(Grunddaten!$H15) -> 25.1404334 | I51: =I$12+I$13*LOG(Grunddaten!$G15)+I$14*LOG(Grunddaten!$F15)+I$15*LOG(Grunddaten!$H15) -> 23.74897414 | J51: =J$12+J$13*LOG(Grunddaten!$G15)+J$14*LOG(Grunddaten!$F15)+J$15*LOG(Grunddaten!$H15) -> 26.85734269 | K51: =K$12+K$13*LOG(Grunddaten!$G15)+K$14*LOG(Grunddaten!$F15)+K$15*LOG(Grunddaten!$H15) -> 27.47768697 | L51: =L$12+L$13*LOG(Grunddaten!$G15)+L$14*LOG(Grunddaten!$F15)+L$15*LOG(Grunddaten!$H15) -> 24.10735166 | M51: =M$12+M$13*LOG(Grunddaten!$G15)+M$14*LOG(Grunddaten!$F15)+M$15*LOG(Grunddaten!$H15) -> 20.83489298 | N51: =N$12+N$13*LOG(Grunddaten!$G15)+N$14*LOG(Grunddaten!$F15)+N$15*LOG(Grunddaten!$H15) -> 19.12172496 | O51: =O$12+O$13*LOG(Grunddaten!$G15)+O$14*LOG(Grunddaten!$F15)+O$15*LOG(Grunddaten!$H15) -> 17.36202683 | P51: =P$12+P$13*LOG(Grunddaten!$G15)+P$14*LOG(Grunddaten!$F15)+P$15*LOG(Grunddaten!$H15) -> 17.31413837 | Q51: =Q$12+Q$13*LOG(Grunddaten!$G15)+Q$14*LOG(Grunddaten!$F15)+Q$15*LOG(Grunddaten!$H15) -> 18.43085949 | R51: =R$12+R$13*LOG(Grunddaten!$G15)+R$14*LOG(Grunddaten!$F15)+R$15*LOG(Grunddaten!$H15) -> 15.82692663 | S51: =S$12+S$13*LOG(Grunddaten!$G15)+S$14*LOG(Grunddaten!$F15)+S$15*LOG(Grunddaten!$H15) -> 12.96702143 | T51: =T$12+T$13*LOG(Grunddaten!$G15)+T$14*LOG(Grunddaten!$F15)+T$15*LOG(Grunddaten!$H15) -> 12.66409385 | U51: =U$12+U$13*LOG(Grunddaten!$G15)+U$14*LOG(Grunddaten!$F15)+U$15*LOG(Grunddaten!$H15) -> 13.10341617 | V51: =V$12+V$13*LOG(Grunddaten!$G15)+V$14*LOG(Grunddaten!$F15)+V$15*LOG(Grunddaten!$H15) -> 14.36389006 | W51: 35.64242968
A52: =Grunddaten!C16 -> KSWABL5002 | B52: =B54 -> 7.90791953 | C52: =C54 -> 9.173047462 | D52: 8.609338251 | E52: 13.48885143 | F52: 18.76486934 | G52: 20.90271809 | H52: 20.57134874 | I52: 16.7286515 | J52: 17.00273762 | K52: 16.12340918 | L52: 12.66683623 | M52: 10.56219662 | N52: 9.221405908 | O52: 9.159781307 | P52: 10.15794412 | Q52: 10.62097631 | R52: 10.89402032 | S52: 10.83751064 | T52: 11.89380438 | U52: 12.99447867 | V52: 14.25686809 | W52: 28.12552116
A53: =Grunddaten!C17 -> KSWABL8002 | B53: =B$16+B$17*LOG(Grunddaten!$G17)+B$18*LOG(Grunddaten!$F17)+B$19*LOG(Grunddaten!$H17) -> 9.546881858 | C53: =C$16+C$17*LOG(Grunddaten!$G17)+C$18*LOG(Grunddaten!$F17)+C$19*LOG(Grunddaten!$H17) -> 11.15440402 | D53: =D$16+D$17*LOG(Grunddaten!$G17)+D$18*LOG(Grunddaten!$F17)+D$19*LOG(Grunddaten!$H17) -> 9.968837333 | E53: =E$16+E$17*LOG(Grunddaten!$G17)+E$18*LOG(Grunddaten!$F17)+E$19*LOG(Grunddaten!$H17) -> 17.11634993 | F53: =F$16+F$17*LOG(Grunddaten!$G17)+F$18*LOG(Grunddaten!$F17)+F$19*LOG(Grunddaten!$H17) -> 22.73194916 | G53: =G$16+G$17*LOG(Grunddaten!$G17)+G$18*LOG(Grunddaten!$F17)+G$19*LOG(Grunddaten!$H17) -> 23.53152107 | H53: =H$16+H$17*LOG(Grunddaten!$G17)+H$18*LOG(Grunddaten!$F17)+H$19*LOG(Grunddaten!$H17) -> 22.15662035 | I53: =I$16+I$17*LOG(Grunddaten!$G17)+I$18*LOG(Grunddaten!$F17)+I$19*LOG(Grunddaten!$H17) -> 21.71624371 | J53: =J$16+J$17*LOG(Grunddaten!$G17)+J$18*LOG(Grunddaten!$F17)+J$19*LOG(Grunddaten!$H17) -> 22.35389643 | K53: =K$16+K$17*LOG(Grunddaten!$G17)+K$18*LOG(Grunddaten!$F17)+K$19*LOG(Grunddaten!$H17) -> 21.70464235 | L53: =L$16+L$17*LOG(Grunddaten!$G17)+L$18*LOG(Grunddaten!$F17)+L$19*LOG(Grunddaten!$H17) -> 19.3326952 | M53: =M$16+M$17*LOG(Grunddaten!$G17)+M$18*LOG(Grunddaten!$F17)+M$19*LOG(Grunddaten!$H17) -> 16.46129982 | N53: =N$16+N$17*LOG(Grunddaten!$G17)+N$18*LOG(Grunddaten!$F17)+N$19*LOG(Grunddaten!$H17) -> 14.70583602 | O53: =O$16+O$17*LOG(Grunddaten!$G17)+O$18*LOG(Grunddaten!$F17)+O$19*LOG(Grunddaten!$H17) -> 13.74800438 | P53: =P$16+P$17*LOG(Grunddaten!$G17)+P$18*LOG(Grunddaten!$F17)+P$19*LOG(Grunddaten!$H17) -> 13.44232692 | Q53: =Q$16+Q$17*LOG(Grunddaten!$G17)+Q$18*LOG(Grunddaten!$F17)+Q$19*LOG(Grunddaten!$H17) -> 12.85552669 | R53: =R$16+R$17*LOG(Grunddaten!$G17)+R$18*LOG(Grunddaten!$F17)+R$19*LOG(Grunddaten!$H17) -> 12.06848193 | S53: =S$16+S$17*LOG(Grunddaten!$G17)+S$18*LOG(Grunddaten!$F17)+S$19*LOG(Grunddaten!$H17) -> 11.35237958 | T53: =T$16+T$17*LOG(Grunddaten!$G17)+T$18*LOG(Grunddaten!$F17)+T$19*LOG(Grunddaten!$H17) -> 12.05450595 | U53: =U$16+U$17*LOG(Grunddaten!$G17)+U$18*LOG(Grunddaten!$F17)+U$19*LOG(Grunddaten!$H17) -> 13.04620763 | V53: =V$16+V$17*LOG(Grunddaten!$G17)+V$18*LOG(Grunddaten!$F17)+V$19*LOG(Grunddaten!$H17) -> 14.44492795 | W53: 31.60711718
A54: =Grunddaten!C18 -> KSWABL10002 | B54: =B$16+B$17*LOG(Grunddaten!$G18)+B$18*LOG(Grunddaten!$F18)+B$19*LOG(Grunddaten!$H18) -> 7.90791953 | C54: =C$16+C$17*LOG(Grunddaten!$G18)+C$18*LOG(Grunddaten!$F18)+C$19*LOG(Grunddaten!$H18) -> 9.173047462 | D54: =D$16+D$17*LOG(Grunddaten!$G18)+D$18*LOG(Grunddaten!$F18)+D$19*LOG(Grunddaten!$H18) -> 8.609338251 | E54: =E$16+E$17*LOG(Grunddaten!$G18)+E$18*LOG(Grunddaten!$F18)+E$19*LOG(Grunddaten!$H18) -> 13.48885143 | F54: =F$16+F$17*LOG(Grunddaten!$G18)+F$18*LOG(Grunddaten!$F18)+F$19*LOG(Grunddaten!$H18) -> 18.76486934 | G54: =G$16+G$17*LOG(Grunddaten!$G18)+G$18*LOG(Grunddaten!$F18)+G$19*LOG(Grunddaten!$H18) -> 20.90271809 | H54: =H$16+H$17*LOG(Grunddaten!$G18)+H$18*LOG(Grunddaten!$F18)+H$19*LOG(Grunddaten!$H18) -> 20.57134874 | I54: =I$16+I$17*LOG(Grunddaten!$G18)+I$18*LOG(Grunddaten!$F18)+I$19*LOG(Grunddaten!$H18) -> 16.7286515 | J54: =J$16+J$17*LOG(Grunddaten!$G18)+J$18*LOG(Grunddaten!$F18)+J$19*LOG(Grunddaten!$H18) -> 17.00273762 | K54: =K$16+K$17*LOG(Grunddaten!$G18)+K$18*LOG(Grunddaten!$F18)+K$19*LOG(Grunddaten!$H18) -> 16.12340918 | L54: =L$16+L$17*LOG(Grunddaten!$G18)+L$18*LOG(Grunddaten!$F18)+L$19*LOG(Grunddaten!$H18) -> 12.66683623 | M54: =M$16+M$17*LOG(Grunddaten!$G18)+M$18*LOG(Grunddaten!$F18)+M$19*LOG(Grunddaten!$H18) -> 10.56219662 | N54: =N$16+N$17*LOG(Grunddaten!$G18)+N$18*LOG(Grunddaten!$F18)+N$19*LOG(Grunddaten!$H18) -> 9.221405908 | O54: =O$16+O$17*LOG(Grunddaten!$G18)+O$18*LOG(Grunddaten!$F18)+O$19*LOG(Grunddaten!$H18) -> 9.159781307 | P54: =P$16+P$17*LOG(Grunddaten!$G18)+P$18*LOG(Grunddaten!$F18)+P$19*LOG(Grunddaten!$H18) -> 10.15794412 | Q54: =Q$16+Q$17*LOG(Grunddaten!$G18)+Q$18*LOG(Grunddaten!$F18)+Q$19*LOG(Grunddaten!$H18) -> 10.62097631 | R54: =R$16+R$17*LOG(Grunddaten!$G18)+R$18*LOG(Grunddaten!$F18)+R$19*LOG(Grunddaten!$H18) -> 10.89402032 | S54: =S$16+S$17*LOG(Grunddaten!$G18)+S$18*LOG(Grunddaten!$F18)+S$19*LOG(Grunddaten!$H18) -> 10.83751064 | T54: =T$16+T$17*LOG(Grunddaten!$G18)+T$18*LOG(Grunddaten!$F18)+T$19*LOG(Grunddaten!$H18) -> 11.89380438 | U54: =U$16+U$17*LOG(Grunddaten!$G18)+U$18*LOG(Grunddaten!$F18)+U$19*LOG(Grunddaten!$H18) -> 12.99447867 | V54: =V$16+V$17*LOG(Grunddaten!$G18)+V$18*LOG(Grunddaten!$F18)+V$19*LOG(Grunddaten!$H18) -> 14.25686809 | W54: 28.12552116
A55: =Grunddaten!C19 -> KSWABL12002 | B55: =B$16+B$17*LOG(Grunddaten!$G19)+B$18*LOG(Grunddaten!$F19)+B$19*LOG(Grunddaten!$H19) -> 6.155944312 | C55: =C$16+C$17*LOG(Grunddaten!$G19)+C$18*LOG(Grunddaten!$F19)+C$19*LOG(Grunddaten!$H19) -> 8.643543366 | D55: =D$16+D$17*LOG(Grunddaten!$G19)+D$18*LOG(Grunddaten!$F19)+D$19*LOG(Grunddaten!$H19) -> 6.226331399 | E55: =E$16+E$17*LOG(Grunddaten!$G19)+E$18*LOG(Grunddaten!$F19)+E$19*LOG(Grunddaten!$H19) -> 11.53216497 | F55: =F$16+F$17*LOG(Grunddaten!$G19)+F$18*LOG(Grunddaten!$F19)+F$19*LOG(Grunddaten!$H19) -> 16.81938304 | G55: =G$16+G$17*LOG(Grunddaten!$G19)+G$18*LOG(Grunddaten!$F19)+G$19*LOG(Grunddaten!$H19) -> 16.35694346 | H55: =H$16+H$17*LOG(Grunddaten!$G19)+H$18*LOG(Grunddaten!$F19)+H$19*LOG(Grunddaten!$H19) -> 14.74380314 | I55: =I$16+I$17*LOG(Grunddaten!$G19)+I$18*LOG(Grunddaten!$F19)+I$19*LOG(Grunddaten!$H19) -> 12.17907814 | J55: =J$16+J$17*LOG(Grunddaten!$G19)+J$18*LOG(Grunddaten!$F19)+J$19*LOG(Grunddaten!$H19) -> 11.32671389 | K55: =K$16+K$17*LOG(Grunddaten!$G19)+K$18*LOG(Grunddaten!$F19)+K$19*LOG(Grunddaten!$H19) -> 9.27806236 | L55: =L$16+L$17*LOG(Grunddaten!$G19)+L$18*LOG(Grunddaten!$F19)+L$19*LOG(Grunddaten!$H19) -> 7.445502192 | M55: =M$16+M$17*LOG(Grunddaten!$G19)+M$18*LOG(Grunddaten!$F19)+M$19*LOG(Grunddaten!$H19) -> 6.139656393 | N55: =N$16+N$17*LOG(Grunddaten!$G19)+N$18*LOG(Grunddaten!$F19)+N$19*LOG(Grunddaten!$H19) -> 5.717473795 | O55: =O$16+O$17*LOG(Grunddaten!$G19)+O$18*LOG(Grunddaten!$F19)+O$19*LOG(Grunddaten!$H19) -> 6.360751681 | P55: =P$16+P$17*LOG(Grunddaten!$G19)+P$18*LOG(Grunddaten!$F19)+P$19*LOG(Grunddaten!$H19) -> 7.331772305 | Q55: =Q$16+Q$17*LOG(Grunddaten!$G19)+Q$18*LOG(Grunddaten!$F19)+Q$19*LOG(Grunddaten!$H19) -> 8.513233361 | R55: =R$16+R$17*LOG(Grunddaten!$G19)+R$18*LOG(Grunddaten!$F19)+R$19*LOG(Grunddaten!$H19) -> 9.945371733 | S55: =S$16+S$17*LOG(Grunddaten!$G19)+S$18*LOG(Grunddaten!$F19)+S$19*LOG(Grunddaten!$H19) -> 10.62053973 | T55: =T$16+T$17*LOG(Grunddaten!$G19)+T$18*LOG(Grunddaten!$F19)+T$19*LOG(Grunddaten!$H19) -> 11.82839603 | U55: =U$16+U$17*LOG(Grunddaten!$G19)+U$18*LOG(Grunddaten!$F19)+U$19*LOG(Grunddaten!$H19) -> 12.97789908 | V55: =V$16+V$17*LOG(Grunddaten!$G19)+V$18*LOG(Grunddaten!$F19)+V$19*LOG(Grunddaten!$H19) -> 14.3778929 | W55: 24.82396646
A56: =Grunddaten!C20 -> KSW-1LWZUL8001 | B56: =B$20+B$21*LOG(Grunddaten!$G20)+B$22*LOG(Grunddaten!$F20)+B$23*LOG(Grunddaten!$H20) -> 5.593940181 | C56: =C$20+C$21*LOG(Grunddaten!$G20)+C$22*LOG(Grunddaten!$F20)+C$23*LOG(Grunddaten!$H20) -> 6.849902847 | D56: =D$20+D$21*LOG(Grunddaten!$G20)+D$22*LOG(Grunddaten!$F20)+D$23*LOG(Grunddaten!$H20) -> 7.784507613 | E56: =E$20+E$21*LOG(Grunddaten!$G20)+E$22*LOG(Grunddaten!$F20)+E$23*LOG(Grunddaten!$H20) -> 14.4929058 | F56: =F$20+F$21*LOG(Grunddaten!$G20)+F$22*LOG(Grunddaten!$F20)+F$23*LOG(Grunddaten!$H20) -> 15.97632491 | G56: =G$20+G$21*LOG(Grunddaten!$G20)+G$22*LOG(Grunddaten!$F20)+G$23*LOG(Grunddaten!$H20) -> 15.04787452 | H56: =H$20+H$21*LOG(Grunddaten!$G20)+H$22*LOG(Grunddaten!$F20)+H$23*LOG(Grunddaten!$H20) -> 11.90907578 | I56: =I$20+I$21*LOG(Grunddaten!$G20)+I$22*LOG(Grunddaten!$F20)+I$23*LOG(Grunddaten!$H20) -> 13.36955903 | J56: =J$20+J$21*LOG(Grunddaten!$G20)+J$22*LOG(Grunddaten!$F20)+J$23*LOG(Grunddaten!$H20) -> 15.88585047 | K56: =K$20+K$21*LOG(Grunddaten!$G20)+K$22*LOG(Grunddaten!$F20)+K$23*LOG(Grunddaten!$H20) -> 14.43169845 | L56: =L$20+L$21*LOG(Grunddaten!$G20)+L$22*LOG(Grunddaten!$F20)+L$23*LOG(Grunddaten!$H20) -> 12.66758692 | M56: =M$20+M$21*LOG(Grunddaten!$G20)+M$22*LOG(Grunddaten!$F20)+M$23*LOG(Grunddaten!$H20) -> 9.774190981 | N56: =N$20+N$21*LOG(Grunddaten!$G20)+N$22*LOG(Grunddaten!$F20)+N$23*LOG(Grunddaten!$H20) -> 7.697865438 | O56: =O$20+O$21*LOG(Grunddaten!$G20)+O$22*LOG(Grunddaten!$F20)+O$23*LOG(Grunddaten!$H20) -> 5.954213665 | P56: =P$20+P$21*LOG(Grunddaten!$G20)+P$22*LOG(Grunddaten!$F20)+P$23*LOG(Grunddaten!$H20) -> 6.297814174 | Q56: =Q$20+Q$21*LOG(Grunddaten!$G20)+Q$22*LOG(Grunddaten!$F20)+Q$23*LOG(Grunddaten!$H20) -> 6.850552775 | R56: =R$20+R$21*LOG(Grunddaten!$G20)+R$22*LOG(Grunddaten!$F20)+R$23*LOG(Grunddaten!$H20) -> 7.749436023 | S56: =S$20+S$21*LOG(Grunddaten!$G20)+S$22*LOG(Grunddaten!$F20)+S$23*LOG(Grunddaten!$H20) -> 9.8328838 | T56: =T$20+T$21*LOG(Grunddaten!$G20)+T$22*LOG(Grunddaten!$F20)+T$23*LOG(Grunddaten!$H20) -> 13.01915329 | U56: =U$20+U$21*LOG(Grunddaten!$G20)+U$22*LOG(Grunddaten!$F20)+U$23*LOG(Grunddaten!$H20) -> 15.15188933 | V56: =V$20+V$21*LOG(Grunddaten!$G20)+V$22*LOG(Grunddaten!$F20)+V$23*LOG(Grunddaten!$H20) -> 16.57427728 | W56: 25.78246285
A57: =Grunddaten!C21 -> KSW-1LWZUL10001 | B57: =B$20+B$21*LOG(Grunddaten!$G21)+B$22*LOG(Grunddaten!$F21)+B$23*LOG(Grunddaten!$H21) -> 4.22409595 | C57: =C$20+C$21*LOG(Grunddaten!$G21)+C$22*LOG(Grunddaten!$F21)+C$23*LOG(Grunddaten!$H21) -> 6.238933477 | D57: =D$20+D$21*LOG(Grunddaten!$G21)+D$22*LOG(Grunddaten!$F21)+D$23*LOG(Grunddaten!$H21) -> 7.838011588 | E57: =E$20+E$21*LOG(Grunddaten!$G21)+E$22*LOG(Grunddaten!$F21)+E$23*LOG(Grunddaten!$H21) -> 11.12959216 | F57: =F$20+F$21*LOG(Grunddaten!$G21)+F$22*LOG(Grunddaten!$F21)+F$23*LOG(Grunddaten!$H21) -> 12.60662733 | G57: =G$20+G$21*LOG(Grunddaten!$G21)+G$22*LOG(Grunddaten!$F21)+G$23*LOG(Grunddaten!$H21) -> 10.99471721 | H57: =H$20+H$21*LOG(Grunddaten!$G21)+H$22*LOG(Grunddaten!$F21)+H$23*LOG(Grunddaten!$H21) -> 9.345211448 | I57: =I$20+I$21*LOG(Grunddaten!$G21)+I$22*LOG(Grunddaten!$F21)+I$23*LOG(Grunddaten!$H21) -> 8.65995786 | J57: =J$20+J$21*LOG(Grunddaten!$G21)+J$22*LOG(Grunddaten!$F21)+J$23*LOG(Grunddaten!$H21) -> 9.531305517 | K57: =K$20+K$21*LOG(Grunddaten!$G21)+K$22*LOG(Grunddaten!$F21)+K$23*LOG(Grunddaten!$H21) -> 7.409171283 | L57: =L$20+L$21*LOG(Grunddaten!$G21)+L$22*LOG(Grunddaten!$F21)+L$23*LOG(Grunddaten!$H21) -> 5.08009817 | M57: =M$20+M$21*LOG(Grunddaten!$G21)+M$22*LOG(Grunddaten!$F21)+M$23*LOG(Grunddaten!$H21) -> 1.314867451 | N57: =N$20+N$21*LOG(Grunddaten!$G21)+N$22*LOG(Grunddaten!$F21)+N$23*LOG(Grunddaten!$H21) -> -0.9532683735 | O57: =O$20+O$21*LOG(Grunddaten!$G21)+O$22*LOG(Grunddaten!$F21)+O$23*LOG(Grunddaten!$H21) -> -2.348953161 | P57: =P$20+P$21*LOG(Grunddaten!$G21)+P$22*LOG(Grunddaten!$F21)+P$23*LOG(Grunddaten!$H21) -> -1.03759136 | Q57: =Q$20+Q$21*LOG(Grunddaten!$G21)+Q$22*LOG(Grunddaten!$F21)+Q$23*LOG(Grunddaten!$H21) -> 1.235283499 | R57: =R$20+R$21*LOG(Grunddaten!$G21)+R$22*LOG(Grunddaten!$F21)+R$23*LOG(Grunddaten!$H21) -> 3.844290564 | S57: =S$20+S$21*LOG(Grunddaten!$G21)+S$22*LOG(Grunddaten!$F21)+S$23*LOG(Grunddaten!$H21) -> 7.592720629 | T57: =T$20+T$21*LOG(Grunddaten!$G21)+T$22*LOG(Grunddaten!$F21)+T$23*LOG(Grunddaten!$H21) -> 12.09039296 | U57: =U$20+U$21*LOG(Grunddaten!$G21)+U$22*LOG(Grunddaten!$F21)+U$23*LOG(Grunddaten!$H21) -> 15.07196787 | V57: =V$20+V$21*LOG(Grunddaten!$G21)+V$22*LOG(Grunddaten!$F21)+V$23*LOG(Grunddaten!$H21) -> 16.49501503 | W57: 22.92972681
A58: =Grunddaten!C22 -> KSW-1LWZUL12001 | B58: =B$20+B$21*LOG(Grunddaten!$G22)+B$22*LOG(Grunddaten!$F22)+B$23*LOG(Grunddaten!$H22) -> 2.575064942 | C58: =C$20+C$21*LOG(Grunddaten!$G22)+C$22*LOG(Grunddaten!$F22)+C$23*LOG(Grunddaten!$H22) -> 2.346418938 | D58: =D$20+D$21*LOG(Grunddaten!$G22)+D$22*LOG(Grunddaten!$F22)+D$23*LOG(Grunddaten!$H22) -> 6.896237942 | E58: =E$20+E$21*LOG(Grunddaten!$G22)+E$22*LOG(Grunddaten!$F22)+E$23*LOG(Grunddaten!$H22) -> 9.606354901 | F58: =F$20+F$21*LOG(Grunddaten!$G22)+F$22*LOG(Grunddaten!$F22)+F$23*LOG(Grunddaten!$H22) -> 9.537700384 | G58: =G$20+G$21*LOG(Grunddaten!$G22)+G$22*LOG(Grunddaten!$F22)+G$23*LOG(Grunddaten!$H22) -> 6.738191863 | H58: =H$20+H$21*LOG(Grunddaten!$G22)+H$22*LOG(Grunddaten!$F22)+H$23*LOG(Grunddaten!$H22) -> 4.985242465 | I58: =I$20+I$21*LOG(Grunddaten!$G22)+I$22*LOG(Grunddaten!$F22)+I$23*LOG(Grunddaten!$H22) -> 5.918192149 | J58: =J$20+J$21*LOG(Grunddaten!$G22)+J$22*LOG(Grunddaten!$F22)+J$23*LOG(Grunddaten!$H22) -> 6.438682678 | K58: =K$20+K$21*LOG(Grunddaten!$G22)+K$22*LOG(Grunddaten!$F22)+K$23*LOG(Grunddaten!$H22) -> 4.482289378 | L58: =L$20+L$21*LOG(Grunddaten!$G22)+L$22*LOG(Grunddaten!$F22)+L$23*LOG(Grunddaten!$H22) -> 0.4911858969 | M58: =M$20+M$21*LOG(Grunddaten!$G22)+M$22*LOG(Grunddaten!$F22)+M$23*LOG(Grunddaten!$H22) -> -4.337925603 | N58: =N$20+N$21*LOG(Grunddaten!$G22)+N$22*LOG(Grunddaten!$F22)+N$23*LOG(Grunddaten!$H22) -> -6.728475961 | O58: =O$20+O$21*LOG(Grunddaten!$G22)+O$22*LOG(Grunddaten!$F22)+O$23*LOG(Grunddaten!$H22) -> -7.695679865 | P58: =P$20+P$21*LOG(Grunddaten!$G22)+P$22*LOG(Grunddaten!$F22)+P$23*LOG(Grunddaten!$H22) -> -6.155967409 | Q58: =Q$20+Q$21*LOG(Grunddaten!$G22)+Q$22*LOG(Grunddaten!$F22)+Q$23*LOG(Grunddaten!$H22) -> -4.378903139 | R58: =R$20+R$21*LOG(Grunddaten!$G22)+R$22*LOG(Grunddaten!$F22)+R$23*LOG(Grunddaten!$H22) -> -0.09116936212 | S58: =S$20+S$21*LOG(Grunddaten!$G22)+S$22*LOG(Grunddaten!$F22)+S$23*LOG(Grunddaten!$H22) -> 5.177705774 | T58: =T$20+T$21*LOG(Grunddaten!$G22)+T$22*LOG(Grunddaten!$F22)+T$23*LOG(Grunddaten!$H22) -> 11.63608959 | U58: =U$20+U$21*LOG(Grunddaten!$G22)+U$22*LOG(Grunddaten!$F22)+U$23*LOG(Grunddaten!$H22) -> 16.05232195 | V58: =V$20+V$21*LOG(Grunddaten!$G22)+V$22*LOG(Grunddaten!$F22)+V$23*LOG(Grunddaten!$H22) -> 17.77465609 | W58: 22.22861883
A59: =Grunddaten!C23 -> KSW-1LWZUL8002 | B59: =B$24+B$25*LOG(Grunddaten!$G23)+B$26*LOG(Grunddaten!$F23)+B$27*LOG(Grunddaten!$H23) -> 10.20323707 | C59: =C$24+C$25*LOG(Grunddaten!$G23)+C$26*LOG(Grunddaten!$F23)+C$27*LOG(Grunddaten!$H23) -> 4.654044876 | D59: =D$24+D$25*LOG(Grunddaten!$G23)+D$26*LOG(Grunddaten!$F23)+D$27*LOG(Grunddaten!$H23) -> 3.369946654 | E59: =E$24+E$25*LOG(Grunddaten!$G23)+E$26*LOG(Grunddaten!$F23)+E$27*LOG(Grunddaten!$H23) -> 7.619689884 | F59: =F$24+F$25*LOG(Grunddaten!$G23)+F$26*LOG(Grunddaten!$F23)+F$27*LOG(Grunddaten!$H23) -> 7.884048083 | G59: =G$24+G$25*LOG(Grunddaten!$G23)+G$26*LOG(Grunddaten!$F23)+G$27*LOG(Grunddaten!$H23) -> 9.527493865 | H59: =H$24+H$25*LOG(Grunddaten!$G23)+H$26*LOG(Grunddaten!$F23)+H$27*LOG(Grunddaten!$H23) -> 5.645040765 | I59: =I$24+I$25*LOG(Grunddaten!$G23)+I$26*LOG(Grunddaten!$F23)+I$27*LOG(Grunddaten!$H23) -> 3.961722466 | J59: =J$24+J$25*LOG(Grunddaten!$G23)+J$26*LOG(Grunddaten!$F23)+J$27*LOG(Grunddaten!$H23) -> 5.420997167 | K59: =K$24+K$25*LOG(Grunddaten!$G23)+K$26*LOG(Grunddaten!$F23)+K$27*LOG(Grunddaten!$H23) -> 5.274011007 | L59: =L$24+L$25*LOG(Grunddaten!$G23)+L$26*LOG(Grunddaten!$F23)+L$27*LOG(Grunddaten!$H23) -> 2.421770216 | M59: =M$24+M$25*LOG(Grunddaten!$G23)+M$26*LOG(Grunddaten!$F23)+M$27*LOG(Grunddaten!$H23) -> -0.6774017296 | N59: =N$24+N$25*LOG(Grunddaten!$G23)+N$26*LOG(Grunddaten!$F23)+N$27*LOG(Grunddaten!$H23) -> -2.568085941 | O59: =O$24+O$25*LOG(Grunddaten!$G23)+O$26*LOG(Grunddaten!$F23)+O$27*LOG(Grunddaten!$H23) -> -3.849439557 | P59: =P$24+P$25*LOG(Grunddaten!$G23)+P$26*LOG(Grunddaten!$F23)+P$27*LOG(Grunddaten!$H23) -> -2.419491936 | Q59: =Q$24+Q$25*LOG(Grunddaten!$G23)+Q$26*LOG(Grunddaten!$F23)+Q$27*LOG(Grunddaten!$H23) -> 1.005718415 | R59: =R$24+R$25*LOG(Grunddaten!$G23)+R$26*LOG(Grunddaten!$F23)+R$27*LOG(Grunddaten!$H23) -> 4.20594948 | S59: =S$24+S$25*LOG(Grunddaten!$G23)+S$26*LOG(Grunddaten!$F23)+S$27*LOG(Grunddaten!$H23) -> 8.313214151 | T59: =T$24+T$25*LOG(Grunddaten!$G23)+T$26*LOG(Grunddaten!$F23)+T$27*LOG(Grunddaten!$H23) -> 13.03603441 | U59: =U$24+U$25*LOG(Grunddaten!$G23)+U$26*LOG(Grunddaten!$F23)+U$27*LOG(Grunddaten!$H23) -> 15.74462529 | V59: =V$24+V$25*LOG(Grunddaten!$G23)+V$26*LOG(Grunddaten!$F23)+V$27*LOG(Grunddaten!$H23) -> 17.36606108 | W59: 22.46682771
A60: =Grunddaten!C24 -> KSW-1LWZUL10002 | B60: =B$24+B$25*LOG(Grunddaten!$G24)+B$26*LOG(Grunddaten!$F24)+B$27*LOG(Grunddaten!$H24) -> 5.488836975 | C60: =C$24+C$25*LOG(Grunddaten!$G24)+C$26*LOG(Grunddaten!$F24)+C$27*LOG(Grunddaten!$H24) -> 4.022449797 | D60: =D$24+D$25*LOG(Grunddaten!$G24)+D$26*LOG(Grunddaten!$F24)+D$27*LOG(Grunddaten!$H24) -> -0.8401621387 | E60: =E$24+E$25*LOG(Grunddaten!$G24)+E$26*LOG(Grunddaten!$F24)+E$27*LOG(Grunddaten!$H24) -> 3.953393684 | F60: =F$24+F$25*LOG(Grunddaten!$G24)+F$26*LOG(Grunddaten!$F24)+F$27*LOG(Grunddaten!$H24) -> 5.146867149 | G60: =G$24+G$25*LOG(Grunddaten!$G24)+G$26*LOG(Grunddaten!$F24)+G$27*LOG(Grunddaten!$H24) -> 5.466530512 | H60: =H$24+H$25*LOG(Grunddaten!$G24)+H$26*LOG(Grunddaten!$F24)+H$27*LOG(Grunddaten!$H24) -> 3.599389889 | I60: =I$24+I$25*LOG(Grunddaten!$G24)+I$26*LOG(Grunddaten!$F24)+I$27*LOG(Grunddaten!$H24) -> 1.411706091 | J60: =J$24+J$25*LOG(Grunddaten!$G24)+J$26*LOG(Grunddaten!$F24)+J$27*LOG(Grunddaten!$H24) -> 0.8211371875 | K60: =K$24+K$25*LOG(Grunddaten!$G24)+K$26*LOG(Grunddaten!$F24)+K$27*LOG(Grunddaten!$H24) -> -1.182509405 | L60: =L$24+L$25*LOG(Grunddaten!$G24)+L$26*LOG(Grunddaten!$F24)+L$27*LOG(Grunddaten!$H24) -> -5.649152188 | M60: =M$24+M$25*LOG(Grunddaten!$G24)+M$26*LOG(Grunddaten!$F24)+M$27*LOG(Grunddaten!$H24) -> -9.372785776 | N60: =N$24+N$25*LOG(Grunddaten!$G24)+N$26*LOG(Grunddaten!$F24)+N$27*LOG(Grunddaten!$H24) -> -11.15347934 | O60: =O$24+O$25*LOG(Grunddaten!$G24)+O$26*LOG(Grunddaten!$F24)+O$27*LOG(Grunddaten!$H24) -> -11.4477453 | P60: =P$24+P$25*LOG(Grunddaten!$G24)+P$26*LOG(Grunddaten!$F24)+P$27*LOG(Grunddaten!$H24) -> -8.29376138 | Q60: =Q$24+Q$25*LOG(Grunddaten!$G24)+Q$26*LOG(Grunddaten!$F24)+Q$27*LOG(Grunddaten!$H24) -> -3.343872178 | R60: =R$24+R$25*LOG(Grunddaten!$G24)+R$26*LOG(Grunddaten!$F24)+R$27*LOG(Grunddaten!$H24) -> 2.560037089 | S60: =S$24+S$25*LOG(Grunddaten!$G24)+S$26*LOG(Grunddaten!$F24)+S$27*LOG(Grunddaten!$H24) -> 8.199604723 | T60: =T$24+T$25*LOG(Grunddaten!$G24)+T$26*LOG(Grunddaten!$F24)+T$27*LOG(Grunddaten!$H24) -> 14.14574329 | U60: =U$24+U$25*LOG(Grunddaten!$G24)+U$26*LOG(Grunddaten!$F24)+U$27*LOG(Grunddaten!$H24) -> 18.20334641 | V60: =V$24+V$25*LOG(Grunddaten!$G24)+V$26*LOG(Grunddaten!$F24)+V$27*LOG(Grunddaten!$H24) -> 20.18950024 | W60: 23.57787362
A61: =Grunddaten!C25 -> KSW-1LWZUL12002 | B61: =B$24+B$25*LOG(Grunddaten!$G25)+B$26*LOG(Grunddaten!$F25)+B$27*LOG(Grunddaten!$H25) -> -0.0563929639 | C61: =C$24+C$25*LOG(Grunddaten!$G25)+C$26*LOG(Grunddaten!$F25)+C$27*LOG(Grunddaten!$H25) -> 0.9665924977 | D61: =D$24+D$25*LOG(Grunddaten!$G25)+D$26*LOG(Grunddaten!$F25)+D$27*LOG(Grunddaten!$H25) -> -2.151927428 | E61: =E$24+E$25*LOG(Grunddaten!$G25)+E$26*LOG(Grunddaten!$F25)+E$27*LOG(Grunddaten!$H25) -> 4.256872385 | F61: =F$24+F$25*LOG(Grunddaten!$G25)+F$26*LOG(Grunddaten!$F25)+F$27*LOG(Grunddaten!$H25) -> 6.650302803 | G61: =G$24+G$25*LOG(Grunddaten!$G25)+G$26*LOG(Grunddaten!$F25)+G$27*LOG(Grunddaten!$H25) -> 5.230582209 | H61: =H$24+H$25*LOG(Grunddaten!$G25)+H$26*LOG(Grunddaten!$F25)+H$27*LOG(Grunddaten!$H25) -> 1.451889053 | I61: =I$24+I$25*LOG(Grunddaten!$G25)+I$26*LOG(Grunddaten!$F25)+I$27*LOG(Grunddaten!$H25) -> -0.2080405505 | J61: =J$24+J$25*LOG(Grunddaten!$G25)+J$26*LOG(Grunddaten!$F25)+J$27*LOG(Grunddaten!$H25) -> -0.8683425014 | K61: =K$24+K$25*LOG(Grunddaten!$G25)+K$26*LOG(Grunddaten!$F25)+K$27*LOG(Grunddaten!$H25) -> -3.103886565 | L61: =L$24+L$25*LOG(Grunddaten!$G25)+L$26*LOG(Grunddaten!$F25)+L$27*LOG(Grunddaten!$H25) -> -7.323221226 | M61: =M$24+M$25*LOG(Grunddaten!$G25)+M$26*LOG(Grunddaten!$F25)+M$27*LOG(Grunddaten!$H25) -> -10.6989172 | N61: =N$24+N$25*LOG(Grunddaten!$G25)+N$26*LOG(Grunddaten!$F25)+N$27*LOG(Grunddaten!$H25) -> -12.43258481 | O61: =O$24+O$25*LOG(Grunddaten!$G25)+O$26*LOG(Grunddaten!$F25)+O$27*LOG(Grunddaten!$H25) -> -12.91364747 | P61: =P$24+P$25*LOG(Grunddaten!$G25)+P$26*LOG(Grunddaten!$F25)+P$27*LOG(Grunddaten!$H25) -> -11.66510699 | Q61: =Q$24+Q$25*LOG(Grunddaten!$G25)+Q$26*LOG(Grunddaten!$F25)+Q$27*LOG(Grunddaten!$H25) -> -6.814544623 | R61: =R$24+R$25*LOG(Grunddaten!$G25)+R$26*LOG(Grunddaten!$F25)+R$27*LOG(Grunddaten!$H25) -> -1.696333526 | S61: =S$24+S$25*LOG(Grunddaten!$G25)+S$26*LOG(Grunddaten!$F25)+S$27*LOG(Grunddaten!$H25) -> 4.94910926 | T61: =T$24+T$25*LOG(Grunddaten!$G25)+T$26*LOG(Grunddaten!$F25)+T$27*LOG(Grunddaten!$H25) -> 11.82067178 | U61: =U$24+U$25*LOG(Grunddaten!$G25)+U$26*LOG(Grunddaten!$F25)+U$27*LOG(Grunddaten!$H25) -> 16.17244384 | V61: =V$24+V$25*LOG(Grunddaten!$G25)+V$26*LOG(Grunddaten!$F25)+V$27*LOG(Grunddaten!$H25) -> 18.5274387 | W61: 21.74522611
A62: =Grunddaten!C26 -> KSW-1LWABL8001 | B62: =B$28+B$29*LOG(Grunddaten!$G26)+B$30*LOG(Grunddaten!$F26)+B$31*LOG(Grunddaten!$H26) -> 6.861586962 | C62: =C$28+C$29*LOG(Grunddaten!$G26)+C$30*LOG(Grunddaten!$F26)+C$31*LOG(Grunddaten!$H26) -> 6.83803665 | D62: =D$28+D$29*LOG(Grunddaten!$G26)+D$30*LOG(Grunddaten!$F26)+D$31*LOG(Grunddaten!$H26) -> 10.06964922 | E62: =E$28+E$29*LOG(Grunddaten!$G26)+E$30*LOG(Grunddaten!$F26)+E$31*LOG(Grunddaten!$H26) -> 17.42201822 | F62: =F$28+F$29*LOG(Grunddaten!$G26)+F$30*LOG(Grunddaten!$F26)+F$31*LOG(Grunddaten!$H26) -> 17.26686463 | G62: =G$28+G$29*LOG(Grunddaten!$G26)+G$30*LOG(Grunddaten!$F26)+G$31*LOG(Grunddaten!$H26) -> 16.47321683 | H62: =H$28+H$29*LOG(Grunddaten!$G26)+H$30*LOG(Grunddaten!$F26)+H$31*LOG(Grunddaten!$H26) -> 14.06166278 | I62: =I$28+I$29*LOG(Grunddaten!$G26)+I$30*LOG(Grunddaten!$F26)+I$31*LOG(Grunddaten!$H26) -> 14.68489238 | J62: =J$28+J$29*LOG(Grunddaten!$G26)+J$30*LOG(Grunddaten!$F26)+J$31*LOG(Grunddaten!$H26) -> 15.37395293 | K62: =K$28+K$29*LOG(Grunddaten!$G26)+K$30*LOG(Grunddaten!$F26)+K$31*LOG(Grunddaten!$H26) -> 13.94567659 | L62: =L$28+L$29*LOG(Grunddaten!$G26)+L$30*LOG(Grunddaten!$F26)+L$31*LOG(Grunddaten!$H26) -> 10.2825279 | M62: =M$28+M$29*LOG(Grunddaten!$G26)+M$30*LOG(Grunddaten!$F26)+M$31*LOG(Grunddaten!$H26) -> 7.663315525 | N62: =N$28+N$29*LOG(Grunddaten!$G26)+N$30*LOG(Grunddaten!$F26)+N$31*LOG(Grunddaten!$H26) -> 6.958484079 | O62: =O$28+O$29*LOG(Grunddaten!$G26)+O$30*LOG(Grunddaten!$F26)+O$31*LOG(Grunddaten!$H26) -> 6.503519801 | P62: =P$28+P$29*LOG(Grunddaten!$G26)+P$30*LOG(Grunddaten!$F26)+P$31*LOG(Grunddaten!$H26) -> 6.169917506 | Q62: =Q$28+Q$29*LOG(Grunddaten!$G26)+Q$30*LOG(Grunddaten!$F26)+Q$31*LOG(Grunddaten!$H26) -> 7.706220486 | R62: =R$28+R$29*LOG(Grunddaten!$G26)+R$30*LOG(Grunddaten!$F26)+R$31*LOG(Grunddaten!$H26) -> 8.678954634 | S62: =S$28+S$29*LOG(Grunddaten!$G26)+S$30*LOG(Grunddaten!$F26)+S$31*LOG(Grunddaten!$H26) -> 11.34654257 | T62: =T$28+T$29*LOG(Grunddaten!$G26)+T$30*LOG(Grunddaten!$F26)+T$31*LOG(Grunddaten!$H26) -> 14.75625965 | U62: =U$28+U$29*LOG(Grunddaten!$G26)+U$30*LOG(Grunddaten!$F26)+U$31*LOG(Grunddaten!$H26) -> 16.40391714 | V62: =V$28+V$29*LOG(Grunddaten!$G26)+V$30*LOG(Grunddaten!$F26)+V$31*LOG(Grunddaten!$H26) -> 17.78919803 | W62: =10*LOG(10^(0.1*B62)+10^(0.1*C62)+10^(0.1*D62)+10^(0.1*E62)+10^(0.1*F62)+10^(0.1*G62)+10^(0.1*H62)+10^(0.1*I62)+10^(0.1*J62)+10^(0.1*K62)+10^(0.1*L62)+10^(0.1*M62)+10^(0.1*N62)+10^(0.1*O62)+10^(0.1*P62)+10^(0.1*Q62)+10^(0.1*R62)+10^(0.1*S62)+10^(0.1*T62)+10^(0.1*U62)+10^(0.1*V62)) -> 26.7907923
A63: =Grunddaten!C27 -> KSW-1LWABL10001 | B63: =B$28+B$29*LOG(Grunddaten!$G27)+B$30*LOG(Grunddaten!$F27)+B$31*LOG(Grunddaten!$H27) -> 7.237956657 | C63: =C$28+C$29*LOG(Grunddaten!$G27)+C$30*LOG(Grunddaten!$F27)+C$31*LOG(Grunddaten!$H27) -> 4.805424193 | D63: =D$28+D$29*LOG(Grunddaten!$G27)+D$30*LOG(Grunddaten!$F27)+D$31*LOG(Grunddaten!$H27) -> 7.527684373 | E63: =E$28+E$29*LOG(Grunddaten!$G27)+E$30*LOG(Grunddaten!$F27)+E$31*LOG(Grunddaten!$H27) -> 17.9653348 | F63: =F$28+F$29*LOG(Grunddaten!$G27)+F$30*LOG(Grunddaten!$F27)+F$31*LOG(Grunddaten!$H27) -> 17.72286679 | G63: =G$28+G$29*LOG(Grunddaten!$G27)+G$30*LOG(Grunddaten!$F27)+G$31*LOG(Grunddaten!$H27) -> 16.59399787 | H63: =H$28+H$29*LOG(Grunddaten!$G27)+H$30*LOG(Grunddaten!$F27)+H$31*LOG(Grunddaten!$H27) -> 12.51160936 | I63: =I$28+I$29*LOG(Grunddaten!$G27)+I$30*LOG(Grunddaten!$F27)+I$31*LOG(Grunddaten!$H27) -> 12.56216287 | J63: =J$28+J$29*LOG(Grunddaten!$G27)+J$30*LOG(Grunddaten!$F27)+J$31*LOG(Grunddaten!$H27) -> 13.81064456 | K63: =K$28+K$29*LOG(Grunddaten!$G27)+K$30*LOG(Grunddaten!$F27)+K$31*LOG(Grunddaten!$H27) -> 11.27336914 | L63: =L$28+L$29*LOG(Grunddaten!$G27)+L$30*LOG(Grunddaten!$F27)+L$31*LOG(Grunddaten!$H27) -> 7.510506304 | M63: =M$28+M$29*LOG(Grunddaten!$G27)+M$30*LOG(Grunddaten!$F27)+M$31*LOG(Grunddaten!$H27) -> 4.512356957 | N63: =N$28+N$29*LOG(Grunddaten!$G27)+N$30*LOG(Grunddaten!$F27)+N$31*LOG(Grunddaten!$H27) -> 3.65730011 | O63: =O$28+O$29*LOG(Grunddaten!$G27)+O$30*LOG(Grunddaten!$F27)+O$31*LOG(Grunddaten!$H27) -> 3.578270619 | P63: =P$28+P$29*LOG(Grunddaten!$G27)+P$30*LOG(Grunddaten!$F27)+P$31*LOG(Grunddaten!$H27) -> 4.498639364 | Q63: =Q$28+Q$29*LOG(Grunddaten!$G27)+Q$30*LOG(Grunddaten!$F27)+Q$31*LOG(Grunddaten!$H27) -> 6.934560485 | R63: =R$28+R$29*LOG(Grunddaten!$G27)+R$30*LOG(Grunddaten!$F27)+R$31*LOG(Grunddaten!$H27) -> 8.029890848 | S63: =S$28+S$29*LOG(Grunddaten!$G27)+S$30*LOG(Grunddaten!$F27)+S$31*LOG(Grunddaten!$H27) -> 10.85195022 | T63: =T$28+T$29*LOG(Grunddaten!$G27)+T$30*LOG(Grunddaten!$F27)+T$31*LOG(Grunddaten!$H27) -> 14.36093803 | U63: =U$28+U$29*LOG(Grunddaten!$G27)+U$30*LOG(Grunddaten!$F27)+U$31*LOG(Grunddaten!$H27) -> 16.10949025 | V63: =V$28+V$29*LOG(Grunddaten!$G27)+V$30*LOG(Grunddaten!$F27)+V$31*LOG(Grunddaten!$H27) -> 17.56447182 | W63: 26.22497141
A64: =Grunddaten!C28 -> KSW-1LWABL12001 | B64: =B$28+B$29*LOG(Grunddaten!$G28)+B$30*LOG(Grunddaten!$F28)+B$31*LOG(Grunddaten!$H28) -> 10.52273931 | C64: =C$28+C$29*LOG(Grunddaten!$G28)+C$30*LOG(Grunddaten!$F28)+C$31*LOG(Grunddaten!$H28) -> 9.594133353 | D64: =D$28+D$29*LOG(Grunddaten!$G28)+D$30*LOG(Grunddaten!$F28)+D$31*LOG(Grunddaten!$H28) -> 5.900705152 | E64: =E$28+E$29*LOG(Grunddaten!$G28)+E$30*LOG(Grunddaten!$F28)+E$31*LOG(Grunddaten!$H28) -> 15.3302094 | F64: =F$28+F$29*LOG(Grunddaten!$G28)+F$30*LOG(Grunddaten!$F28)+F$31*LOG(Grunddaten!$H28) -> 15.5782482 | G64: =G$28+G$29*LOG(Grunddaten!$G28)+G$30*LOG(Grunddaten!$F28)+G$31*LOG(Grunddaten!$H28) -> 13.79602223 | H64: =H$28+H$29*LOG(Grunddaten!$G28)+H$30*LOG(Grunddaten!$F28)+H$31*LOG(Grunddaten!$H28) -> 9.765055531 | I64: =I$28+I$29*LOG(Grunddaten!$G28)+I$30*LOG(Grunddaten!$F28)+I$31*LOG(Grunddaten!$H28) -> 9.551122413 | J64: =J$28+J$29*LOG(Grunddaten!$G28)+J$30*LOG(Grunddaten!$F28)+J$31*LOG(Grunddaten!$H28) -> 9.73351613 | K64: =K$28+K$29*LOG(Grunddaten!$G28)+K$30*LOG(Grunddaten!$F28)+K$31*LOG(Grunddaten!$H28) -> 7.664770863 | L64: =L$28+L$29*LOG(Grunddaten!$G28)+L$30*LOG(Grunddaten!$F28)+L$31*LOG(Grunddaten!$H28) -> 2.740005804 | M64: =M$28+M$29*LOG(Grunddaten!$G28)+M$30*LOG(Grunddaten!$F28)+M$31*LOG(Grunddaten!$H28) -> -1.264623798 | N64: =N$28+N$29*LOG(Grunddaten!$G28)+N$30*LOG(Grunddaten!$F28)+N$31*LOG(Grunddaten!$H28) -> -1.741811379 | O64: =O$28+O$29*LOG(Grunddaten!$G28)+O$30*LOG(Grunddaten!$F28)+O$31*LOG(Grunddaten!$H28) -> -1.330799049 | P64: =P$28+P$29*LOG(Grunddaten!$G28)+P$30*LOG(Grunddaten!$F28)+P$31*LOG(Grunddaten!$H28) -> -0.2012365172 | Q64: =Q$28+Q$29*LOG(Grunddaten!$G28)+Q$30*LOG(Grunddaten!$F28)+Q$31*LOG(Grunddaten!$H28) -> 1.20294415 | R64: =R$28+R$29*LOG(Grunddaten!$G28)+R$30*LOG(Grunddaten!$F28)+R$31*LOG(Grunddaten!$H28) -> 4.571452483 | S64: =S$28+S$29*LOG(Grunddaten!$G28)+S$30*LOG(Grunddaten!$F28)+S$31*LOG(Grunddaten!$H28) -> 9.64069577 | T64: =T$28+T$29*LOG(Grunddaten!$G28)+T$30*LOG(Grunddaten!$F28)+T$31*LOG(Grunddaten!$H28) -> 14.65872661 | U64: =U$28+U$29*LOG(Grunddaten!$G28)+U$30*LOG(Grunddaten!$F28)+U$31*LOG(Grunddaten!$H28) -> 16.66090576 | V64: =V$28+V$29*LOG(Grunddaten!$G28)+V$30*LOG(Grunddaten!$F28)+V$31*LOG(Grunddaten!$H28) -> 18.30612231 | W64: 24.9678738
A65: =Grunddaten!C29 -> KSW-1LWABL8002 | B65: =B$32+B$33*LOG(Grunddaten!$G29)+B$34*LOG(Grunddaten!$F29)+B$35*LOG(Grunddaten!$H29) -> 7.561198881 | C65: =C$32+C$33*LOG(Grunddaten!$G29)+C$34*LOG(Grunddaten!$F29)+C$35*LOG(Grunddaten!$H29) -> 1.023534877 | D65: =D$32+D$33*LOG(Grunddaten!$G29)+D$34*LOG(Grunddaten!$F29)+D$35*LOG(Grunddaten!$H29) -> 2.383763445 | E65: =E$32+E$33*LOG(Grunddaten!$G29)+E$34*LOG(Grunddaten!$F29)+E$35*LOG(Grunddaten!$H29) -> 2.707003825 | F65: =F$32+F$33*LOG(Grunddaten!$G29)+F$34*LOG(Grunddaten!$F29)+F$35*LOG(Grunddaten!$H29) -> 4.010420428 | G65: =G$32+G$33*LOG(Grunddaten!$G29)+G$34*LOG(Grunddaten!$F29)+G$35*LOG(Grunddaten!$H29) -> 5.160880077 | H65: =H$32+H$33*LOG(Grunddaten!$G29)+H$34*LOG(Grunddaten!$F29)+H$35*LOG(Grunddaten!$H29) -> 2.307956205 | I65: =I$32+I$33*LOG(Grunddaten!$G29)+I$34*LOG(Grunddaten!$F29)+I$35*LOG(Grunddaten!$H29) -> 1.364425768 | J65: =J$32+J$33*LOG(Grunddaten!$G29)+J$34*LOG(Grunddaten!$F29)+J$35*LOG(Grunddaten!$H29) -> -0.4749331954 | K65: =K$32+K$33*LOG(Grunddaten!$G29)+K$34*LOG(Grunddaten!$F29)+K$35*LOG(Grunddaten!$H29) -> -2.682313874 | L65: =L$32+L$33*LOG(Grunddaten!$G29)+L$34*LOG(Grunddaten!$F29)+L$35*LOG(Grunddaten!$H29) -> -6.976039868 | M65: =M$32+M$33*LOG(Grunddaten!$G29)+M$34*LOG(Grunddaten!$F29)+M$35*LOG(Grunddaten!$H29) -> -9.033429793 | N65: =N$32+N$33*LOG(Grunddaten!$G29)+N$34*LOG(Grunddaten!$F29)+N$35*LOG(Grunddaten!$H29) -> -9.03963752 | O65: =O$32+O$33*LOG(Grunddaten!$G29)+O$34*LOG(Grunddaten!$F29)+O$35*LOG(Grunddaten!$H29) -> -6.961673408 | P65: =P$32+P$33*LOG(Grunddaten!$G29)+P$34*LOG(Grunddaten!$F29)+P$35*LOG(Grunddaten!$H29) -> -3.547078842 | Q65: =Q$32+Q$33*LOG(Grunddaten!$G29)+Q$34*LOG(Grunddaten!$F29)+Q$35*LOG(Grunddaten!$H29) -> 0.05174998839 | R65: =R$32+R$33*LOG(Grunddaten!$G29)+R$34*LOG(Grunddaten!$F29)+R$35*LOG(Grunddaten!$H29) -> 4.646256192 | S65: =S$32+S$33*LOG(Grunddaten!$G29)+S$34*LOG(Grunddaten!$F29)+S$35*LOG(Grunddaten!$H29) -> 11.29778196 | T65: =T$32+T$33*LOG(Grunddaten!$G29)+T$34*LOG(Grunddaten!$F29)+T$35*LOG(Grunddaten!$H29) -> 15.68419059 | U65: =U$32+U$33*LOG(Grunddaten!$G29)+U$34*LOG(Grunddaten!$F29)+U$35*LOG(Grunddaten!$H29) -> 17.21864317 | V65: =V$32+V$33*LOG(Grunddaten!$G29)+V$34*LOG(Grunddaten!$F29)+V$35*LOG(Grunddaten!$H29) -> 18.61890819 | W65: 23.05047856
A66: =Grunddaten!C30 -> KSW-1LWABL10002 | B66: =B$32+B$33*LOG(Grunddaten!$G30)+B$34*LOG(Grunddaten!$F30)+B$35*LOG(Grunddaten!$H30) -> 8.260574335 | C66: =C$32+C$33*LOG(Grunddaten!$G30)+C$34*LOG(Grunddaten!$F30)+C$35*LOG(Grunddaten!$H30) -> 1.259237639 | D66: =D$32+D$33*LOG(Grunddaten!$G30)+D$34*LOG(Grunddaten!$F30)+D$35*LOG(Grunddaten!$H30) -> -1.456086426 | E66: =E$32+E$33*LOG(Grunddaten!$G30)+E$34*LOG(Grunddaten!$F30)+E$35*LOG(Grunddaten!$H30) -> -0.9458037073 | F66: =F$32+F$33*LOG(Grunddaten!$G30)+F$34*LOG(Grunddaten!$F30)+F$35*LOG(Grunddaten!$H30) -> 3.634148022 | G66: =G$32+G$33*LOG(Grunddaten!$G30)+G$34*LOG(Grunddaten!$F30)+G$35*LOG(Grunddaten!$H30) -> 1.452084314 | H66: =H$32+H$33*LOG(Grunddaten!$G30)+H$34*LOG(Grunddaten!$F30)+H$35*LOG(Grunddaten!$H30) -> 0.4630881283 | I66: =I$32+I$33*LOG(Grunddaten!$G30)+I$34*LOG(Grunddaten!$F30)+I$35*LOG(Grunddaten!$H30) -> -3.228870836 | J66: =J$32+J$33*LOG(Grunddaten!$G30)+J$34*LOG(Grunddaten!$F30)+J$35*LOG(Grunddaten!$H30) -> -5.223581616 | K66: =K$32+K$33*LOG(Grunddaten!$G30)+K$34*LOG(Grunddaten!$F30)+K$35*LOG(Grunddaten!$H30) -> -8.060848812 | L66: =L$32+L$33*LOG(Grunddaten!$G30)+L$34*LOG(Grunddaten!$F30)+L$35*LOG(Grunddaten!$H30) -> -13.23896496 | M66: =M$32+M$33*LOG(Grunddaten!$G30)+M$34*LOG(Grunddaten!$F30)+M$35*LOG(Grunddaten!$H30) -> -14.89262921 | N66: =N$32+N$33*LOG(Grunddaten!$G30)+N$34*LOG(Grunddaten!$F30)+N$35*LOG(Grunddaten!$H30) -> -14.13697063 | O66: =O$32+O$33*LOG(Grunddaten!$G30)+O$34*LOG(Grunddaten!$F30)+O$35*LOG(Grunddaten!$H30) -> -11.37971337 | P66: =P$32+P$33*LOG(Grunddaten!$G30)+P$34*LOG(Grunddaten!$F30)+P$35*LOG(Grunddaten!$H30) -> -7.270007507 | Q66: =Q$32+Q$33*LOG(Grunddaten!$G30)+Q$34*LOG(Grunddaten!$F30)+Q$35*LOG(Grunddaten!$H30) -> -3.28721218 | R66: =R$32+R$33*LOG(Grunddaten!$G30)+R$34*LOG(Grunddaten!$F30)+R$35*LOG(Grunddaten!$H30) -> 3.157315678 | S66: =S$32+S$33*LOG(Grunddaten!$G30)+S$34*LOG(Grunddaten!$F30)+S$35*LOG(Grunddaten!$H30) -> 11.45744694 | T66: =T$32+T$33*LOG(Grunddaten!$G30)+T$34*LOG(Grunddaten!$F30)+T$35*LOG(Grunddaten!$H30) -> 16.66847509 | U66: =U$32+U$33*LOG(Grunddaten!$G30)+U$34*LOG(Grunddaten!$F30)+U$35*LOG(Grunddaten!$H30) -> 18.59296141 | V66: =V$32+V$33*LOG(Grunddaten!$G30)+V$34*LOG(Grunddaten!$F30)+V$35*LOG(Grunddaten!$H30) -> 19.85038161 | W66: 23.93725315
A67: =Grunddaten!C31 -> KSW-1LWABL12002 | B67: =B$32+B$33*LOG(Grunddaten!$G31)+B$34*LOG(Grunddaten!$F31)+B$35*LOG(Grunddaten!$H31) -> 7.836646016 | C67: =C$32+C$33*LOG(Grunddaten!$G31)+C$34*LOG(Grunddaten!$F31)+C$35*LOG(Grunddaten!$H31) -> 2.578838865 | D67: =D$32+D$33*LOG(Grunddaten!$G31)+D$34*LOG(Grunddaten!$F31)+D$35*LOG(Grunddaten!$H31) -> -2.503493005 | E67: =E$32+E$33*LOG(Grunddaten!$G31)+E$34*LOG(Grunddaten!$F31)+E$35*LOG(Grunddaten!$H31) -> 1.609571394 | F67: =F$32+F$33*LOG(Grunddaten!$G31)+F$34*LOG(Grunddaten!$F31)+F$35*LOG(Grunddaten!$H31) -> 3.956517497 | G67: =G$32+G$33*LOG(Grunddaten!$G31)+G$34*LOG(Grunddaten!$F31)+G$35*LOG(Grunddaten!$H31) -> 1.635313616 | H67: =H$32+H$33*LOG(Grunddaten!$G31)+H$34*LOG(Grunddaten!$F31)+H$35*LOG(Grunddaten!$H31) -> -1.424424138 | I67: =I$32+I$33*LOG(Grunddaten!$G31)+I$34*LOG(Grunddaten!$F31)+I$35*LOG(Grunddaten!$H31) -> -4.407690705 | J67: =J$32+J$33*LOG(Grunddaten!$G31)+J$34*LOG(Grunddaten!$F31)+J$35*LOG(Grunddaten!$H31) -> -6.252258687 | K67: =K$32+K$33*LOG(Grunddaten!$G31)+K$34*LOG(Grunddaten!$F31)+K$35*LOG(Grunddaten!$H31) -> -10.39468692 | L67: =L$32+L$33*LOG(Grunddaten!$G31)+L$34*LOG(Grunddaten!$F31)+L$35*LOG(Grunddaten!$H31) -> -16.38299306 | M67: =M$32+M$33*LOG(Grunddaten!$G31)+M$34*LOG(Grunddaten!$F31)+M$35*LOG(Grunddaten!$H31) -> -17.83807473 | N67: =N$32+N$33*LOG(Grunddaten!$G31)+N$34*LOG(Grunddaten!$F31)+N$35*LOG(Grunddaten!$H31) -> -16.72311002 | O67: =O$32+O$33*LOG(Grunddaten!$G31)+O$34*LOG(Grunddaten!$F31)+O$35*LOG(Grunddaten!$H31) -> -12.72328785 | P67: =P$32+P$33*LOG(Grunddaten!$G31)+P$34*LOG(Grunddaten!$F31)+P$35*LOG(Grunddaten!$H31) -> -9.206799843 | Q67: =Q$32+Q$33*LOG(Grunddaten!$G31)+Q$34*LOG(Grunddaten!$F31)+Q$35*LOG(Grunddaten!$H31) -> -5.237808278 | R67: =R$32+R$33*LOG(Grunddaten!$G31)+R$34*LOG(Grunddaten!$F31)+R$35*LOG(Grunddaten!$H31) -> 2.031901774 | S67: =S$32+S$33*LOG(Grunddaten!$G31)+S$34*LOG(Grunddaten!$F31)+S$35*LOG(Grunddaten!$H31) -> 11.39132021 | T67: =T$32+T$33*LOG(Grunddaten!$G31)+T$34*LOG(Grunddaten!$F31)+T$35*LOG(Grunddaten!$H31) -> 17.40559722 | U67: =U$32+U$33*LOG(Grunddaten!$G31)+U$34*LOG(Grunddaten!$F31)+U$35*LOG(Grunddaten!$H31) -> 19.19632337 | V67: =V$32+V$33*LOG(Grunddaten!$G31)+V$34*LOG(Grunddaten!$F31)+V$35*LOG(Grunddaten!$H31) -> 20.57865144 | W67: 24.52618894
B70: Oktav-Frequenz fOkt [Hz] | I70: SLWA
B71: 125 | C71: 250 | D71: 500 | E71: 1000 | F71: 2000 | G71: 4000 | H71: 8000 | I71: Summe
A72: =A40 -> KSWZUL5001 | B72: =10*LOG(10^(0.1*B40)+10^(0.1*C40)+10^(0.1*D40)) -> 19.69842632 | C72: =10*LOG(10^(0.1*E40)+10^(0.1*F40)+10^(0.1*G40)) -> 30.89513042 | D72: =10*LOG(10^(0.1*H40)+10^(0.1*I40)+10^(0.1*J40)) -> 31.29456954 | E72: =10*LOG(10^(0.1*K40)+10^(0.1*L40)+10^(0.1*M40)) -> 31.24087043 | F72: =10*LOG(10^(0.1*N40)+10^(0.1*O40)+10^(0.1*P40)) -> 23.74338517 | G72: =10*LOG(10^(0.1*Q40)+10^(0.1*R40)+10^(0.1*S40)) -> 19.34105154 | H72: =10*LOG(10^(0.1*T40)+10^(0.1*U40)+10^(0.1*V40)) -> 18.47029681 | I72: =10*LOG(10^(0.1*B72)+10^(0.1*C72)+10^(0.1*D72)+10^(0.1*E72)+10^(0.1*F72)+10^(0.1*G72)+10^(0.1*H72)) -> 36.42780049
A73: KSWZUL8001 | B73: 18.62486073 | C73: 33.46893204 | D73: 34.62600098 | E73: 35.46165483 | F73: 27.05373863 | G73: 21.06643263 | H73: 18.53307911 | I73: =10*LOG(10^(0.1*B73)+10^(0.1*C73)+10^(0.1*D73)+10^(0.1*E73)+10^(0.1*F73)+10^(0.1*G73)+10^(0.1*H73)) -> 39.74074557
A74: KSWZUL10001 | B74: 17.26677687 | C74: 28.98845998 | D74: 28.75845233 | E74: 28.37538875 | F74: 20.77225918 | G74: 18.07484944 | H74: 18.21536733 | I74: 34.03934778
A75: KSWZUL12001 | B75: 18.36613308 | C75: 26.89136966 | D75: 26.0901524 | E75: 24.89646866 | F75: 18.12544036 | G75: 16.76911023 | H75: 18.17047578 | I75: 31.61601079
A76: KSWZUL5002 | B76: 15.76841952 | C76: 22.18148349 | D76: 22.30442243 | E76: 20.00513861 | F76: 15.12113668 | G76: 15.78989583 | H76: 17.88367547 | I76: 27.81746667
A77: KSWZUL8002 | B77: 14.76244056 | C77: 28.02230665 | D77: 27.33326212 | E77: 24.94723982 | F77: 20.68523362 | G77: 16.72027434 | H77: 16.43843311 | I77: 32.37000238
A78: KSWZUL10002 | B78: 15.72251111 | C78: 22.65002415 | D78: 22.58057577 | E78: 20.18180187 | F78: 15.43503324 | G78: 15.7509685 | H78: 17.76107135 | I78: 28.05584276
A79: KSWZUL12002 | B79: 16.22614454 | C79: 22.18331096 | D79: 20.97320927 | E79: 17.71992196 | F79: 13.73405427 | G79: 14.7940793 | H79: 17.86398653 | I79: 27.04553519
A80: KSWABL5001 | B80: 17.32588358 | C80: 32.09018588 | D80: 32.58494503 | E80: 32.5837608 | F80: 25.58396097 | G80: 23.00723707 | H80: 18.32738011 | I80: 37.72917063
A81: KSWABL8001 | B81: 18.79167539 | C81: 33.5141641 | D81: 35.34004578 | E81: 35.22408722 | F81: 28.76030943 | G81: 25.05460765 | H81: 18.47530987 | I81: 40.09179011
A82: KSWABL10001 | B82: 17.32588358 | C82: 32.09018588 | D82: 32.58494503 | E82: 32.5837608 | F82: 25.58396097 | G82: 23.00723707 | H82: 18.32738011 | I82: 37.72917063
A83: KSWABL12001 | B83: 17.11771371 | C83: 30.94859783 | D83: 30.20648554 | E83: 29.7226344 | F83: 22.78855658 | G83: 21.06304869 | H83: 18.20957913 | I83: 35.64242968
A84: KSWABL5002 | B84: 13.36526479 | C84: 23.43763614 | D84: 23.24886821 | E84: 18.50152568 | F84: 14.30882165 | G84: 15.55696737 | H84: 17.92690836 | I84: 28.12552116
A85: KSWABL8002 | B85: 15.04914203 | C85: 26.67047505 | D85: 26.85490395 | E85: 24.4419803 | F85: 18.77063088 | G85: 16.90673819 | H85: 18.06477331 | I85: 31.60711718
A86: KSWABL10002 | B86: 13.36526479 | C86: 23.43763614 | D86: 23.24886821 | E86: 18.50152568 | F86: 14.30882165 | G86: 15.55696737 | H86: 17.92690836 | I86: 28.12552116
A87: KSWABL12002 | B87: 11.94181865 | C87: 20.23369511 | D87: 17.77428498 | E87: 12.58468589 | F87: 11.29237594 | G87: 14.55028143 | H87: 17.95801399 | I87: 24.82396646
A88: KSW-1LWZUL8001 | B88: =10*LOG(10^(0.1*B56)+10^(0.1*C56)+10^(0.1*D56)) -> 11.60512728 | C88: =10*LOG(10^(0.1*E56)+10^(0.1*F56)+10^(0.1*G56)) -> 19.98718731 | D88: =10*LOG(10^(0.1*H56)+10^(0.1*I56)+10^(0.1*J56)) -> 18.80946949 | E88: =10*LOG(10^(0.1*K56)+10^(0.1*L56)+10^(0.1*M56)) -> 17.46009583 | F88: =10*LOG(10^(0.1*N56)+10^(0.1*O56)+10^(0.1*P56)) -> 11.4886515 | G88: =10*LOG(10^(0.1*Q56)+10^(0.1*R56)+10^(0.1*S56)) -> 13.10070585 | H88: =10*LOG(10^(0.1*T56)+10^(0.1*U56)+10^(0.1*V56)) -> 19.92235378 | I88: 25.78246285
A89: KSW-1LWZUL10001 | B89: 11.11588501 | C89: 16.41169827 | D89: 13.96591655 | E89: 10.035362 | F89: 3.369892902 | G89: 9.775953395 | H89: 19.68251972 | I89: 22.92972681
A90: KSW-1LWZUL12001 | B90: 9.252771579 | C90: 13.58740648 | D90: 10.59281061 | E90: 6.329592612 | F90: -2.04314478 | G90: 6.663708887 | H90: 20.59842017 | I90: 22.22861883
A91: KSW-1LWZUL8002 | B91: 11.92341976 | C91: 13.20000847 | D91: 9.841963607 | E91: 7.759988737 | F91: 1.87127926 | G91: 10.28404087 | H91: 20.49924843 | I91: 22.46682771
A92: KSW-1LWZUL10002 | B92: 8.380955047 | C92: 9.674082841 | D92: 6.886676902 | E92: 0.6050866416 | F92: -5.280489972 | G92: 9.480411231 | H92: 22.93487182 | I92: 23.57787362
A93: KSW-1LWZUL12002 | B93: 4.541805484 | C93: 10.26279173 | D93: 5.009193932 | E93: -1.193627518 | F93: -7.535192275 | G93: 6.031793894 | H93: 21.06783514 | I93: 21.74522611
A94: KSW-1LWABL8001 | B94: 12.97645183 | C94: 21.84470367 | D94: 19.51114064 | E94: 16.16136159 | F94: 11.32725949 | G94: 14.29899419 | H94: 21.26112349 | I94: 26.7907923
A95: KSW-1LWABL10001 | B95: 11.45421529 | C95: 22.2384632 | D95: 17.77548245 | E95: 13.39860915 | F95: 8.703001509 | G95: 13.70279721 | H95: 20.97597339 | I95: 26.22497141
A96: KSW-1LWABL12001 | B96: 13.8521231 | C96: 19.74114131 | D96: 14.45546279 | E96: 9.27758108 | F96: 3.729851728 | G96: 11.26788919 | H96: 21.56218862 | I96: 24.9678738
A97: KSW-1LWABL8002 | B97: 9.395341822 | C97: 8.844912551 | D97: 5.984502654 | E97: -0.630941006 | F97: -1.146890163 | G97: 12.40789826 | H97: 22.10812537 | I97: 23.05047856
A98: KSW-1LWABL10002 | B98: 9.420692683 | C98: 6.542047584 | D98: 2.760804632 | E98: -6.268413828 | F98: -5.245370844 | G98: 12.18157884 | H98: 23.3319545 | I98: 23.93725315
A99: KSW-1LWABL12002 | B99: 9.268258907 | C99: 7.318088521 | D99: 1.205156933 | E99: -8.835174589 | F99: -7.105883517 | G99: 11.95131005 | H99: 24.02060616 | I99: 24.52618894
B100: 2 | C100: 3 | D100: 4 | E100: 5 | F100: 6 | G100: 7 | H100: 8 | I100: 9
A101: Auswahl: | B101: -16.1 | C101: -8.6 | D101: -3.2 | E101: 0 | F101: 1.2 | G101: 1 | H101: -1.1
A102: =Grunddaten!C49 -> KSWZUL10001 | B102: =IF($I$102="<25","",VLOOKUP($A$102,$A$72:$I$99,B$100,FALSE)) -> 17.26677687 | C102: =IF($I$102="<25","",VLOOKUP($A$102,$A$72:$I$99,C$100,FALSE)) -> 28.98845998 | D102: 28.75845233 | E102: 28.37538875 | F102: 20.77225918 | G102: 18.07484944 | H102: 18.21536733 | I102: =IF(VLOOKUP($A$102,$A$72:$I$99,I$100,FALSE)<25,"<25",VLOOKUP($A$102,$A$72:$I$99,I$100,FALSE)) -> 34.03934778
A103: =Grunddaten!C50 -> KSWABL10001 | B103: =IF($I$103="<25","",VLOOKUP($A$103,$A$72:$I$99,B$100,FALSE)) -> 17.32588358 | C103: =IF($I$103="<25","",VLOOKUP($A$103,$A$72:$I$99,C$100,FALSE)) -> 32.09018588 | D103: 32.58494503 | E103: 32.5837608 | F103: 25.58396097 | G103: 23.00723707 | H103: 18.32738011 | I103: =IF(VLOOKUP($A$103,$A$72:$I$99,I$100,FALSE)<25,"<25",VLOOKUP($A$103,$A$72:$I$99,I$100,FALSE)) -> 37.72917063
B104: =IF($I$102="<25","",B102-B101) -> 33.36677687 | C104: =IF($I$102="<25","",C102-C101) -> 37.58845998 | D104: =IF($I$102="<25","",D102-D101) -> 31.95845233 | E104: =IF($I$102="<25","",E102-E101) -> 28.37538875 | F104: 19.57225918 | G104: 17.07484944 | H104: 19.31536733
B105: =IF(B$103="","",B103-B101) -> 33.42588358 | C105: =IF(C$103="","",C103-C101) -> 40.69018588 | D105: 35.78494503 | E105: 32.5837608 | F105: 24.38396097 | G105: 22.00723707 | H105: 19.42738011
A107: T[s] nach VDI 2081 | E107: Nachhallzeit | F107: Richtungsfaktor | G107: Raumvolumen | H107: äqu. Absorptionsfläche
A108: Raumart | C108: s | E108: t | F108: Q | G108: V | H108: A
A109: Einzelbüro | C109: 0.5 | E109: s | G109: m³ | H109: m²Sabine
A110: Großraumbüro | C110: 0.5 | D110: =Auslegung!D36 -> Einzelbüro | E110: =VLOOKUP(D110,Lw!$A$109:$C$132,3,FALSE) -> 0.5 | F110: 4 | G110: =Auslegung!D32*Auslegung!D34*Auslegung!D35 -> 54 | H110: =0.163*G110/E110 -> 17.604
A111: Werkstätten | C111: 1.5
A112: Ruheraum, Pausenraum | C112: 1
A113: Untersuchungsraum Krankenhaus | C113: 2
A114: Rundfunk-, Fernsehstudio | C114: 0.5
A115: Chemielabor | C115: 2
A116: Wasch- und WC-Raum, Umkleide | C116: 2
A117: Schwimmbad | C117: 2
A118: EDV-Raum | C118: 1.5
A119: Konzertsaal | C119: 1.5
A120: Lesesaal | C120: 1
A121: Museum | C121: 1.5
A122: Küche | C122: 1.5
A123: Theater, Kino | C123: 1
A124: Klassen- Seminarraum | C124: 1
A125: Gaststätte | C125: 1
A126: kein Typ | C126: x
A127: Konferenzraum | C127: 1
A128: Hotelzimmer | C128: 0.5
A129: Hörsaal | C129: 1
A130: Bettenzimmer Krankenhaus | C130: 1
A131: Verkaufsraum | C131: 1
A132: Sporthalle | C132: 2

Sheet Dt (hidden)
A1: Frequenzband | B1: fm_Okt | C1: [Hz] | D1: 63 | E1: 125 | F1: 250 | G1: 500 | H1: 1000 | I1: 2000 | J1: 4000 | K1: 8000
C2: =Grunddaten!C4 -> KSWZUL5001 | D2: 28.07117354 | E2: 19.02822015 | F2: 13.20068428 | G2: 13.98705959 | H2: 19.61242055 | I2: 23.53719402 | J2: 23.70455355 | K2: 22.58890818
C3: =Grunddaten!C5 -> KSWZUL8001 | D3: 30.26690964 | E3: 19.46593411 | F3: 12.02925159 | G3: 12.15308666 | H3: 17.75408462 | I3: 21.63722483 | J3: 25.39883336 | K3: 26.78436451
C4: =Grunddaten!C6 -> KSWZUL10001 | D4: 20.97717724 | E4: 11.59493788 | F4: 7.686022815 | G4: 13.49896385 | H4: 16.33439018 | I4: 18.95665645 | J4: 26.8738137 | K4: 23.75541555
C5: =Grunddaten!C7 -> KSWZUL12001 | D5: 20.28640282 | E5: 13.88857674 | F5: 7.534245387 | G5: 12.45840207 | H5: 17.49398842 | I5: 18.06713618 | J5: 23.6456766 | K5: 23.45742745
C6: =Grunddaten!C8 -> KSWZUL5002 | D6: 26.33899817 | E6: 23.36387889 | F6: 11.91117923 | G6: 11.78730903 | H6: 16.4757044 | I6: 19.39770058 | J6: 23.39303269 | K6: 24.98842088
C7: =Grunddaten!C9 -> KSWZUL8002 | D7: 30.58589624 | E7: 17.46850866 | F7: 9.427431276 | G7: 11.84479132 | H7: 15.76136319 | I7: 20.10702579 | J7: 23.53831497 | K7: 24.04195555
C8: =Grunddaten!C10 -> KSWZUL10002 | D8: 19.73872147 | E8: 11.43277159 | F8: 6.794063281 | G8: 11.22534833 | H8: 13.30585314 | I8: 16.16408834 | J8: 23.11033089 | K8: 21.35962249
C9: =Grunddaten!C11 -> KSWZUL12002 | D9: 19.69840986 | E9: 15.45446661 | F9: 7.317243168 | G9: 13.42118559 | H9: 14.09142612 | I9: 16.89681073 | J9: 21.56809565 | K9: 20.62463469
C10: KSW-1LWZUL8001 | D10: 26.68837975 | E10: 17.8576706 | F10: 13.64270965 | G10: 16.80131789 | H10: 26.64108289 | I10: 28.4414371 | J10: 23.15782748 | K10: 24.41350947
C11: KSW-1LWZUL10001 | D11: 24.21611939 | E11: 17.88334657 | F11: 16.53424353 | G11: 18.03859368 | H11: 22.83433888 | I11: 24.54024908 | J11: 28.35623149 | K11: 27.41735401
C12: KSW-1LWZUL12001 | D12: 26.5869313 | E12: 17.55893876 | F12: 17.47416586 | G12: 15.40671738 | H12: 21.05749399 | I12: 25.10207726 | J12: 25.11013475 | K12: 25.02713779 | L12: Hinweis: Durchgangsdämpfung des 2-Schlitzers verwendet, 1-Schlitzer wurde nicht messtechnisch untersucht
C13: KSW-1LWZUL8002 | D13: 23.00571225 | E13: 15.19782285 | F13: 9.172343916 | G13: 13.35954769 | H13: 19.82425281 | I13: 22.17582357 | J13: 23.94931606 | K13: 23.3552065
C14: KSW-1LWZUL10002 | D14: 21.55663491 | E14: 14.30291021 | F14: 12.17001125 | G14: 13.64769251 | H14: 19.59569722 | I14: 22.6276544 | J14: 25.62802023 | K14: 23.72245939
C15: KSW-1LWZUL12002 | D15: 26.5869313 | E15: 17.55893876 | F15: 17.47416586 | G15: 15.40671738 | H15: 21.05749399 | I15: 25.10207726 | J15: 25.11013475 | K15: 25.02713779
C16: KSW-1LWABL8001 | D16: 26.68837975 | E16: 17.8576706 | F16: 13.64270965 | G16: 16.80131789 | H16: 26.64108289 | I16: 28.4414371 | J16: 23.15782748 | K16: 24.41350947
C17: KSW-1LWABL10001 | D17: 24.21611939 | E17: 17.88334657 | F17: 16.53424353 | G17: 18.03859368 | H17: 22.83433888 | I17: 24.54024908 | J17: 28.35623149 | K17: 27.41735401
C18: KSW-1LWABL12001 | D18: 26.5869313 | E18: 17.55893876 | F18: 17.47416586 | G18: 15.40671738 | H18: 21.05749399 | I18: 25.10207726 | J18: 25.11013475 | K18: 25.02713779
C19: KSW-1LWABL8002 | D19: 23.00571225 | E19: 15.19782285 | F19: 9.172343916 | G19: 13.35954769 | H19: 19.82425281 | I19: 22.17582357 | J19: 23.94931606 | K19: 23.3552065
C20: KSW-1LWABL10002 | D20: 21.55663491 | E20: 14.30291021 | F20: 12.17001125 | G20: 13.64769251 | H20: 19.59569722 | I20: 22.6276544 | J20: 25.62802023 | K20: 23.72245939
C21: KSW-1LWABL12002 | D21: 26.5869313 | E21: 17.55893876 | F21: 17.47416586 | G21: 15.40671738 | H21: 21.05749399 | I21: 25.10207726 | J21: 25.11013475 | K21: 25.02713779
D23: 2 | E23: 3 | F23: 4 | G23: 5 | H23: 6 | I23: 7 | J23: 8 | K23: 9
C25: =Grunddaten!C49 -> KSWZUL10001 | D25: =VLOOKUP($C$25,$C$2:$K$21,D23,FALSE) -> 20.97717724 | E25: =VLOOKUP($C$25,$C$2:$K$21,E23,FALSE) -> 11.59493788 | F25: 7.686022815 | G25: 13.49896385 | H25: 16.33439018 | I25: 18.95665645 | J25: 26.8738137 | K25: 23.75541555

Sheet xkr._vx (hidden)
A1: Geschwindigkeit im Strahl | M1: kritischer Strahlweg
M2: Schlitzanzahl | N2: n | O2: 1 | P2: 2
A3: Konstanten | B3: K031 | C3: 0.006151917569 | M3: Konstanten: | N3: K041 | O3: 0.01784097139 | P3: 0.07304307144
B4: K033 | C4: 0.5922122357 | N4: K042 | O4: 0.4113716812 | P4: 0.5910751723
B5: K034 | N5: K043 | O5: 1.287238752 | P5: 1.067829832
M6: mittlere Untertemperatur | N6: Dt0 | O6: =IF(Auslegung!$D$30-Auslegung!$D$29>0,Auslegung!$D$30-Auslegung!$D$29,0.0000001) -> 4
B7: Lauflänge | C7: Geschwindigkeit im Strahl horizontal | D7: Geschwindigkeit im Strahl vertikal | F7: kritischer Strahlweg Anzeige | G7: kritischer Strahlweg | H7: vertikaler Strahlweg | I7: Geschwindigkeit im Strahl | J7: Lauflänge bis Aufenthaltsbereich Anzeige | K7: Geschwindigkeit im Strahl | L7: Schlitzanzahl | M7: Zugluftrisiko | N7: Volumenstrom spezifisch
B8: L | C8: v0 | D8: v1 | F8: xkr._Anzeige | G8: xkr. | H8: y | I8: v0 | J8: x+y | K8: vx | L8: n | M8: DR | N8: V°spez.
B9: m | C9: m/s | D9: m/s | F9: m | G9: m | H9: m | I9: m/s | J9: m | K9: m/s | L9: - | M9: % | N9: m³/(h·m)
B10: 0.5 | C10: =$C$3*Auslegung!$D$27/(Grunddaten!$F$49*0.001)*(1/xkr._vx!B10)^(xkr._vx!$C$4) -> 1.483898299 | D10: =1/B10*$I$10 -> 0.6812865171 | F10: =IF($P10<Auslegung!$D$34,$P10,">Raumlänge") -> >Raumlänge | G10: =IF(P10<Auslegung!D34,xkr._vx!P10,Auslegung!D34) -> 6 | H10: =(Auslegung!$D$32-Auslegung!$D$33)/SIN(45/180*PI()) -> 1.697056275 | I10: =$C$3*Auslegung!$D$27/(Grunddaten!$F$49*0.001)*(1/xkr._vx!G10)^(xkr._vx!$C$4) -> 0.3406432585 | J10: =IF(G10+H10<Auslegung!$D$34,G10+H10,Auslegung!$D$34+(Auslegung!$D$32-Auslegung!$D$33)) -> 7.2 | K10: =1/(H10+0.5)*I10 -> 0.1550453042 | L10: 1 | M10: =IF(K10="<0,1",(34-$M$13)*(0.1-0.05)^0.62*(0.37*0.1*$M$14+3.14),(34-$M$13)*(K10-0.05)^0.62*(0.37*K10*$M$14+3.14)) -> 12.022074 | N10: =Grunddaten!$G$49*10 -> 160 | P10: =$O$3*$N$10^$O$5*(1/xkr._vx!$O$6^(xkr._vx!$O$4)) -> 6.933886395
B11: 0.6 | C11: =$C$3*Auslegung!$D$27/(Grunddaten!$F$49*0.001)*(1/xkr._vx!B11)^(xkr._vx!$C$4) -> 1.332023952 | D11: =1/B11*$I$10 -> 0.5677387642 | F11: =IF($P11<Auslegung!$D$34,$P11,">Raumlänge") -> >Raumlänge | G11: =IF(P11<Auslegung!D35,xkr._vx!P11,Auslegung!D35) -> 3 | H11: =(Auslegung!$D$32-Auslegung!$D$33)/SIN(45/180*PI()) -> 1.697056275 | I11: =$C$3*Auslegung!$D$27/(Grunddaten!$F$49*0.001)*(1/xkr._vx!G11)^(xkr._vx!$C$4) -> 0.5135390168 | J11: =IF(G11+H11<Auslegung!$D$34,G11+H11,Auslegung!$D$34+(Auslegung!$D$32-Auslegung!$D$33)) -> 4.697056275 | K11: =1/(H11+0.5)*I11 -> 0.2337395827 | L11: 2 | M11: =IF(K11="<0,1",(34-$M$13)*(0.1-0.05)^0.62*(0.37*0.1*$M$14+3.14),(34-$M$13)*(K11-0.05)^0.62*(0.37*K11*$M$14+3.14)) -> 20.05866182 | N11: =Grunddaten!$G$49*10 -> 160 | P11: =$P$3*($N$11)^$P$5*(1/xkr._vx!$O$6^(xkr._vx!$P$4)) -> 7.266769483
B12: 0.7 | C12: =$C$3*Auslegung!$D$27/(Grunddaten!$F$49*0.001)*(1/xkr._vx!B12)^(xkr._vx!$C$4) -> 1.215808923 | D12: 0.4866332265
B13: 0.8 | C13: =$C$3*Auslegung!$D$27/(Grunddaten!$F$49*0.001)*(1/xkr._vx!B13)^(xkr._vx!$C$4) -> 1.12336732 | D13: 0.4258040732 | I13: Vorauswahl Geschwindigkeit A-Bereich | K13: =IF(Auslegung!$D$18=2,xkr._vx!$K$11,xkr._vx!$K$10) -> 0.1550453042 | M13: =(Auslegung!D30+Auslegung!D29)/2 -> 24
B14: 0.9 | C14: =$C$3*Auslegung!$D$27/(Grunddaten!$F$49*0.001)*(1/xkr._vx!B14)^(xkr._vx!$C$4) -> 1.047679958 | D14: =1/B14*$I$10 -> 0.3784925095 | M14: 30
B15: 1 | C15: =$C$3*Auslegung!$D$27/(Grunddaten!$F$49*0.001)*(1/xkr._vx!B15)^(xkr._vx!$C$4) -> 0.984306811 | D15: 0.3406432585 | M15: TU = 30 = Mittelwert Messreihen
B16: 1.1 | C16: =$C$3*Auslegung!$D$27/(Grunddaten!$F$49*0.001)*(1/xkr._vx!B16)^(xkr._vx!$C$4) -> 0.9302876073 | D16: 0.3096756896
B17: 1.2 | C17: =$C$3*Auslegung!$D$27/(Grunddaten!$F$49*0.001)*(1/xkr._vx!B17)^(xkr._vx!$C$4) -> 0.8835647626 | D17: 0.2838693821
B18: 1.3 | C18: =$C$3*Auslegung!$D$27/(Grunddaten!$F$49*0.001)*(1/xkr._vx!B18)^(xkr._vx!$C$4) -> 0.8426589597 | D18: 0.2620332758
B19: 1.4 | C19: =$C$3*Auslegung!$D$27/(Grunddaten!$F$49*0.001)*(1/xkr._vx!B19)^(xkr._vx!$C$4) -> 0.8064764305 | D19: =1/B19*$I$10 -> 0.2433166132
B20: 1.5 | C20: =$C$3*Auslegung!$D$27/(Grunddaten!$F$49*0.001)*(1/xkr._vx!B20)^(xkr._vx!$C$4) -> 0.7741891705 | D20: 0.2270955057
B21: 1.6 | C21: =$C$3*Auslegung!$D$27/(Grunddaten!$F$49*0.001)*(1/xkr._vx!B21)^(xkr._vx!$C$4) -> 0.7451576063 | D21: 0.2129020366
B22: 1.7 | C22: =$C$3*Auslegung!$D$27/(Grunddaten!$F$49*0.001)*(1/xkr._vx!B22)^(xkr._vx!$C$4) -> 0.7188790367 | D22: 0.2003783874
B23: 1.8 | C23: =$C$3*Auslegung!$D$27/(Grunddaten!$F$49*0.001)*(1/xkr._vx!B23)^(xkr._vx!$C$4) -> 0.6949522883 | D23: 0.1892462547
B24: 1.9 | C24: =$C$3*Auslegung!$D$27/(Grunddaten!$F$49*0.001)*(1/xkr._vx!B24)^(xkr._vx!$C$4) -> 0.6730528956 | D24: 0.1792859256
B25: 2 | C25: =$C$3*Auslegung!$D$27/(Grunddaten!$F$49*0.001)*(1/xkr._vx!B25)^(xkr._vx!$C$4) -> 0.6529152967 | D25: 0.1703216293
B26: 2.1 | C26: =$C$3*Auslegung!$D$27/(Grunddaten!$F$49*0.001)*(1/xkr._vx!B26)^(xkr._vx!$C$4) -> 0.6343198196 | D26: 0.1622110755
B27: 2.2 | C27: =$C$3*Auslegung!$D$27/(Grunddaten!$F$49*0.001)*(1/xkr._vx!B27)^(xkr._vx!$C$4) -> 0.6170830095 | D27: 0.1548378448
B28: 2.3 | C28: =$C$3*Auslegung!$D$27/(Grunddaten!$F$49*0.001)*(1/xkr._vx!B28)^(xkr._vx!$C$4) -> 0.6010503297 | D28: 0.1481057646
B29: 2.4 | C29: =$C$3*Auslegung!$D$27/(Grunddaten!$F$49*0.001)*(1/xkr._vx!B29)^(xkr._vx!$C$4) -> 0.5860905794 | D29: 0.1419346911
B30: 2.5 | C30: =$C$3*Auslegung!$D$27/(Grunddaten!$F$49*0.001)*(1/xkr._vx!B30)^(xkr._vx!$C$4) -> 0.5720915696 | D30: 0.1362573034
B31: 2.6 | C31: =$C$3*Auslegung!$D$27/(Grunddaten!$F$49*0.001)*(1/xkr._vx!B31)^(xkr._vx!$C$4) -> 0.5589567384 | D31: 0.1310166379
B32: 2.7 | C32: =$C$3*Auslegung!$D$27/(Grunddaten!$F$49*0.001)*(1/xkr._vx!B32)^(xkr._vx!$C$4) -> 0.5466024715 | D32: 0.1261641698
B33: 2.8 | C33: =$C$3*Auslegung!$D$27/(Grunddaten!$F$49*0.001)*(1/xkr._vx!B33)^(xkr._vx!$C$4) -> 0.5349559629 | D33: 0.1216583066
B34: 2.9 | C34: =$C$3*Auslegung!$D$27/(Grunddaten!$F$49*0.001)*(1/xkr._vx!B34)^(xkr._vx!$C$4) -> 0.5239534907 | D34: 0.1174631926
B35: 3 | C35: =$C$3*Auslegung!$D$27/(Grunddaten!$F$49*0.001)*(1/xkr._vx!B35)^(xkr._vx!$C$4) -> 0.5135390168 | D35: 0.1135477528
B36: 3.1 | C36: =$C$3*Auslegung!$D$27/(Grunddaten!$F$49*0.001)*(1/xkr._vx!B36)^(xkr._vx!$C$4) -> 0.5036630406 | D36: 0.1098849221
B37: 3.2 | C37: =$C$3*Auslegung!$D$27/(Grunddaten!$F$49*0.001)*(1/xkr._vx!B37)^(xkr._vx!$C$4) -> 0.4942816551 | D37: 0.1064510183
B38: 3.3 | C38: =$C$3*Auslegung!$D$27/(Grunddaten!$F$49*0.001)*(1/xkr._vx!B38)^(xkr._vx!$C$4) -> 0.4853557629 | D38: 0.1032252299
B39: 3.4 | C39: =$C$3*Auslegung!$D$27/(Grunddaten!$F$49*0.001)*(1/xkr._vx!B39)^(xkr._vx!$C$4) -> 0.4768504233 | D39: 0.1001891937
B40: 3.5 | C40: =$C$3*Auslegung!$D$27/(Grunddaten!$F$49*0.001)*(1/xkr._vx!B40)^(xkr._vx!$C$4) -> 0.468734303 | D40: 0.0973266453
B41: 3.6 | C41: =$C$3*Auslegung!$D$27/(Grunddaten!$F$49*0.001)*(1/xkr._vx!B41)^(xkr._vx!$C$4) -> 0.4609792134 | D41: 0.09462312737
B42: 3.7 | C42: =$C$3*Auslegung!$D$27/(Grunddaten!$F$49*0.001)*(1/xkr._vx!B42)^(xkr._vx!$C$4) -> 0.4535597183 | D42: 0.09206574555
B43: 3.8 | C43: =$C$3*Auslegung!$D$27/(Grunddaten!$F$49*0.001)*(1/xkr._vx!B43)^(xkr._vx!$C$4) -> 0.4464527992 | D43: 0.08964296278
B44: 3.9 | C44: =$C$3*Auslegung!$D$27/(Grunddaten!$F$49*0.001)*(1/xkr._vx!B44)^(xkr._vx!$C$4) -> 0.4396375691 | D44: 0.08734442527
B45: 4 | C45: =$C$3*Auslegung!$D$27/(Grunddaten!$F$49*0.001)*(1/xkr._vx!B45)^(xkr._vx!$C$4) -> 0.4330950267 | D45: 0.08516081464
B46: 4.1 | C46: =$C$3*Auslegung!$D$27/(Grunddaten!$F$49*0.001)*(1/xkr._vx!B46)^(xkr._vx!$C$4) -> 0.426807844 | D46: 0.0830837216
B47: 4.2 | C47: =$C$3*Auslegung!$D$27/(Grunddaten!$F$49*0.001)*(1/xkr._vx!B47)^(xkr._vx!$C$4) -> 0.4207601823 | D47: 0.08110553775
B48: 4.3 | C48: =$C$3*Auslegung!$D$27/(Grunddaten!$F$49*0.001)*(1/xkr._vx!B48)^(xkr._vx!$C$4) -> 0.4149375324 | D48: 0.07921936245
B49: 4.4 | C49: =$C$3*Auslegung!$D$27/(Grunddaten!$F$49*0.001)*(1/xkr._vx!B49)^(xkr._vx!$C$4) -> 0.4093265755 | D49: 0.0774189224
B50: 4.5 | C50: =$C$3*Auslegung!$D$27/(Grunddaten!$F$49*0.001)*(1/xkr._vx!B50)^(xkr._vx!$C$4) -> 0.4039150608 | D50: 0.0756985019
B51: 4.6 | C51: =$C$3*Auslegung!$D$27/(Grunddaten!$F$49*0.001)*(1/xkr._vx!B51)^(xkr._vx!$C$4) -> 0.3986916985 | D51: 0.07405288229
B52: 4.7 | C52: =$C$3*Auslegung!$D$27/(Grunddaten!$F$49*0.001)*(1/xkr._vx!B52)^(xkr._vx!$C$4) -> 0.3936460656 | D52: 0.07247728905
B53: 4.8 | C53: =$C$3*Auslegung!$D$27/(Grunddaten!$F$49*0.001)*(1/xkr._vx!B53)^(xkr._vx!$C$4) -> 0.3887685224 | D53: 0.07096734553
B54: 4.9 | C54: =$C$3*Auslegung!$D$27/(Grunddaten!$F$49*0.001)*(1/xkr._vx!B54)^(xkr._vx!$C$4) -> 0.384050139 | D54: 0.06951903236
B55: 5 | C55: =$C$3*Auslegung!$D$27/(Grunddaten!$F$49*0.001)*(1/xkr._vx!B55)^(xkr._vx!$C$4) -> 0.3794826295 | D55: 0.06812865171
B56: 5.1 | C56: =$C$3*Auslegung!$D$27/(Grunddaten!$F$49*0.001)*(1/xkr._vx!B56)^(xkr._vx!$C$4) -> 0.3750582944 | D56: 0.06679279579
B57: 5.2 | C57: =$C$3*Auslegung!$D$27/(Grunddaten!$F$49*0.001)*(1/xkr._vx!B57)^(xkr._vx!$C$4) -> 0.3707699679 | D57: 0.06550831895
B58: 5.3 | C58: =$C$3*Auslegung!$D$27/(Grunddaten!$F$49*0.001)*(1/xkr._vx!B58)^(xkr._vx!$C$4) -> 0.3666109718 | D58: 0.06427231293
B59: 5.4 | C59: =$C$3*Auslegung!$D$27/(Grunddaten!$F$49*0.001)*(1/xkr._vx!B59)^(xkr._vx!$C$4) -> 0.362575074 | D59: 0.06308208492
B60: 5.5 | C60: =$C$3*Auslegung!$D$27/(Grunddaten!$F$49*0.001)*(1/xkr._vx!B60)^(xkr._vx!$C$4) -> 0.3586564509 | D60: 0.06193513792
B61: 5.6 | C61: =$C$3*Auslegung!$D$27/(Grunddaten!$F$49*0.001)*(1/xkr._vx!B61)^(xkr._vx!$C$4) -> 0.3548496539 | D61: 0.06082915331
B62: 5.7 | C62: =$C$3*Auslegung!$D$27/(Grunddaten!$F$49*0.001)*(1/xkr._vx!B62)^(xkr._vx!$C$4) -> 0.351149579 | D62: 0.05976197518
B63: 5.8 | C63: =$C$3*Auslegung!$D$27/(Grunddaten!$F$49*0.001)*(1/xkr._vx!B63)^(xkr._vx!$C$4) -> 0.3475514393 | D63: 0.0587315963
B64: 5.9 | C64: =$C$3*Auslegung!$D$27/(Grunddaten!$F$49*0.001)*(1/xkr._vx!B64)^(xkr._vx!$C$4) -> 0.3440507406 | D64: 0.05773614552
B65: 6 | C65: =$C$3*Auslegung!$D$27/(Grunddaten!$F$49*0.001)*(1/xkr._vx!B65)^(xkr._vx!$C$4) -> 0.3406432585 | D65: 0.05677387642

Sheet Eingabe (hidden)
E2: 1 | F2: = Produktgruppe emcoair
F3: KSW | G3: Artikel
G4: 1 | H4: Schlitzanzahl | I4: 1 Schlitz
G5: 2 | I5: 2 Schlitze
G6: X | I6: Sonder
H7: K | I7: Funktion | J7: Zuluft / Abluft Kombination
H8: Z | J8: Zuluft
H9: A | J9: Abluft
I10: 0500 | J10: Breite
I11: 0600
I12: 0700
I13: 0800
I14: 0900
I15: 1000
I16: 1100
I17: 1200
J18: A | K18: Werkstoff | L18: Aluminium
K21: 9010 | L21: Oberfläche Luftdurchlass | M21: RAL 9010 glänzend
K22: E6C0 | M22: Aluminium naturfarbig eloxiert
K23: XXXX | M23: RAL-Ton **** glänzend
K24: SSSS | M24: Sonderlackierung
L25: S | M25: Farbe Luftlenkelement | N25: schwarz
L26: W | N26: weiß
L27: G | N27: grau
M28: C | N28: Luftlenkeinstellung | O28: DE
M29: S | O29: Sonder
N30: V | O30: Werkstoff Anschlusskasten | P30: Stahl verzinkt
N31: 0 | P31: ohne Anschlusskasten
O32: 1 | P32: Drossel | Q32: mit FBD
O33: 0 | Q33: ohne FBD
P34: B1 | Q34: Innenauskleidung | R34: Dämmung Baustoffklasse B1
P35: A2 | R35: Dämmung Baustoffklasse A2
Q36: 1 | R36: Stutzenanzahl | S36: 1 Stutzen
Q37: x | S37: Sonder
R38: 100 | S38: Stutzendurchmesser | T38: 98 mm
R39: 080 | T39: 78 mm
R40: xxx | T40: Sonder
E41: =E2 -> 1 | F41: =F3 -> KSW | G41: =G4 -> 1 | H41: 1 | I41: =I10 -> 0500 | J41: =J18 -> A | K41: =K21 -> 9010 | L41: =L25 -> S | M41: =M28 -> C | N41: =N30 -> V | O41: =O32 -> 1 | P41: =P34 -> B1 | Q41: =Q36 -> 1 | R41: =R38 -> 100
A45: Schwarz | B45: S
A46: weiß | B46: W
A47: naturfarbig eloxiert | B47: K
A48: weiß (RAL 9010) bepulvert | B48: L
A49: Anschlusskasten ohne Mengeneinstellung | B49: AK1
A50: Anschlusskasten mit Mengeneinstellung* | B50: AK2
